Workbook

Sheet Admin
B4: Process Year
B5: 2016 | C5: I1
B7: First True Up Month
B8: =B5*100+1 -> 201601 | C8: I2 | D8: I3
B10: Second True Up Month
B11: =B8+1 -> 201602 | C11: I4 | D11: I5
B13: Third True Up Month
B14: =B11+1 -> 201603 | C14: I6 | D14: I7
B16: Fourth True Up Month
B17: =B14+1 -> 201604 | C17: I8 | D17: I9
B19: Fifth True Up Month
B20: =B17+1 -> 201605 | C20: I10 | D20: I11
B22: Sixth True Up Month
B23: =B20+1 -> 201606 | C23: I12 | D23: I13
B25: Seventh True Up Month
B26: =B23+1 -> 201607 | C26: I14 | D26: I15
B28: Eighth True Up Month
B29: =B26+1 -> 201608 | C29: I16 | D29: I17
B31: Ninth True Up Month
B32: =B29+1 -> 201609 | C32: I18 | D32: I19
B34: Tenth True Up Month
B35: =B32+1 -> 201610 | C35: I20 | D35: I21
B37: Eleventh True Up Month
B38: =B35+1 -> 201611 | C38: I22 | D38: I23
B40: Twelveth True Up Month
B41: =B38+1 -> 201612 | C41: I24 | D41: I25

Sheet I1 Reconciliation
C2: =Admin!$B$8 -> 201601 | D2: =Admin!$B$8 -> 201601 | E2: =C2+1 -> 201602 | F2: =D2+1 -> 201602 | G2: =E2+1 -> 201603 | H2: 201603 | I2: 201604 | J2: 201604 | K2: 201605 | L2: 201605 | M2: 201606 | N2: 201606 | O2: 201607 | P2: 201607 | Q2: 201608 | R2: 201608 | S2: 201609 | T2: 201609 | U2: 201610 | V2: 201610 | W2: 201611 | X2: 201611 | Y2: 201612 | Z2: 201612 | AA2: =Admin!B5 -> 2016
C3: =A4 & "Input "& C2 & " Trueup Sett" -> Input 201601 Trueup Sett | D3: =D4 & " Input Rev " & D2 & " Init" -> I3 Input Rev 201601 Init | E3: =C4 & "Input "& E2 & " Trueup Sett" -> I2Input 201602 Trueup Sett | F3: =F4 & " Input Rev " & F2 & " Init" -> I5 Input Rev 201602 Init | G3: =E4 & "Input "& G2 & " Trueup Sett" -> I4Input 201603 Trueup Sett | H3: =H4 & " Input Rev " & H2 & " Init" -> I7 Input Rev 201603 Init | I3: =G4 & "Input "& I2 & " Trueup Sett" -> I6Input 201604 Trueup Sett | J3: =J4 & " Input Rev " & J2 & " Init" -> I9 Input Rev 201604 Init | K3: =I4 & "Input "& K2 & " Trueup Sett" -> I8Input 201605 Trueup Sett | L3: =L4 & " Input Rev " & L2 & " Init" -> I11 Input Rev 201605 Init | M3: =K4 & "Input "& M2 & " Trueup Sett" -> I10Input 201606 Trueup Sett | N3: =N4 & " Input Rev " & N2 & " Init" -> I13 Input Rev 201606 Init | O3: =M4 & "Input "& O2 & " Trueup Sett" -> I12Input 201607 Trueup Sett | P3: =P4 & " Input Rev " & P2 & " Init" -> I15 Input Rev 201607 Init | Q3: =O4 & "Input "& Q2 & " Trueup Sett" -> I14Input 201608 Trueup Sett | R3: =R4 & " Input Rev " & R2 & " Init" -> I17 Input Rev 201608 Init | S3: =Q4 & "Input "& S2 & " Trueup Sett" -> I16Input 201609 Trueup Sett | T3: =T4 & " Input Rev " & T2 & " Init" -> I19 Input Rev 201609 Init | U3: =S4 & "Input "& U2 & " Trueup Sett" -> I18Input 201610 Trueup Sett | V3: =V4 & " Input Rev " & V2 & " Init" -> I21 Input Rev 201610 Init | W3: =U4 & "Input "& W2 & " Trueup Sett" -> I20Input 201611 Trueup Sett | X3: =X4 & " Input Rev " & X2 & " Init" -> I23 Input Rev 201611 Init | Y3: =W4 & "Input "& Y2 & " Trueup Sett" -> I22Input 201612 Trueup Sett | Z3: =Z4 & " Input Rev " & Z2 & " Init" -> I25 Input Rev 201612 Init | AA3: Total IESO Settlement
C4: I2 | D4: I3 | E4: I4 | F4: I5 | G4: I6 | H4: I7 | I4: I8 | J4: I9 | K4: I10 | L4: I11 | M4: I12 | N4: I13 | O4: I14 | P4: I15 | Q4: I16 | R4: I17 | S4: I18 | T4: I19 | U4: I20 | V4: I21 | W4: I22 | X4: I23 | Y4: I24 | Z4: I25
B5: RPP Revenue Prices
B6: RPPT1 | C6: ='I2 Input 01 Trueup Sett '!Z6 -> -5293.544909 | D6: ='I3 Input Rev 01 Init'!C7 -> 5284.703683 | E6: ='I4 Input 02 Trueup Sett'!Z6 -> -8560.41768 | F6: ='I5 Input Rev 02 Init'!C7 -> 5910.610906 | G6: ='I6 Input 03 Trueup Sett'!Z6 -> -10375.69785 | H6: ='I7 Input Rev 03 Init'!C7 -> 9912.73719 | I6: ='I8 Input 04 Trueup Sett'!Z6 -> -11881.7014 | J6: ='I9 Input Rev 04 Init'!C7 -> 9961.078852 | K6: ='I10 Input 05 Trueup Sett'!Z6 -> -10662.03264 | L6: ='I11 Input Rev 05 Init'!C7 -> 11464.02104 | M6: ='I12 Input 06 Trueup Sett'!Z6 -> -4547.459653 | N6: ='I13 Input Rev 06 Init'!C7 -> 8729.147453 | O6: ='I14 Input 07 Trueup Sett'!Z6 -> -5180.730589 | P6: ='I15 Input Rev 07 Init'!C7 -> 6747.597948 | Q6: ='I16 Input 08 Trueup Sett'!Z6 -> 12.12870352 | R6: ='I17 Input Rev 08 Init'!C7 -> 11356.11198 | S6: ='I18 Input 09 Trueup Sett'!Z6 -> -5866.507409 | T6: ='I19 Input Rev 09 Init'!C7 -> 704.238693 | U6: ='I20 Input 10 Trueup Sett'!Z6 -> -11244.12604 | V6: ='I21 Input Rev 10 Init'!C7 -> 5594.178818 | W6: ='I22 Input 11 Trueup Sett'!Z6 -> -15885.58712 | X6: ='I23 Input Rev 11 Init'!C7 -> 10024.11816 | Y6: ='I24 Input 12 Trueup Sett'!Z6 -> -3942.115554 | Z6: ='I25 Input Rev 12 Init'!C7 -> 14467.38628 | AA6: =SUM(C6:Z6) -> 6728.138847
B7: RPPT2 | C7: ='I2 Input 01 Trueup Sett '!Z7 -> 6354.945739 | D7: ='I3 Input Rev 01 Init'!C8 -> -5184.522682 | E7: ='I4 Input 02 Trueup Sett'!Z7 -> 2226.950929 | F7: ='I5 Input Rev 02 Init'!C8 -> -6144.398849 | G7: ='I6 Input 03 Trueup Sett'!Z7 -> 2079.483039 | H7: ='I7 Input Rev 03 Init'!C8 -> -2251.253972 | I7: ='I8 Input 04 Trueup Sett'!Z7 -> -233.1624083 | J7: ='I9 Input Rev 04 Init'!C8 -> -2128.685815 | K7: ='I10 Input 05 Trueup Sett'!Z7 -> -235.1440287 | L7: ='I11 Input Rev 05 Init'!C8 -> 520.8304342 | M7: ='I12 Input 06 Trueup Sett'!Z7 -> 1494.947016 | N7: ='I13 Input Rev 06 Init'!C8 -> -620.5983176 | O7: ='I14 Input 07 Trueup Sett'!Z7 -> 12921.72958 | P7: ='I15 Input Rev 07 Init'!C8 -> -13112.36344 | Q7: ='I16 Input 08 Trueup Sett'!Z7 -> 11122.24846 | R7: ='I17 Input Rev 08 Init'!C8 -> -5894.992551 | S7: ='I18 Input 09 Trueup Sett'!Z7 -> 3296.419126 | T7: ='I19 Input Rev 09 Init'!C8 -> -9319.27855 | U7: ='I20 Input 10 Trueup Sett'!Z7 -> -2234.187256 | V7: ='I21 Input Rev 10 Init'!C8 -> -3755.22278 | W7: ='I22 Input 11 Trueup Sett'!Z7 -> -3188.649674 | X7: ='I23 Input Rev 11 Init'!C8 -> 1692.15604 | Y7: ='I24 Input 12 Trueup Sett'!Z7 -> 7749.981597 | Z7: ='I25 Input Rev 12 Init'!C8 -> 2525.279145 | AA7: =SUM(C7:Z7) -> -2317.489217
B8: RPPTOUMID | C8: ='I2 Input 01 Trueup Sett '!Z8 -> 36355.59188 | D8: ='I3 Input Rev 01 Init'!C9 -> -26996.57504 | E8: ='I4 Input 02 Trueup Sett'!Z8 -> 24669.99071 | F8: ='I5 Input Rev 02 Init'!C9 -> -38027.28255 | G8: ='I6 Input 03 Trueup Sett'!Z8 -> 26024.3458 | H8: ='I7 Input Rev 03 Init'!C9 -> -27947.70745 | I8: ='I8 Input 04 Trueup Sett'!Z8 -> 15468.63864 | J8: ='I9 Input Rev 04 Init'!C9 -> -25649.97104 | K8: ='I10 Input 05 Trueup Sett'!Z8 -> 14035.50229 | L8: ='I11 Input Rev 05 Init'!C9 -> -13795.09151 | M8: ='I12 Input 06 Trueup Sett'!Z8 -> 13241.0186 | N8: ='I13 Input Rev 06 Init'!C9 -> -21542.89071 | O8: ='I14 Input 07 Trueup Sett'!Z8 -> 67046.94869 | P8: ='I15 Input Rev 07 Init'!C9 -> -14520.29104 | Q8: ='I16 Input 08 Trueup Sett'!Z8 -> 52774.66899 | R8: ='I17 Input Rev 08 Init'!C9 -> -34305.49605 | S8: ='I18 Input 09 Trueup Sett'!Z8 -> 24557.45124 | T8: ='I19 Input Rev 09 Init'!C9 -> -43579.18606 | U8: ='I20 Input 10 Trueup Sett'!Z8 -> 9386.039533 | V8: ='I21 Input Rev 10 Init'!C9 -> -30714.20653 | W8: ='I22 Input 11 Trueup Sett'!Z8 -> 4522.420161 | X8: ='I23 Input Rev 11 Init'!C9 -> -18763.97906 | Y8: ='I24 Input 12 Trueup Sett'!Z8 -> 38633.14522 | Z8: ='I25 Input Rev 12 Init'!C9 -> -7348.118312 | AA8: 23524.96642
B9: RPPTOUOFF | C9: ='I2 Input 01 Trueup Sett '!Z9 -> -128078.0765 | D9: ='I3 Input Rev 01 Init'!C10 -> 140549.8684 | E9: ='I4 Input 02 Trueup Sett'!Z9 -> -144257.9204 | F9: ='I5 Input Rev 02 Init'!C10 -> 145498.5376 | G9: ='I6 Input 03 Trueup Sett'!Z9 -> -177103.1352 | H9: ='I7 Input Rev 03 Init'!C10 -> 171632.0809 | I9: ='I8 Input 04 Trueup Sett'!Z9 -> -155105.9234 | J9: ='I9 Input Rev 04 Init'!C10 -> 158579.084 | K9: ='I10 Input 05 Trueup Sett'!Z9 -> -138101.6484 | L9: ='I11 Input Rev 05 Init'!C10 -> 124418.6798 | M9: ='I12 Input 06 Trueup Sett'!Z9 -> -86381.10229 | N9: ='I13 Input Rev 06 Init'!C10 -> 164022.2785 | O9: ='I14 Input 07 Trueup Sett'!Z9 -> -220904.7229 | P9: ='I15 Input Rev 07 Init'!C10 -> 119727.9722 | Q9: ='I16 Input 08 Trueup Sett'!Z9 -> -83681.51437 | R9: ='I17 Input Rev 08 Init'!C10 -> 117694.6743 | S9: ='I18 Input 09 Trueup Sett'!Z9 -> -141089.5916 | T9: ='I19 Input Rev 09 Init'!C10 -> 120877.4693 | U9: ='I20 Input 10 Trueup Sett'!Z9 -> -166494.88 | V9: ='I21 Input Rev 10 Init'!C10 -> 113422.134 | W9: ='I22 Input 11 Trueup Sett'!Z9 -> -195195.4563 | X9: ='I23 Input Rev 11 Init'!C10 -> 131009.2373 | Y9: ='I24 Input 12 Trueup Sett'!Z9 -> -131992.0904 | Z9: ='I25 Input Rev 12 Init'!C10 -> 183552.2579 | AA9: -77401.7876
B10: RPPTOUON | C10: ='I2 Input 01 Trueup Sett '!Z10 -> 117029.2162 | D10: ='I3 Input Rev 01 Init'!C11 -> -102733.1622 | E10: ='I4 Input 02 Trueup Sett'!Z10 -> 98983.98636 | F10: ='I5 Input Rev 02 Init'!C11 -> -124766.9993 | G10: ='I6 Input 03 Trueup Sett'!Z10 -> 110231.0249 | H10: ='I7 Input Rev 03 Init'!C11 -> -114484.6809 | I10: ='I8 Input 04 Trueup Sett'!Z10 -> 81847.98511 | J10: ='I9 Input Rev 04 Init'!C11 -> -103487.2679 | K10: ='I10 Input 05 Trueup Sett'!Z10 -> 73943.57265 | L10: ='I11 Input Rev 05 Init'!C11 -> -68224.48965 | M10: ='I12 Input 06 Trueup Sett'!Z10 -> 57558.14001 | N10: ='I13 Input Rev 06 Init'!C11 -> -98778.75216 | O10: ='I14 Input 07 Trueup Sett'!Z10 -> 234344.8526 | P10: ='I15 Input Rev 07 Init'!C11 -> -70250.44741 | Q10: ='I16 Input 08 Trueup Sett'!Z10 -> 155068.6659 | R10: ='I17 Input Rev 08 Init'!C11 -> -120097.1254 | S10: ='I18 Input 09 Trueup Sett'!Z10 -> 103751.6921 | T10: ='I19 Input Rev 09 Init'!C11 -> -147490.7979 | U10: ='I20 Input 10 Trueup Sett'!Z10 -> 73612.76635 | V10: ='I21 Input Rev 10 Init'!C11 -> -112325.1459 | W10: ='I22 Input 11 Trueup Sett'!Z10 -> 77696.42324 | X10: ='I23 Input Rev 11 Init'!C11 -> -81543.2706 | Y10: ='I24 Input 12 Trueup Sett'!Z10 -> 123587.1187 | Z10: ='I25 Input Rev 12 Init'!C11 -> -76855.57349 | AA10: 86617.73143
B11: RPPULOMID
B12: RPPULOOFF
B13: RPPULOON
B14: RPPULOOVN
B15: Total RPP For Settlement | C15: =SUM(C6:C14) -> 26368.13237 | D15: =SUM(D6:D14) -> 10920.31215 | E15: -26937.41011 | F15: -17529.53218 | G15: -49143.97936 | H15: 36861.17582 | I15: -69904.1635 | J15: 37274.23808 | K15: -61019.7501 | L15: 54383.95016 | M15: -18634.45631 | N15: 51809.18475 | O15: 88228.07744 | P15: 28592.46825 | Q15: 135296.1977 | R15: -31246.82771 | S15: -15350.5365 | T15: -78807.55447 | U15: -96974.38745 | V15: -27778.26236 | W15: -132050.8497 | X15: 42418.2618 | Y15: 34036.03959 | Z15: 116341.2315 | AA15: 37151.55987
D16: =C15+D15 -> 37288.44452 | F16: =E15+F15 -> -44466.9423 | H16: =G15+H15 -> -12282.80354 | J16: =I15+J15 -> -32629.92542 | L16: =K15+L15 -> -6635.799933 | N16: =M15+N15 -> 33174.72844 | P16: =O15+P15 -> 116820.5457 | R16: =Q15+R15 -> 104049.37 | T16: =S15+T15 -> -94158.09097 | V16: =U15+V15 -> -124752.6498 | X16: =W15+X15 -> -89632.58786 | Z16: =Y15+Z15 -> 150377.2711
B18: Total RPP kWh For Settlement Reported
B19: Tier 1 | C19: ='I2 Input 01 Trueup Sett '!V6 -> 835147.0742 | D19: =-'I3 Input Rev 01 Init'!B7 -> -872058.1 | E19: ='I4 Input 02 Trueup Sett'!V6 -> 665148.6643 | F19: =-'I5 Input Rev 02 Init'!B7 -> -836711.71 | G19: ='I6 Input 03 Trueup Sett'!V6 -> 783340.002 | H19: =-'I7 Input Rev 03 Init'!B7 -> -735652.99 | I19: ='I8 Input 04 Trueup Sett'!V6 -> 660899.1844 | J19: =-'I9 Input Rev 04 Init'!B7 -> -776603.25 | K19: ='I10 Input 05 Trueup Sett'!V6 -> 575653.3429 | L19: =-'I11 Input Rev 05 Init'!B7 -> -613098.47 | M19: ='I12 Input 06 Trueup Sett'!V6 -> 356893.8631 | N19: =-'I13 Input Rev 06 Init'!B7 -> -534117.77 | O19: ='I14 Input 07 Trueup Sett'!V6 -> 936556.9823 | P19: =-'I15 Input Rev 07 Init'!B7 -> -566196.67 | Q19: ='I16 Input 08 Trueup Sett'!V6 -> 513197.2227 | R19: =-'I17 Input Rev 08 Init'!B7 -> -490529.65 | S19: ='I18 Input 09 Trueup Sett'!V6 -> 502885.4533 | T19: =-'I19 Input Rev 09 Init'!B7 -> -538065.73 | U19: ='I20 Input 10 Trueup Sett'!V6 -> 499277.6079 | V19: =-'I21 Input Rev 10 Init'!B7 -> -499628.56 | W19: ='I22 Input 11 Trueup Sett'!V6 -> 641698.1082 | X19: =-'I23 Input Rev 11 Init'!B7 -> -460106.31 | Y19: ='I24 Input 12 Trueup Sett'!V6 -> 674882.7664 | Z19: =-'I25 Input Rev 12 Init'!B7 -> -626917.16 | AA19: =SUM(C19:Z19) -> 95893.90157
B20: Tier 2 | C20: ='I2 Input 01 Trueup Sett '!V7 -> 595494.1645 | D20: =-'I3 Input Rev 01 Init'!B8 -> -474243.62 | E20: ='I4 Input 02 Trueup Sett'!V7 -> 538093.4696 | F20: =-'I5 Input Rev 02 Init'!B8 -> -618657.95 | G20: ='I6 Input 03 Trueup Sett'!V7 -> 553039.7924 | H20: =-'I7 Input Rev 03 Init'!B8 -> -634978.39 | I20: ='I8 Input 04 Trueup Sett'!V7 -> 402897.1797 | J20: =-'I9 Input Rev 04 Init'!B8 -> -521206.56 | K20: ='I10 Input 05 Trueup Sett'!V7 -> 437081.3222 | L20: =-'I11 Input Rev 05 Init'!B8 -> -418130.11 | M20: ='I12 Input 06 Trueup Sett'!V7 -> 283798.6508 | N20: =-'I13 Input Rev 06 Init'!B8 -> -411441.25 | O20: ='I14 Input 07 Trueup Sett'!V7 -> 1035515.438 | P20: =-'I15 Input Rev 07 Init'!B8 -> -2096342.87 | Q20: ='I16 Input 08 Trueup Sett'!V7 -> 616737.7465 | R20: =-'I17 Input Rev 08 Init'!B8 -> -1057503.91 | S20: ='I18 Input 09 Trueup Sett'!V7 -> 519415.6473 | T20: =-'I19 Input Rev 09 Init'!B8 -> -568954.53 | U20: ='I20 Input 10 Trueup Sett'!V7 -> 495487.9661 | V20: =-'I21 Input Rev 10 Init'!B8 -> -551543.53 | W20: ='I22 Input 11 Trueup Sett'!V7 -> 472592.5616 | X20: =-'I23 Input Rev 11 Init'!B8 -> -452932.02 | Y20: ='I24 Input 12 Trueup Sett'!V7 -> 636984.9552 | Z20: =-'I25 Input Rev 12 Init'!B8 -> -504296.82 | AA20: =SUM(C20:Z20) -> -1723092.666
B21: TOU Off-peak | C21: ='I2 Input 01 Trueup Sett '!V8 -> 1555539.751 | D21: =-'I3 Input Rev 01 Init'!B9 -> -1471051.07 | E21: ='I4 Input 02 Trueup Sett'!V8 -> 1464492.952 | F21: =-'I5 Input Rev 02 Init'!B9 -> -1685001.66 | G21: ='I6 Input 03 Trueup Sett'!V8 -> 1699149.075 | H21: =-'I7 Input Rev 03 Init'!B9 -> -1706466.08 | I21: ='I8 Input 04 Trueup Sett'!V8 -> 1369933.072 | J21: =-'I9 Input Rev 04 Init'!B9 -> -1576223.52 | K21: ='I10 Input 05 Trueup Sett'!V8 -> 1261989.793 | L21: =-'I11 Input Rev 05 Init'!B9 -> -1120742.11 | M21: ='I12 Input 06 Trueup Sett'!V8 -> 873321.6165 | N21: =-'I13 Input Rev 06 Init'!B9 -> -1618638.45 | O21: ='I14 Input 07 Trueup Sett'!V8 -> 2991764.363 | P21: =-'I15 Input Rev 07 Init'!B9 -> -1104120.66 | Q21: ='I16 Input 08 Trueup Sett'!V8 -> 1748121.892 | R21: =-'I17 Input Rev 08 Init'!B9 -> -1578672.59 | S21: ='I18 Input 09 Trueup Sett'!V8 -> 1499306.896 | T21: =-'I19 Input Rev 09 Init'!B9 -> -1789625.62 | U21: ='I20 Input 10 Trueup Sett'!V8 -> 1327638.311 | V21: =-'I21 Input Rev 10 Init'!B9 -> -1448830.16 | W21: ='I22 Input 11 Trueup Sett'!V8 -> 1441706.671 | X21: =-'I23 Input Rev 11 Init'!B9 -> -1301901.31 | Y21: ='I24 Input 12 Trueup Sett'!V8 -> 1657899.124 | Z21: =-'I25 Input Rev 12 Init'!B9 -> -1438940.95 | AA21: 1050649.337
B22: TOU Mid-peak | C22: ='I2 Input 01 Trueup Sett '!V9 -> 5921824.149 | D22: =-'I3 Input Rev 01 Init'!B10 -> -5291773.94 | E22: ='I4 Input 02 Trueup Sett'!V9 -> 5123815.348 | F22: =-'I5 Input Rev 02 Init'!B10 -> -6485336.08 | G22: ='I6 Input 03 Trueup Sett'!V9 -> 5966196.991 | H22: =-'I7 Input Rev 03 Init'!B10 -> -5994148.81 | I22: ='I8 Input 04 Trueup Sett'!V9 -> 4601370.789 | J22: =-'I9 Input Rev 04 Init'!B10 -> -5520223.68 | K22: ='I10 Input 05 Trueup Sett'!V9 -> 4081864.688 | L22: =-'I11 Input Rev 05 Init'!B10 -> -3808715.09 | M22: ='I12 Input 06 Trueup Sett'!V9 -> 2894908.975 | N22: =-'I13 Input Rev 06 Init'!B10 -> -5184203.71 | O22: ='I14 Input 07 Trueup Sett'!V9 -> 9779043.563 | P22: =-'I15 Input Rev 07 Init'!B10 -> -3760446.96 | Q22: ='I16 Input 08 Trueup Sett'!V9 -> 5650015.57 | R22: =-'I17 Input Rev 08 Init'!B10 -> -5058417.33 | S22: ='I18 Input 09 Trueup Sett'!V9 -> 4929617.851 | T22: =-'I19 Input Rev 09 Init'!B10 -> -5853988.25 | U22: ='I20 Input 10 Trueup Sett'!V9 -> 4389485.4 | V22: =-'I21 Input Rev 10 Init'!B10 -> -4765582.93 | W22: ='I22 Input 11 Trueup Sett'!V9 -> 4662723.276 | X22: =-'I23 Input Rev 11 Init'!B10 -> -4283137.39 | Y22: ='I24 Input 12 Trueup Sett'!V9 -> 6083368.116 | Z22: =-'I25 Input Rev 12 Init'!B10 -> -4601130.55 | AA22: 3477129.995
B23: TOU On-peak | C23: ='I2 Input 01 Trueup Sett '!V10 -> 1662839.275 | D23: =-'I3 Input Rev 01 Init'!B11 -> -1571445.95 | E23: ='I4 Input 02 Trueup Sett'!V10 -> 1550334.966 | F23: =-'I5 Input Rev 02 Init'!B11 -> -1793121.96 | G23: ='I6 Input 03 Trueup Sett'!V10 -> 1768847.43 | H23: =-'I7 Input Rev 03 Init'!B11 -> -1806448.94 | I23: ='I8 Input 04 Trueup Sett'!V10 -> 1402014.429 | J23: =-'I9 Input Rev 04 Init'!B11 -> -1635743.42 | K23: ='I10 Input 05 Trueup Sett'!V10 -> 1254712.091 | L23: =-'I11 Input Rev 05 Init'!B11 -> -1149919.73 | M23: ='I12 Input 06 Trueup Sett'!V10 -> 911274.8318 | N23: =-'I13 Input Rev 06 Init'!B11 -> -1620646.94 | O23: ='I14 Input 07 Trueup Sett'!V10 -> 3328216.144 | P23: =-'I15 Input Rev 07 Init'!B11 -> -1148671.65 | Q23: ='I16 Input 08 Trueup Sett'!V10 -> 1983221.762 | R23: =-'I17 Input Rev 08 Init'!B11 -> -1722317.74 | S23: ='I18 Input 09 Trueup Sett'!V10 -> 1611542.634 | T23: =-'I19 Input Rev 09 Init'!B11 -> -2038500.94 | U23: ='I20 Input 10 Trueup Sett'!V10 -> 1336675.418 | V23: =-'I21 Input Rev 10 Init'!B11 -> -1623233.34 | W23: ='I22 Input 11 Trueup Sett'!V10 -> 1519362.704 | X23: =-'I23 Input Rev 11 Init'!B11 -> -1306469.65 | Y23: ='I24 Input 12 Trueup Sett'!V10 -> 1733255.375 | Z23: =-'I25 Input Rev 12 Init'!B11 -> -1447159.67 | AA23: 1198617.13
W24: ='I22 Input 11 Trueup Sett'!V11 -> 0 | Y24: ='I24 Input 12 Trueup Sett'!V11 -> 0 | AA24: 0
W25: ='I22 Input 11 Trueup Sett'!V12 -> 0 | Y25: ='I24 Input 12 Trueup Sett'!V12 -> 0 | AA25: 0
W26: ='I22 Input 11 Trueup Sett'!V13 -> 0 | Y26: ='I24 Input 12 Trueup Sett'!V13 -> 0 | AA26: 0
W27: ='I22 Input 11 Trueup Sett'!V14 -> 0 | Y27: ='I24 Input 12 Trueup Sett'!V14 -> 0 | AA27: 0
B28: Total RPP For Settlement | C28: =SUM(C19:C27) -> 10570844.41 | D28: -9680572.68 | E28: 9341885.399 | F28: -11418829.36 | G28: 10770573.29 | H28: -10877695.21 | I28: 8437114.654 | J28: -10030000.43 | K28: 7611301.237 | L28: -7110605.51 | M28: 5320197.937 | N28: -9369048.12 | O28: 18071096.49 | P28: -8675778.81 | Q28: 10511294.19 | R28: -9907441.22 | S28: 9062768.482 | T28: -10789135.07 | U28: 8048564.703 | V28: -8888818.52 | W28: =SUM(W19:W27) -> 8738083.321 | X28: =SUM(X19:X27) -> -7804546.68 | Y28: =SUM(Y19:Y27) -> 10786390.34 | Z28: =SUM(Z19:Z27) -> -8618445.15 | AA28: =SUM(AA19:AA27) -> 4099197.697
D29: =C28+D28 -> 890271.7337 | F29: =E28+F28 -> -2076943.961 | H29: =G28+H28 -> -107121.9196 | J29: =I28+J28 -> -1592885.776 | L29: =K28+L28 -> 500695.7267 | N29: =M28+N28 -> -4048850.183 | P29: =O28+P28 -> 9395317.68 | R29: =Q28+R28 -> 603852.9737 | T29: =S28+T28 -> -1726366.588 | V29: =U28+V28 -> -840253.8173 | X29: =W28+X28 -> 933536.641 | Z29: =Y28+Z28 -> 2167945.186

Sheet I1a ER Summary
AR3: MAB
B4: kWh Volumes | C4: $ RPP Revenue | D4: $ RPP Energy | E4: $ GA | F4: $ RPP Settlement | G4: Rev RPP Settlement | H4: Net RPP Sett | J4: IESO Energy kWh | K4: IESO Energy Cost | L4: FIT/mFIT kWh | M4: FIT/mFIT kWh | N4: Total Energy kWh | O4: Total Energy Cost | Q4: CT 148 | S4: Wholesale kWh | T4: Retail kWh | U4: Diff kWh | V4: Diff % | X4: RPP kWh | Y4: COP kWh | Z4: Diff kWh | AA4: Diff % | AC4: RPP/WHSL | AE4: Energy Purchases | AF4: Energy Revenue | AG4: RPP Revenue | AH4: Non RPP Revenue | AJ4: RPP kWh | AK4: Non RPP kWh | AL4: Total kWh | AN4: Class A kWh | AP4: Non RPP Class B | AR4: Class B | AS4: Diff
A5: =Admin!B8 -> 201601 | B5: ='I2 Input 01 Trueup Sett '!V15 -> 10570844.41 | C5: ='I2 Input 01 Trueup Sett '!W15 -> 1133381.444 | D5: ='I2 Input 01 Trueup Sett '!X15 -> 136609.7626 | E5: ='I2 Input 01 Trueup Sett '!Y15 -> 970403.5494 | F5: ='I2 Input 01 Trueup Sett '!Z15 -> 26368.13237 | G5: ='I3 Input Rev 01 Init'!C12 -> 10920.31215 | H5: =F5+G5 -> 37288.44452 | J5: ='I2 Input 01 Trueup Sett '!C10 -> 22375444.29 | K5: ='I2 Input 01 Trueup Sett '!D10 -> 311310.9 | L5: =N5-J5 -> 102901.71 | M5: =O5-K5 -> 1416.32 | N5: ='I2 Input 01 Trueup Sett '!C11 -> 22478346 | O5: ='I2 Input 01 Trueup Sett '!D11 -> 312727.22 | Q5: ='I2 Input 01 Trueup Sett '!B65 -> 2053943.11 | S5: ='I2 Input 01 Trueup Sett '!$C$11 -> 22478346 | T5: ='I2 Input 01 Trueup Sett '!$C$30 -> 23688758.9 | U5: =S5-T5 -> -1210412.904 | V5: =T5/S5-1 -> 0.05384795233 | X5: =SUM('I2 Input 01 Trueup Sett '!C20:C25) -> 11140062.74 | Y5: ='I2 Input 01 Trueup Sett '!C41 -> 11157418.15 | Z5: =X5-Y5 -> -17355.41002 | AA5: =Y5/X5-1 -> 0.001557927494 | AC5: =X5/S5 -> 0.4955908562 | AE5: ='I2 Input 01 Trueup Sett '!D11 -> 312727.22 | AF5: ='I2 Input 01 Trueup Sett '!D30 -> 1350078.398 | AG5: =C5 -> 1133381.444 | AH5: =AF5-AG5 -> 216696.9535 | AJ5: =X5 -> 11140062.74 | AK5: =T5-X5 -> 12548696.16 | AL5: =SUM(AJ5:AK5) -> 23688758.9 | AN5: ='I2 Input 01 Trueup Sett '!B57 -> 0 | AP5: =AK5-AN5 -> 12548696.16 | AR5: 6766968.728 | AS5: =AP5-AR5 -> 5781727.437 | AU5: =X5 -> 11140062.74 | AV5: ='I2 Input 01 Trueup Sett '!V15 -> 10570844.41 | AW5: =AV5/AU5-1 -> -0.0510965099
A6: =A5+1 -> 201602 | B6: ='I4 Input 02 Trueup Sett'!V15 -> 9341885.399 | C6: ='I4 Input 02 Trueup Sett'!W15 -> 1012306.17 | D6: ='I4 Input 02 Trueup Sett'!X15 -> 119067.8328 | E6: ='I4 Input 02 Trueup Sett'!Y15 -> 920175.7475 | F6: ='I4 Input 02 Trueup Sett'!Z15 -> -26937.41011 | G6: ='I5 Input Rev 02 Init'!C12 -> -17529.53218 | H6: =F6+G6 -> -44466.9423 | J6: ='I4 Input 02 Trueup Sett'!C10 -> 21018846.63 | K6: ='I4 Input 02 Trueup Sett'!D10 -> 267674.91 | L6: =N6-J6 -> 176282.19 | M6: =O6-K6 -> 1262.58 | N6: ='I4 Input 02 Trueup Sett'!C11 -> 21195128.82 | O6: ='I4 Input 02 Trueup Sett'!D11 -> 268937.49 | Q6: ='I4 Input 02 Trueup Sett'!B77 -> 2070609.21 | S6: ='I4 Input 02 Trueup Sett'!C11 -> 21195128.82 | T6: ='I4 Input 02 Trueup Sett'!C30 -> 23560068.77 | U6: =S6-T6 -> -2364939.955 | V6: =T6/S6-1 -> 0.1115794094 | X6: =SUM('I4 Input 02 Trueup Sett'!C20:C25) -> 10384247.45 | Y6: ='I4 Input 02 Trueup Sett'!C44 -> 10371004.97 | Z6: =X6-Y6 -> 13242.48266 | AA6: =Y6/X6-1 -> -0.001275247216 | AC6: =X6/S6 -> 0.4899355669 | AE6: ='I4 Input 02 Trueup Sett'!D11 -> 268937.49 | AF6: ='I4 Input 02 Trueup Sett'!D30 -> 1288821.629 | AG6: 1012306.17 | AH6: =AF6-AG6 -> 276515.4593 | AJ6: =X6 -> 10384247.45 | AK6: =T6-X6 -> 13175821.32 | AL6: =SUM(AJ6:AK6) -> 23560068.77 | AN6: ='I4 Input 02 Trueup Sett'!B64 -> 0 | AP6: =AK6-AN6 -> 13175821.32 | AR6: 6189134.882 | AS6: 6986686.438 | AU6: =X6 -> 10384247.45 | AV6: ='I4 Input 02 Trueup Sett'!V15 -> 9341885.399 | AW6: =AV6/AU6-1 -> -0.1003791618
A7: =A6+1 -> 201603 | B7: ='I6 Input 03 Trueup Sett'!V15 -> 10770573.29 | C7: ='I6 Input 03 Trueup Sett'!W15 -> 1163944.699 | D7: ='I6 Input 03 Trueup Sett'!X15 -> 70330.88939 | E7: ='I6 Input 03 Trueup Sett'!Y15 -> 1142757.789 | F7: ='I6 Input 03 Trueup Sett'!Z15 -> -49143.97936 | G7: ='I7 Input Rev 03 Init'!C12 -> 36861.17582 | H7: =F7+G7 -> -12282.80354 | J7: ='I6 Input 03 Trueup Sett'!C10 -> 20957335.35 | K7: ='I6 Input 03 Trueup Sett'!D10 -> 123433.39 | L7: 281137.93 | M7: 1090.23 | N7: ='I6 Input 03 Trueup Sett'!C11 -> 21238473.28 | O7: ='I6 Input 03 Trueup Sett'!D11 -> 124523.62 | Q7: ='I6 Input 03 Trueup Sett'!B76 -> 2223420.55 | S7: ='I6 Input 03 Trueup Sett'!C11 -> 21238473.28 | T7: ='I6 Input 03 Trueup Sett'!C30 -> 19608161.77 | U7: 1630311.51 | V7: -0.07676218007 | X7: =SUM('I6 Input 03 Trueup Sett'!C20:C25) -> 9943800.604 | Y7: ='I6 Input 03 Trueup Sett'!C44 -> 9993691.621 | Z7: -49891.0165 | AA7: 0.005017298565 | AC7: 0.468197524 | AE7: ='I6 Input 03 Trueup Sett'!D11 -> 124523.62 | AF7: ='I6 Input 03 Trueup Sett'!D30 -> 1122944.293 | AG7: 1163944.699 | AH7: -41000.40645 | AJ7: 9943800.604 | AK7: 9664361.166 | AL7: 19608161.77 | AN7: ='I6 Input 03 Trueup Sett'!B64 -> 0 | AP7: 9664361.166 | AR7: 6799351.878 | AS7: 2865009.288 | AU7: 9943800.604 | AV7: ='I6 Input 03 Trueup Sett'!V15 -> 10770573.29 | AW7: =AV7/AU7-1 -> 0.08314453591
A8: 201604 | B8: ='I8 Input 04 Trueup Sett'!V15 -> 8437114.654 | C8: ='I8 Input 04 Trueup Sett'!W15 -> 919143.0485 | D8: ='I8 Input 04 Trueup Sett'!X15 -> 49996.34137 | E8: ='I8 Input 04 Trueup Sett'!Y15 -> 939050.8706 | F8: ='I8 Input 04 Trueup Sett'!Z15 -> -69904.1635 | G8: ='I9 Input Rev 04 Init'!C12 -> 37274.23808 | H8: -32629.92542 | J8: ='I8 Input 04 Trueup Sett'!C10 -> 19123126.94 | K8: ='I8 Input 04 Trueup Sett'!D10 -> 116923.93 | L8: 423236.05 | M8: 2314.27 | N8: ='I8 Input 04 Trueup Sett'!C11 -> 19546362.99 | O8: ='I8 Input 04 Trueup Sett'!D11 -> 119238.2 | Q8: ='I8 Input 04 Trueup Sett'!B76 -> 2128921.64 | S8: ='I8 Input 04 Trueup Sett'!C11 -> 19546362.99 | T8: ='I8 Input 04 Trueup Sett'!C30 -> 21109791.81 | U8: -1563428.815 | V8: 0.07998566362 | X8: =SUM('I8 Input 04 Trueup Sett'!C20:C25) -> 9111962.868 | Y8: ='I8 Input 04 Trueup Sett'!C44 -> 7533748.288 | Z8: 1578214.581 | AA8: -0.1732024816 | AC8: 0.4661717821 | AE8: ='I8 Input 04 Trueup Sett'!D11 -> 119238.2 | AF8: ='I8 Input 04 Trueup Sett'!D30 -> 1063588.104 | AG8: 919143.0485 | AH8: 144445.056 | AJ8: 9111962.868 | AK8: 11997828.94 | AL8: 21109791.81 | AN8: ='I8 Input 04 Trueup Sett'!B64 -> 0 | AP8: 11997828.94 | AR8: 5857784.718 | AS8: 6140044.219 | AU8: 9111962.868 | AV8: ='I8 Input 04 Trueup Sett'!V15 -> 8437114.654 | AW8: =AV8/AU8-1 -> -0.07406178278
A9: 201605 | B9: ='I10 Input 05 Trueup Sett'!V15 -> 7611301.237 | C9: ='I10 Input 05 Trueup Sett'!W15 -> 854795.8175 | D9: ='I10 Input 05 Trueup Sett'!X15 -> 97600.68461 | E9: ='I10 Input 05 Trueup Sett'!Y15 -> 818214.8829 | F9: ='I10 Input 05 Trueup Sett'!Z15 -> -61019.7501 | G9: ='I11 Input Rev 05 Init'!C12 -> 54383.95016 | H9: -6635.799933 | J9: ='I10 Input 05 Trueup Sett'!C10 -> 18834392.51 | K9: ='I10 Input 05 Trueup Sett'!D10 -> 249307.51 | L9: 506940.3 | M9: 6945.67 | N9: ='I10 Input 05 Trueup Sett'!C11 -> 19341332.81 | O9: ='I10 Input 05 Trueup Sett'!D11 -> 256253.18 | Q9: ='I10 Input 05 Trueup Sett'!B76 -> 2024450.85 | S9: ='I10 Input 05 Trueup Sett'!C11 -> 19341332.81 | T9: ='I10 Input 05 Trueup Sett'!C30 -> 19838362.53 | U9: -497029.7163 | V9: 0.02569780072 | X9: =SUM('I10 Input 05 Trueup Sett'!C20:C25) -> 7806894.939 | Y9: ='I10 Input 05 Trueup Sett'!C44 -> 7791500.761 | Z9: 15394.17779 | AA9: -0.001971869471 | AC9: 0.403637899 | AE9: ='I10 Input 05 Trueup Sett'!D11 -> 256253.18 | AF9: ='I10 Input 05 Trueup Sett'!D30 -> 1033973.612 | AG9: 854795.8175 | AH9: 179177.795 | AJ9: 7806894.939 | AK9: 12031467.59 | AL9: 19838362.53 | AN9: ='I10 Input 05 Trueup Sett'!B64 -> 0 | AP9: 12031467.59 | AR9: 6011389.318 | AS9: 6020078.27 | AU9: 7806894.939 | AV9: ='I10 Input 05 Trueup Sett'!V15 -> 7611301.237 | AW9: -0.02505396883
A10: 201606 | B10: ='I12 Input 06 Trueup Sett'!V15 -> 5320197.937 | C10: ='I12 Input 06 Trueup Sett'!W15 -> 602261.3113 | D10: ='I12 Input 06 Trueup Sett'!X15 -> 112816.8544 | E10: ='I12 Input 06 Trueup Sett'!Y15 -> 508078.9132 | F10: ='I12 Input 06 Trueup Sett'!Z15 -> -18634.45631 | G10: ='I13 Input Rev 06 Init'!C12 -> 51809.18475 | H10: 33174.72844 | J10: ='I12 Input 06 Trueup Sett'!C10 -> 19090270.86 | K10: ='I12 Input 06 Trueup Sett'!D10 -> 389148.02 | L10: 528390.49 | M10: 9575.66 | N10: ='I12 Input 06 Trueup Sett'!C11 -> 19618661.35 | O10: ='I12 Input 06 Trueup Sett'!D11 -> 398723.68 | Q10: ='I12 Input 06 Trueup Sett'!B76 -> 1822728.92 | S10: ='I12 Input 06 Trueup Sett'!C11 -> 19618661.35 | T10: ='I12 Input 06 Trueup Sett'!C30 -> 31454977.16 | U10: -11836315.81 | V10: 0.6033192378 | X10: =SUM('I12 Input 06 Trueup Sett'!C20:C25) -> 8529975.702 | Y10: ='I12 Input 06 Trueup Sett'!C44 -> 8525697.43 | Z10: 4278.271639 | AA10: -0.0005015573067 | AC10: 0.4347888752 | AE10: ='I12 Input 06 Trueup Sett'!D11 -> 398723.68 | AF10: ='I12 Input 06 Trueup Sett'!D30 -> 1423015.479 | AG10: 602261.3113 | AH10: 820754.1674 | AJ10: 8529975.702 | AK10: 22925001.46 | AL10: 31454977.16 | AN10: ='I12 Input 06 Trueup Sett'!B64 -> 0 | AP10: 22925001.46 | AR10: 6142902.903 | AS10: 16782098.56 | AU10: 8529975.702 | AV10: ='I12 Input 06 Trueup Sett'!V15 -> 5320197.937 | AW10: -0.3762938931
A11: 201607 | B11: ='I14 Input 07 Trueup Sett'!V15 -> 18071096.49 | C11: ='I14 Input 07 Trueup Sett'!W15 -> 2066524.601 | D11: ='I14 Input 07 Trueup Sett'!X15 -> 476588.3295 | E11: ='I14 Input 07 Trueup Sett'!Y15 -> 1501708.194 | F11: ='I14 Input 07 Trueup Sett'!Z15 -> 88228.07744 | G11: ='I15 Input Rev 07 Init'!C12 -> 28592.46825 | H11: 116820.5457 | J11: ='I14 Input 07 Trueup Sett'!C10 -> 20652474.45 | K11: ='I14 Input 07 Trueup Sett'!D10 -> 494014.65 | L11: 507872.68 | M11: 13011.66 | N11: ='I14 Input 07 Trueup Sett'!C11 -> 21160347.13 | O11: ='I14 Input 07 Trueup Sett'!D11 -> 507026.31 | Q11: ='I14 Input 07 Trueup Sett'!B76 -> 1715369.82 | S11: ='I14 Input 07 Trueup Sett'!C11 -> 21160347.13 | T11: ='I14 Input 07 Trueup Sett'!C30 -> 12023470.49 | U11: 9136876.642 | V11: -0.4317923797 | X11: =SUM('I14 Input 07 Trueup Sett'!C20:C25) -> 10268134.73 | Y11: ='I14 Input 07 Trueup Sett'!C44 -> 10266726.32 | Z11: 1408.412852 | AA11: -0.0001371634565 | AC11: 0.4852536053 | AE11: ='I14 Input 07 Trueup Sett'!D11 -> 507026.31 | AF11: ='I14 Input 07 Trueup Sett'!D30 -> 1226411.283 | AG11: 2066524.601 | AH11: -840113.3186 | AJ11: 10268134.73 | AK11: 1755335.755 | AL11: 12023470.49 | AN11: ='I14 Input 07 Trueup Sett'!B64 -> 0 | AP11: 1755335.755 | AR11: 6625667.557 | AS11: -4870331.803 | AU11: 10268134.73 | AV11: ='I14 Input 07 Trueup Sett'!V15 -> 18071096.49 | AW11: 0.7599200789
A12: 201608 | B12: ='I16 Input 08 Trueup Sett'!V15 -> 10511294.19 | C12: ='I16 Input 08 Trueup Sett'!W15 -> 1206764.248 | D12: ='I16 Input 08 Trueup Sett'!X15 -> 325166.1731 | E12: ='I16 Input 08 Trueup Sett'!Y15 -> 746301.8777 | F12: ='I16 Input 08 Trueup Sett'!Z15 -> 135296.1977 | G12: ='I17 Input Rev 08 Init'!C12 -> -31246.82771 | H12: 104049.37 | J12: ='I16 Input 08 Trueup Sett'!C10 -> 22763342.92 | K12: ='I16 Input 08 Trueup Sett'!D10 -> 758064.47 | L12: 471360.94 | M12: 18794.84 | N12: ='I16 Input 08 Trueup Sett'!C11 -> 23234703.86 | O12: ='I16 Input 08 Trueup Sett'!D11 -> 776859.31 | Q12: ='I16 Input 08 Trueup Sett'!B76 -> 1616830.01 | S12: ='I16 Input 08 Trueup Sett'!C11 -> 23234703.86 | T12: ='I16 Input 08 Trueup Sett'!C30 -> 23585015.67 | U12: -350311.8098 | V12: 0.01507709381 | X12: =SUM('I16 Input 08 Trueup Sett'!C20:C25) -> 10669773.96 | Y12: ='I16 Input 08 Trueup Sett'!C44 -> 10666073.62 | Z12: 3700.339247 | AA12: -0.0003468057767 | AC12: 0.4592171274 | AE12: ='I16 Input 08 Trueup Sett'!D11 -> 776859.31 | AF12: ='I16 Input 08 Trueup Sett'!D30 -> 1632539.914 | AG12: 1206764.248 | AH12: 425775.6653 | AJ12: 10669773.96 | AK12: 12915241.71 | AL12: 23585015.67 | AN12: ='I16 Input 08 Trueup Sett'!B64 -> 0 | AP12: 12915241.71 | AR12: 6475196.01 | AS12: 6440045.697 | AU12: 10669773.96 | AV12: ='I16 Input 08 Trueup Sett'!V15 -> 10511294.19 | AW12: -0.01485315145
A13: 201609 | B13: ='I18 Input 09 Trueup Sett'!V15 -> 9062768.482 | C13: ='I18 Input 09 Trueup Sett'!W15 -> 1031504.964 | D13: ='I18 Input 09 Trueup Sett'!X15 -> 183173.6886 | E13: ='I18 Input 09 Trueup Sett'!Y15 -> 863681.8121 | F13: ='I18 Input 09 Trueup Sett'!Z15 -> -15350.5365 | G13: ='I19 Input Rev 09 Init'!C12 -> -78807.55447 | H13: -94158.09097 | J13: ='I18 Input 09 Trueup Sett'!C10 -> 19334918.5 | K13: ='I18 Input 09 Trueup Sett'!D10 -> 342227.76 | L13: 437932.45 | M13: 7581.76 | N13: ='I18 Input 09 Trueup Sett'!C11 -> 19772850.95 | O13: ='I18 Input 09 Trueup Sett'!D11 -> 349809.52 | Q13: ='I18 Input 09 Trueup Sett'!B76 -> 1842698.05 | S13: ='I18 Input 09 Trueup Sett'!C11 -> 19772850.95 | T13: ='I18 Input 09 Trueup Sett'!C30 -> 18908256.98 | U13: 864593.9663 | V13: -0.04372631789 | X13: =SUM('I18 Input 09 Trueup Sett'!C20:C25) -> 8666486.986 | Y13: ='I18 Input 09 Trueup Sett'!C44 -> 8700149.585 | Z13: -33662.59924 | AA13: 0.003884226595 | AC13: 0.4383023474 | AE13: ='I18 Input 09 Trueup Sett'!D11 -> 349809.52 | AF13: ='I18 Input 09 Trueup Sett'!D30 -> 1171750.945 | AG13: 1031504.964 | AH13: 140245.9811 | AJ13: 8666486.986 | AK13: 10241770 | AL13: 18908256.98 | AN13: ='I18 Input 09 Trueup Sett'!B64 -> 0 | AP13: 10241770 | AR13: 6202121.122 | AS13: 4039648.875 | AU13: 8666486.986 | AV13: ='I18 Input 09 Trueup Sett'!V15 -> 9062768.482 | AW13: 0.04572573596
A14: 201610 | B14: ='I20 Input 10 Trueup Sett'!V15 -> 8048564.703 | C14: ='I20 Input 10 Trueup Sett'!W15 -> 909114.0307 | D14: ='I20 Input 10 Trueup Sett'!X15 -> 104649.1868 | E14: ='I20 Input 10 Trueup Sett'!Y15 -> 901439.2313 | F14: ='I20 Input 10 Trueup Sett'!Z15 -> -96974.38745 | G14: ='I21 Input Rev 10 Init'!C12 -> -27778.26236 | H14: -124752.6498 | J14: ='I20 Input 10 Trueup Sett'!C10 -> 18686084.74 | K14: ='I20 Input 10 Trueup Sett'!D10 -> 233368.18 | L14: 425117.47 | M14: 4245.24 | N14: ='I20 Input 10 Trueup Sett'!C11 -> 19111202.21 | O14: ='I20 Input 10 Trueup Sett'!D11 -> 237613.42 | Q14: ='I20 Input 10 Trueup Sett'!B76 -> 2097197.84 | S14: ='I20 Input 10 Trueup Sett'!C11 -> 19111202.21 | T14: ='I20 Input 10 Trueup Sett'!C30 -> 19586612.44 | U14: -475410.2301 | V14: 0.02487599811 | X14: =SUM('I20 Input 10 Trueup Sett'!C20:C25) -> 8248780.783 | Y14: ='I20 Input 10 Trueup Sett'!C44 -> 8263851.989 | Z14: -15071.2056 | AA14: 0.001827082814 | AC14: 0.4316201928 | AE14: ='I20 Input 10 Trueup Sett'!D11 -> 237613.42 | AF14: ='I20 Input 10 Trueup Sett'!D30 -> 1071466.91 | AG14: 909114.0307 | AH14: 162352.8789 | AJ14: 8248780.783 | AK14: 11337831.66 | AL14: 19586612.44 | AN14: ='I20 Input 10 Trueup Sett'!B64 -> 0 | AP14: 11337831.66 | AR14: 6145165.96 | AS14: 5192665.697 | AU14: 8248780.783 | AV14: ='I20 Input 10 Trueup Sett'!V15 -> 8048564.703 | AW14: -0.02427220284
A15: 201611 | B15: ='I22 Input 11 Trueup Sett'!V15 -> 8738083.321 | C15: ='I22 Input 11 Trueup Sett'!W15 -> 992723.591 | D15: ='I22 Input 11 Trueup Sett'!X15 -> 154847.1587 | E15: ='I22 Input 11 Trueup Sett'!Y15 -> 969927.282 | F15: ='I22 Input 11 Trueup Sett'!Z15 -> -132050.8497 | G15: ='I23 Input Rev 11 Init'!C12 -> 42418.2618 | H15: -89632.58786 | J15: ='I22 Input 11 Trueup Sett'!C10 -> 19432254.45 | K15: ='I22 Input 11 Trueup Sett'!D10 -> 318401.33 | L15: 290489.01 | M15: 3325.92 | N15: ='I22 Input 11 Trueup Sett'!C11 -> 19722743.46 | O15: ='I22 Input 11 Trueup Sett'!D11 -> 321727.25 | Q15: ='I22 Input 11 Trueup Sett'!B76 -> 2158830.72 | S15: ='I22 Input 11 Trueup Sett'!C11 -> 19722743.46 | T15: ='I22 Input 11 Trueup Sett'!C31 -> 20368368.96 | U15: -645625.4969 | V15: 0.03273507554 | X15: =SUM('I22 Input 11 Trueup Sett'!C20:C25) -> 7455025.981 | Y15: ='I22 Input 11 Trueup Sett'!C44 -> 7872873.224 | Z15: -417847.2424 | AA15: 0.05604906589 | AC15: 0.3779913274 | AE15: ='I22 Input 11 Trueup Sett'!D11 -> 321727.25 | AF15: ='I22 Input 11 Trueup Sett'!D31 -> 1212449.037 | AG15: 992723.591 | AH15: 219725.4461 | AJ15: 7455025.981 | AK15: 12913342.98 | AL15: 20368368.96 | AN15: ='I22 Input 11 Trueup Sett'!B64 -> 0 | AP15: 12913342.98 | AR15: 6209418.74 | AS15: 6703924.236 | AU15: 7455025.981 | AV15: ='I22 Input 11 Trueup Sett'!V15 -> 8738083.321 | AW15: 0.1721063539
A16: 201612 | B16: ='I24 Input 12 Trueup Sett'!V15 -> 10786390.34 | C16: ='I24 Input 12 Trueup Sett'!W15 -> 1206669.003 | D16: ='I24 Input 12 Trueup Sett'!X15 -> 233138.3606 | E16: ='I24 Input 12 Trueup Sett'!Y15 -> 939494.6024 | F16: ='I24 Input 12 Trueup Sett'!Z15 -> 34036.03959 | G16: ='I25 Input Rev 12 Init'!C12 -> 116341.2315 | H16: 150377.2711 | J16: ='I24 Input 12 Trueup Sett'!C10 -> 21463280.49 | K16: ='I24 Input 12 Trueup Sett'!D10 -> 457719.13 | L16: 110870.28 | M16: 1895.88 | N16: ='I24 Input 12 Trueup Sett'!C11 -> 21574150.77 | O16: ='I24 Input 12 Trueup Sett'!D11 -> 459615.01 | Q16: ='I24 Input 12 Trueup Sett'!B76 -> 1868969.17 | S16: ='I24 Input 12 Trueup Sett'!C11 -> 21574150.77 | T16: ='I24 Input 12 Trueup Sett'!C31 -> 21774384.96 | U16: -200234.1899 | V16: 0.009281208428 | X16: =SUM('I24 Input 12 Trueup Sett'!C20:C25) -> 9137158.994 | Y16: ='I24 Input 12 Trueup Sett'!C44 -> 9563504.795 | Z16: -426345.801 | AA16: 0.04666065254 | AC16: 0.4235234606 | AE16: ='I24 Input 12 Trueup Sett'!D11 -> 459615.01 | AF16: ='I24 Input 12 Trueup Sett'!D31 -> 1452438.593 | AG16: 1206669.003 | AH16: 245769.5906 | AJ16: 9137158.994 | AK16: 12637225.97 | AL16: 21774384.96 | AN16: ='I24 Input 12 Trueup Sett'!B64 -> 0 | AP16: 12637225.97 | AR16: 6004138.1 | AS16: 6633087.866 | AU16: 9137158.994 | AV16: ='I24 Input 12 Trueup Sett'!V15 -> 10786390.34 | AW16: 0.1804971702
B17: =SUM(B5:B16) -> 117270114.5 | C17: 13099132.93 | D17: 2063985.262 | E17: 11221234.75 | F17: =SUM(F5:F16) -> -186087.0859 | G17: =SUM(G5:G16) -> 223238.6458 | H17: =SUM(H5:H16) -> 37151.55987 | J17: 243731772.1 | K17: 4061594.18 | L17: 4262531.5 | M17: 71460.03 | N17: 247994303.6 | O17: 4133054.21 | Q17: 23623969.89 | S17: =SUM(S5:S16) -> 247994303.6 | T17: 255506230.4 | U17: -7511926.811 | V17: =T17/S17-1 -> 0.03029072322 | X17: =SUM(X5:X16) -> 111362305.7 | Y17: 110706240.8 | Z17: 656064.99 | AA17: =Y17/X17-1 -> -0.00589126622 | AC17: 0.4490518698 | AE17: =SUM(AE5:AE16) -> 4133054.21 | AF17: 15049478.2 | AG17: 13099132.93 | AH17: 1950345.268 | AJ17: =SUM(AJ5:AJ16) -> 111362305.7 | AK17: 144143924.7 | AL17: 255506230.4 | AN17: 0 | AP17: =SUM(AP5:AP16) -> 144143924.7 | AR17: =SUM(AR5:AR16) -> 75429239.92 | AS17: =SUM(AS5:AS16) -> 68714684.78 | AU17: =SUM(AU5:AU16) -> 111362305.7 | AV17: =SUM(AV5:AV16) -> 117270114.5 | AW17: 0.05305034472
A20: 4705 GA | B20: ='Rec1 1588 Commodity'!F23 -> -461749.3275 | AJ20: =AJ5/AL5 -> 0.4702678931 | AK20: =1-AJ20 -> 0.5297321069
AJ21: =AJ6/AL6 -> 0.4407562454 | AK21: =1-AJ21 -> 0.5592437546
A22: 4707 GA | B22: ='Rec2 1589 Class B'!J23 -> 461749.3275 | AJ22: 0.5071255899 | AK22: 0.4928744101
AJ23: 0.4316462688 | AK23: 0.5683537312
A24: Should Be $0 | B24: =SUM(B20:B23) -> 0 | AE24: =AF24/AF26 -> 0.4537677194 | AF24: =AJ10 -> 8529975.702 | AG24: =AG26*AE24 -> 11199140.33 | AJ24: 0.3935251677 | AK24: 0.6064748323
AE25: =1-AE24 -> 0.5462322806 | AF25: =AJ11 -> 10268134.73 | AG25: =AG26*AE25 -> 13481196.88 | AJ25: 0.2711804767 | AK25: 0.7288195233
A26: (Owed To)/Owed From IESO | B26: =-H17 -> -37151.55987 | AF26: =SUM(AF24:AF25) -> 18798110.44 | AG26: =SUM(AK10:AK11) -> 24680337.22 | AJ26: 0.8540075633 | AK26: 0.1459924367
AJ27: 0.4523963058 | AK27: 0.5476036942
A28: (Owed To)/Owed From Power Consumer | B28: ='Rec1 1588 Commodity'!L20 -> 118723.6796 | AJ28: 0.4583440448 | AK28: 0.5416559552
AJ29: 0.42114382 | AK29: 0.57885618
A30: (Owed To)/Owed From Class B | B30: ='Rec2 1589 Class B'!K20 -> -1011491.45 | AJ30: 0.3660099636 | AK30: 0.6339900364
AJ31: =AJ16/AL16 -> 0.4196287983 | AK31: 0.5803712017
A32: (Owed To)/Owed From | B32: =SUM(B26:B31) -> -929919.3302 | AJ32: 0.4358496681 | AK32: 0.5641503319
A35: Unresolved Difference as % of Expected GA Payments to IESO | B35: ='Rev3 GA Analysis '!D67 -> -0.00400975914
A37: Account 1588 as % of Account 4705 | B37: ='Rev3 GA Analysis '!G99 -> 0.007827142632

Sheet I1b RPP Rates
A3: RPP Rates | P3: RPP Rates Split
B4: =Admin!B8 -> 201601 | C4: =B4+1 -> 201602 | D4: =C4+1 -> 201603 | E4: 201604 | F4: 201605 | G4: 201606 | H4: 201607 | I4: 201608 | J4: 201609 | K4: 201610 | L4: 201611 | M4: 201612 | Q4: =B4 -> 201601 | R4: =Q4+1 -> 201602 | S4: =R4+1 -> 201603 | T4: =S4+1 -> 201604 | U4: =T4+1 -> 201605 | V4: =U4+1 -> 201606 | W4: =V4+1 -> 201607 | X4: =W4+1 -> 201608 | Y4: =X4+1 -> 201609 | Z4: =Y4+1 -> 201610 | AA4: =Z4+1 -> 201611 | AB4: =AA4+1 -> 201612
A5: RPPT1 | B5: ='I2 Input 01 Trueup Sett '!Q6 -> 0.09899009272 | C5: ='I4 Input 02 Trueup Sett'!Q6 -> 0.09899163614 | D5: ='I6 Input 03 Trueup Sett'!Q6 -> 0.09899614469 | E5: ='I8 Input 04 Trueup Sett'!Q6 -> 0.09937891353 | F5: ='I10 Input 05 Trueup Sett'!Q6 -> 0.1024168651 | G5: ='I12 Input 06 Trueup Sett'!Q6 -> 0.1029905401 | H5: ='I14 Input 07 Trueup Sett'!Q6 -> 0.1029893379 | I5: ='I16 Input 08 Trueup Sett'!Q6 -> 0.102989202 | J5: ='I18 Input 09 Trueup Sett'!Q6 -> 0.1029877342 | K5: ='I20 Input 10 Trueup Sett'!Q6 -> 0.1029877974 | L5: ='I22 Input 11 Trueup Sett'!Q6 -> 0.1029915035 | M5: ='I24 Input 12 Trueup Sett'!Q6 -> 0.1029917628 | P5: RPPT1 | Q5: ='I2 Input 01 Trueup Sett '!L18 -> 0.07900476456 | R5: ='I4 Input 02 Trueup Sett'!L18 -> 0.07120068764 | S5: ='I6 Input 03 Trueup Sett'!L18 -> 0.0727296478 | T5: ='I8 Input 04 Trueup Sett'!L18 -> 0.07833236972 | U5: ='I10 Input 05 Trueup Sett'!L18 -> 0.07563139665 | V5: ='I12 Input 06 Trueup Sett'!L18 -> 0.06708281672 | W5: ='I14 Input 07 Trueup Sett'!L18 -> 0.05182623992 | X5: ='I16 Input 08 Trueup Sett'!L18 -> 0.04882340968 | Y5: ='I18 Input 09 Trueup Sett'!L18 -> 0.05548916474 | Z5: ='I20 Input 10 Trueup Sett'!L18 -> 0.06203312346 | AA5: ='I22 Input 11 Trueup Sett'!L18 -> 0.07343694087 | AB5: ='I24 Input 12 Trueup Sett'!L18 -> 0.06256799035
A6: RPPT2 | B6: ='I2 Input 01 Trueup Sett '!Q7 -> 0.1160002689 | C6: ='I4 Input 02 Trueup Sett'!Q7 -> 0.1160001625 | D6: ='I6 Input 03 Trueup Sett'!Q7 -> 0.1160017002 | E6: ='I8 Input 04 Trueup Sett'!Q7 -> 0.1167782836 | F6: ='I10 Input 05 Trueup Sett'!Q7 -> 0.1204004985 | G6: ='I12 Input 06 Trueup Sett'!Q7 -> 0.1209999431 | H6: ='I14 Input 07 Trueup Sett'!Q7 -> 0.1209995632 | I6: ='I16 Input 08 Trueup Sett'!Q7 -> 0.1209995683 | J6: ='I18 Input 09 Trueup Sett'!Q7 -> 0.1209998267 | K6: ='I20 Input 10 Trueup Sett'!Q7 -> 0.1209995225 | L6: ='I22 Input 11 Trueup Sett'!Q7 -> 0.1209999065 | M6: ='I24 Input 12 Trueup Sett'!Q7 -> 0.1209996119 | P6: RPPT2 | Q6: ='I2 Input 01 Trueup Sett '!L19 -> 0.05633364197 | R6: ='I4 Input 02 Trueup Sett'!L19 -> 0.05760009319 | S6: ='I6 Input 03 Trueup Sett'!L19 -> 0.05134729392 | T6: ='I8 Input 04 Trueup Sett'!L19 -> 0.04775295777 | U6: ='I10 Input 05 Trueup Sett'!L19 -> 0.05742530857 | V6: ='I12 Input 06 Trueup Sett'!L19 -> 0.05334362634 | W6: ='I14 Input 07 Trueup Sett'!L19 -> 0.05730230252 | X6: ='I16 Input 08 Trueup Sett'!L19 -> 0.05867381648 | Y6: ='I18 Input 09 Trueup Sett'!L19 -> 0.05731313212 | Z6: ='I20 Input 10 Trueup Sett'!L19 -> 0.06156227655 | AA6: ='I22 Input 11 Trueup Sett'!L19 -> 0.05408423612 | AB6: ='I24 Input 12 Trueup Sett'!L19 -> 0.05905450622
A7: RPPTOUMID | B7: ='I2 Input 01 Trueup Sett '!Q8 -> 0.1280002108 | C7: ='I4 Input 02 Trueup Sett'!Q8 -> 0.1279999398 | D7: ='I6 Input 03 Trueup Sett'!Q8 -> 0.1280010175 | E7: ='I8 Input 04 Trueup Sett'!Q8 -> 0.1284983588 | F7: ='I10 Input 05 Trueup Sett'!Q8 -> 0.1313504075 | G7: ='I12 Input 06 Trueup Sett'!Q8 -> 0.1320002923 | H7: ='I14 Input 07 Trueup Sett'!Q8 -> 0.1320000806 | I7: ='I16 Input 08 Trueup Sett'!Q8 -> 0.1320001495 | J7: ='I18 Input 09 Trueup Sett'!Q8 -> 0.1319999906 | K7: ='I20 Input 10 Trueup Sett'!Q8 -> 0.1320005303 | L7: ='I22 Input 11 Trueup Sett'!Q8 -> 0.1320001538 | M7: ='I24 Input 12 Trueup Sett'!Q8 -> 0.1320001402 | P7: RPPTOUMID | Q7: ='I2 Input 01 Trueup Sett '!L20 -> 0.1471537835 | R7: ='I4 Input 02 Trueup Sett'!L20 -> 0.1567663153 | S7: ='I6 Input 03 Trueup Sett'!L20 -> 0.1577584618 | T7: ='I8 Input 04 Trueup Sett'!L20 -> 0.1623698537 | U7: ='I10 Input 05 Trueup Sett'!L20 -> 0.1658047362 | V7: ='I12 Input 06 Trueup Sett'!L20 -> 0.1641520911 | W7: ='I14 Input 07 Trueup Sett'!L20 -> 0.1655552204 | X7: ='I16 Input 08 Trueup Sett'!L20 -> 0.1663089112 | Y7: ='I18 Input 09 Trueup Sett'!L20 -> 0.1654358599 | Z7: ='I20 Input 10 Trueup Sett'!L20 -> 0.1649534247 | AA7: ='I22 Input 11 Trueup Sett'!L20 -> 0.1649911791 | AB7: ='I24 Input 12 Trueup Sett'!L20 -> 0.1537028674
A8: RPPTOUOFF | B8: ='I2 Input 01 Trueup Sett '!Q9 -> 0.08300037551 | C8: ='I4 Input 02 Trueup Sett'!Q9 -> 0.08300013048 | D8: ='I6 Input 03 Trueup Sett'!Q9 -> 0.083000486 | E8: ='I8 Input 04 Trueup Sett'!Q9 -> 0.0834981962 | F8: ='I10 Input 05 Trueup Sett'!Q9 -> 0.08639570287 | G8: ='I12 Input 06 Trueup Sett'!Q9 -> 0.08699964707 | H8: ='I14 Input 07 Trueup Sett'!Q9 -> 0.08699997197 | I8: ='I16 Input 08 Trueup Sett'!Q9 -> 0.08699994977 | J8: ='I18 Input 09 Trueup Sett'!Q9 -> 0.0869999912 | K8: ='I20 Input 10 Trueup Sett'!Q9 -> 0.08700041698 | L8: ='I22 Input 11 Trueup Sett'!Q9 -> 0.08700032955 | M8: ='I24 Input 12 Trueup Sett'!Q9 -> 0.08700046395 | P8: RPPTOUOFF | Q8: ='I2 Input 01 Trueup Sett '!L21 -> 0.5602035105 | R8: ='I4 Input 02 Trueup Sett'!L21 -> 0.5484776497 | S8: ='I6 Input 03 Trueup Sett'!L21 -> 0.5539349513 | T8: ='I8 Input 04 Trueup Sett'!L21 -> 0.5453725566 | U8: ='I10 Input 05 Trueup Sett'!L21 -> 0.5362899931 | V8: ='I12 Input 06 Trueup Sett'!L21 -> 0.5441355771 | W8: ='I14 Input 07 Trueup Sett'!L21 -> 0.5411427894 | X8: ='I16 Input 08 Trueup Sett'!L21 -> 0.5375185459 | Y8: ='I18 Input 09 Trueup Sett'!L21 -> 0.5439417172 | Z8: ='I20 Input 10 Trueup Sett'!L21 -> 0.5453749285 | AA8: ='I22 Input 11 Trueup Sett'!L21 -> 0.5336093861 | AB8: ='I24 Input 12 Trueup Sett'!L21 -> 0.5639855342
A9: RPPTOUON | B9: ='I2 Input 01 Trueup Sett '!Q10 -> 0.1750076722 | C9: ='I4 Input 02 Trueup Sett'!Q10 -> 0.1750013639 | D9: ='I6 Input 03 Trueup Sett'!Q10 -> 0.1750029071 | E9: ='I8 Input 04 Trueup Sett'!Q10 -> 0.1755856766 | F9: ='I10 Input 05 Trueup Sett'!Q10 -> 0.1791613845 | G9: ='I12 Input 06 Trueup Sett'!Q10 -> 0.1800008356 | H9: ='I14 Input 07 Trueup Sett'!Q10 -> 0.1800011247 | I9: ='I16 Input 08 Trueup Sett'!Q10 -> 0.180001077 | J9: ='I18 Input 09 Trueup Sett'!Q10 -> 0.1800011464 | K9: ='I20 Input 10 Trueup Sett'!Q10 -> 0.1800023385 | L9: ='I22 Input 11 Trueup Sett'!Q10 -> 0.1800008106 | M9: ='I24 Input 12 Trueup Sett'!Q10 -> 0.1800011375 | P9: RPPTOUON | Q9: ='I2 Input 01 Trueup Sett '!L22 -> 0.1573042995 | R9: ='I4 Input 02 Trueup Sett'!L22 -> 0.1659552542 | S9: ='I6 Input 03 Trueup Sett'!L22 -> 0.1642296452 | T9: ='I8 Input 04 Trueup Sett'!L22 -> 0.1661722622 | U9: ='I10 Input 05 Trueup Sett'!L22 -> 0.1648485655 | V9: ='I12 Input 06 Trueup Sett'!L22 -> 0.1712858887 | W9: ='I14 Input 07 Trueup Sett'!L22 -> 0.1841734477 | X9: ='I16 Input 08 Trueup Sett'!L22 -> 0.1886753168 | Y9: ='I18 Input 09 Trueup Sett'!L22 -> 0.1778201261 | Z9: ='I20 Input 10 Trueup Sett'!L22 -> 0.1660762468 | AA9: ='I22 Input 11 Trueup Sett'!L22 -> 0.1738782578 | AB9: ='I24 Input 12 Trueup Sett'!L22 -> 0.1606891018
A10: RPPULOMID | B10: ='I2 Input 01 Trueup Sett '!Q11 -> 0 | C10: ='I4 Input 02 Trueup Sett'!Q11 -> 0 | D10: ='I6 Input 03 Trueup Sett'!Q11 -> 0 | E10: ='I8 Input 04 Trueup Sett'!Q11 -> 0 | F10: ='I10 Input 05 Trueup Sett'!Q11 -> 0 | G10: ='I12 Input 06 Trueup Sett'!Q11 -> 0 | H10: ='I14 Input 07 Trueup Sett'!Q11 -> 0 | I10: ='I16 Input 08 Trueup Sett'!Q11 -> 0 | J10: ='I18 Input 09 Trueup Sett'!Q11 -> 0 | K10: ='I20 Input 10 Trueup Sett'!Q11 -> 0 | L10: ='I22 Input 11 Trueup Sett'!Q11 -> 0 | M10: ='I24 Input 12 Trueup Sett'!Q11 -> 0 | P10: RPPULOMID | Q10: ='I2 Input 01 Trueup Sett '!AF11 -> 0 | R10: ='I4 Input 02 Trueup Sett'!AF11 -> 0 | S10: ='I6 Input 03 Trueup Sett'!AF11 -> 0 | T10: ='I8 Input 04 Trueup Sett'!AF11 -> 0 | U10: ='I10 Input 05 Trueup Sett'!AF11 -> 0 | V10: ='I12 Input 06 Trueup Sett'!AF11 -> 0 | W10: ='I14 Input 07 Trueup Sett'!AF11 -> 0 | X10: ='I16 Input 08 Trueup Sett'!AF11 -> 0 | Y10: ='I18 Input 09 Trueup Sett'!AF11 -> 0 | Z10: ='I20 Input 10 Trueup Sett'!AF11 -> 0 | AA10: ='I22 Input 11 Trueup Sett'!AF11 -> 0 | AB10: ='I24 Input 12 Trueup Sett'!AF11 -> 0
A11: RPPULOOFF | B11: ='I2 Input 01 Trueup Sett '!Q12 -> 0 | C11: ='I4 Input 02 Trueup Sett'!Q12 -> 0 | D11: ='I6 Input 03 Trueup Sett'!Q12 -> 0 | E11: ='I8 Input 04 Trueup Sett'!Q12 -> 0 | F11: ='I10 Input 05 Trueup Sett'!Q12 -> 0 | G11: ='I12 Input 06 Trueup Sett'!Q12 -> 0 | H11: ='I14 Input 07 Trueup Sett'!Q12 -> 0 | I11: ='I16 Input 08 Trueup Sett'!Q12 -> 0 | J11: ='I18 Input 09 Trueup Sett'!Q12 -> 0 | K11: ='I20 Input 10 Trueup Sett'!Q12 -> 0 | L11: ='I22 Input 11 Trueup Sett'!Q12 -> 0 | M11: ='I24 Input 12 Trueup Sett'!Q12 -> 0 | P11: RPPULOOFF | Q11: ='I2 Input 01 Trueup Sett '!AF12 -> 0 | R11: ='I4 Input 02 Trueup Sett'!AF12 -> 0 | S11: ='I6 Input 03 Trueup Sett'!AF12 -> 0 | T11: ='I8 Input 04 Trueup Sett'!AF12 -> 0 | U11: ='I10 Input 05 Trueup Sett'!AF12 -> 0 | V11: ='I12 Input 06 Trueup Sett'!AF12 -> 0 | W11: ='I14 Input 07 Trueup Sett'!AF12 -> 0 | X11: ='I16 Input 08 Trueup Sett'!AF12 -> 0 | Y11: ='I18 Input 09 Trueup Sett'!AF12 -> 0 | Z11: ='I20 Input 10 Trueup Sett'!AF12 -> 0 | AA11: ='I22 Input 11 Trueup Sett'!AF12 -> 0 | AB11: ='I24 Input 12 Trueup Sett'!AF12 -> 0
A12: RPPULOON | B12: ='I2 Input 01 Trueup Sett '!Q13 -> 0 | C12: ='I4 Input 02 Trueup Sett'!Q13 -> 0 | D12: ='I6 Input 03 Trueup Sett'!Q13 -> 0 | E12: ='I8 Input 04 Trueup Sett'!Q13 -> 0 | F12: ='I10 Input 05 Trueup Sett'!Q13 -> 0 | G12: ='I12 Input 06 Trueup Sett'!Q13 -> 0 | H12: ='I14 Input 07 Trueup Sett'!Q13 -> 0 | I12: ='I16 Input 08 Trueup Sett'!Q13 -> 0 | J12: ='I18 Input 09 Trueup Sett'!Q13 -> 0 | K12: ='I20 Input 10 Trueup Sett'!Q13 -> 0 | L12: ='I22 Input 11 Trueup Sett'!Q13 -> 0 | M12: ='I24 Input 12 Trueup Sett'!Q13 -> 0 | P12: RPPULOON | Q12: ='I2 Input 01 Trueup Sett '!AF13 -> 0 | R12: ='I4 Input 02 Trueup Sett'!AF13 -> 0 | S12: ='I6 Input 03 Trueup Sett'!AF13 -> 0 | T12: ='I8 Input 04 Trueup Sett'!AF13 -> 0 | U12: ='I10 Input 05 Trueup Sett'!AF13 -> 0 | V12: ='I12 Input 06 Trueup Sett'!AF13 -> 0 | W12: ='I14 Input 07 Trueup Sett'!AF13 -> 0 | X12: ='I16 Input 08 Trueup Sett'!AF13 -> 0 | Y12: ='I18 Input 09 Trueup Sett'!AF13 -> 0 | Z12: ='I20 Input 10 Trueup Sett'!AF13 -> 0 | AA12: ='I22 Input 11 Trueup Sett'!AF13 -> 0 | AB12: ='I24 Input 12 Trueup Sett'!AF13 -> 0
A13: RPPULOOVN | B13: ='I2 Input 01 Trueup Sett '!Q14 -> 0 | C13: ='I4 Input 02 Trueup Sett'!Q14 -> 0 | D13: ='I6 Input 03 Trueup Sett'!Q14 -> 0 | E13: ='I8 Input 04 Trueup Sett'!Q14 -> 0 | F13: ='I10 Input 05 Trueup Sett'!Q14 -> 0 | G13: ='I12 Input 06 Trueup Sett'!Q14 -> 0 | H13: ='I14 Input 07 Trueup Sett'!Q14 -> 0 | I13: ='I16 Input 08 Trueup Sett'!Q14 -> 0 | J13: ='I18 Input 09 Trueup Sett'!Q14 -> 0 | K13: ='I20 Input 10 Trueup Sett'!Q14 -> 0 | L13: ='I22 Input 11 Trueup Sett'!Q14 -> 0 | M13: ='I24 Input 12 Trueup Sett'!Q14 -> 0 | P13: RPPULOOVN | Q13: ='I2 Input 01 Trueup Sett '!AF14 -> 0 | R13: ='I4 Input 02 Trueup Sett'!AF14 -> 0 | S13: ='I6 Input 03 Trueup Sett'!AF14 -> 0 | T13: ='I8 Input 04 Trueup Sett'!AF14 -> 0 | U13: ='I10 Input 05 Trueup Sett'!AF14 -> 0 | V13: ='I12 Input 06 Trueup Sett'!AF14 -> 0 | W13: ='I14 Input 07 Trueup Sett'!AF14 -> 0 | X13: ='I16 Input 08 Trueup Sett'!AF14 -> 0 | Y13: ='I18 Input 09 Trueup Sett'!AF14 -> 0 | Z13: ='I20 Input 10 Trueup Sett'!AF14 -> 0 | AA13: ='I22 Input 11 Trueup Sett'!AF14 -> 0 | AB13: ='I24 Input 12 Trueup Sett'!AF14 -> 0
Q14: =SUM(Q5:Q13) -> 1 | R14: =SUM(R5:R13) -> 1 | S14: 1 | T14: 1 | U14: 1 | V14: 1 | W14: 1 | X14: 1 | Y14: 1 | Z14: 1 | AA14: 1 | AB14: 1

Sheet I2 Input 01 Trueup Sett (hidden)
A1: Date: | B1: =Admin!B8 -> 201601 | C1: Trueup | K1: ="Data for 1st True up of RPP Settlement based on Actual IESO Invoice" -> Data for 1st True up of RPP Settlement based on Actual IESO Invoice | P1: For Reconciliation
A3: Wholesale Electricty | B3: Year | C3: 2016 | E3: Rate | P3: Actual RPP Revenue and GA
A4: Redshift Wholesale Report.xlsm | B4: dateref | C4: 201601 | K4: Wholesale Volume data per IESO Power Bill: | L4: GA RPP/non-RPP Ratios | M4: GA Volumes | N4: Energy Volumes | P4: =B1 -> 201601
K5: AQEW | M5: =C10 -> 22375444.29 | N5: =+M5 -> 22375444.29 | P5: RPP Revenue Prices | Q5: RPP Rate | R5: Estimated RPP Energy Price | S5: GA actual IESO billed | T5: Total Commodity | U5: Difference | V5: kWh Volumes | W5: $ Estimated RPP Revenue | X5: $ Estimated RPP Energy | Y5: $ Estimated GA | Z5: $ Estimated RPP Settlement
B6: Wholesale | K6: Embedded Generation | M6: =SUM(C8:C9) -> 102901.71 | N6: =+M6 -> 102901.71 | P6: RPPT1 | Q6: =E20 -> 0.09899009272 | R6: =E39 -> 0.01352854798 | S6: =L32 -> 0.09180000305 | T6: =R6+S6 -> 0.105328551 | U6: =+Q6-T6 -> -0.006338458306 | V6: =M18 -> 835147.0742 | W6: =Q6*V6 -> 82671.28631 | X6: =R6*V6 -> 11298.32726 | Y6: =+V6*S6 -> 76666.50396 | Z6: =W6-X6-Y6 -> -5293.544909
B7: Source | C7: kWh | D7: Total Cost | K7: Class A customer Volumes for GA (TLF included) | M7: =-B57 -> 0 | P7: RPPT2 | Q7: =E21 -> 0.1160002689 | R7: =R6 -> 0.01352854798 | S7: =S6 -> 0.09180000305 | T7: =R7+S7 -> 0.105328551 | U7: =+Q7-T7 -> 0.01067171791 | V7: =M19 -> 595494.1645 | W7: =Q7*V7 -> 69077.48323 | X7: =R7*V7 -> 8056.171375 | Y7: =+V7*S7 -> 54666.36612 | Z7: =W7-X7-Y7 -> 6354.945739
B8: FIT | C8: 93942.79 | D8: 1285.79 | E8: =D8/C8 -> 0.01368694713 | M8: =+M5+M6+M7 -> 22478346 | N8: =+N5+N6+N7 -> 22478346 | P8: RPPTOUMID | Q8: =E23 -> 0.1280002108 | R8: =E40 -> 0.01282851833 | S8: =S7 -> 0.09180000305 | T8: 0.1046285214 | U8: 0.02337168939 | V8: 1555539.751 | W8: 199109.4159 | X8: 19955.2702 | Y8: 142798.5539 | Z8: 36355.59188
B9: microFIT | C9: 8958.92 | D9: 130.53 | E9: =D9/C9 -> 0.01456983654 | P9: RPPTOUOFF | Q9: =E24 -> 0.08300037551 | R9: =R8 -> 0.01282851833 | S9: 0.09180000305 | T9: 0.1046285214 | U9: -0.02162814587 | V9: 5921824.149 | W9: 491513.6281 | X9: 75968.22964 | Y9: 543623.475 | Z9: -128078.0765
B10: WHOLESALE | C10: 22375444.29 | D10: 311310.9 | E10: =D10/C10 -> 0.01391306005 | K10: Estimated Retail Volume Revenue Data (TLF Included) | L10: RPP/non-RPP Ratios | M10: GA Volumes | N10: Energy Volumes | P10: RPPTOUON | Q10: 0.1750076722 | R10: =R9 -> 0.01282851833 | S10: 0.09180000305 | T10: 0.1046285214 | U10: 0.07037915086 | V10: 1662839.275 | W10: 291009.6308 | X10: 21331.76412 | Y10: 152648.6505 | Z10: 117029.2162
B11: Grand Total | C11: 22478346 | D11: 312727.22 | K11: Estimated Retail Revenue Data (Net of Retail Billed/Unbilled) | M11: =+M15 -> 22478346 | N11: =+N15 -> 22478346 | P11: RPPULOMID | Q11: 0 | R11: 0 | S11: 0 | T11: 0 | U11: 0 | V11: 0 | W11: 0 | X11: 0 | Y11: 0 | Z11: 0
P12: RPPULOOFF | Q12: 0 | R12: 0 | S12: 0 | T12: 0 | U12: 0 | V12: 0 | W12: 0 | X12: 0 | Y12: 0 | Z12: 0
K13: Estimated RPP Sales Quantities | L13: =SUM(C20:C25)/(C30-B57) -> 0.4702678931 | M13: =M8*L13 -> 10570844.41 | N13: =M13 -> 10570844.41 | P13: RPPULOON | Q13: 0 | R13: 0 | S13: 0 | T13: 0 | U13: 0 | V13: 0 | W13: 0 | X13: 0 | Y13: 0 | Z13: 0
A14: RPP Revenue Volume and Price Data | K14: Estimated non-RPP Sales Quantities | L14: =1-L13 -> 0.5297321069 | M14: =M8*L14 -> 11907501.59 | N14: =N8-N13 -> 11907501.59 | P14: RPPULOOVN | Q14: 0 | R14: 0 | S14: 0 | T14: 0 | U14: 0 | V14: 0 | W14: 0 | X14: 0 | Y14: 0 | Z14: 0
A15: ER Summary.xlsm | B15: bill_year | C15: 2016 | K15: Estimated Retail Revenue kWh Volumes | L15: =+L13+L14 -> 1 | M15: =+M13+M14 -> 22478346 | N15: =+N13+N14 -> 22478346 | V15: =SUM(V6:V14) -> 10570844.41 | W15: =SUM(W6:W14) -> 1133381.444 | X15: =SUM(X6:X14) -> 136609.7626 | Y15: =SUM(Y6:Y14) -> 970403.5494 | Z15: =SUM(Z6:Z14) -> 26368.13237
B16: bill_month | C16: 1 | Z16: =W15-X15-Y15-Z15 -> 0
K17: Estimated RPP Revenue Volume and Price Data | L17: Actual % | M17: kWh Volumes
B18: Row Labels | C18: usagebilled | D18: amountbilled | E18: Rate | K18: RPPT1 | L18: =C20/SUM($C$20:$C$25) -> 0.07900476456 | M18: =$M$13*L18 -> 835147.0742
B19: RPPTIER | K19: RPPT2 | L19: =C21/SUM($C$20:$C$25) -> 0.05633364197 | M19: =$M$13*L19 -> 595494.1645
B20: RPPT1 | C20: 880118.034 | D20: 87122.96579 | E20: =D20/C20 -> 0.09899009272 | K20: RPPTOUMID | L20: =C23/SUM($C$20:$C$25) -> 0.1471537835 | M20: 1555539.751
B21: RPPT2 | C21: 627560.3059 | D21: 72797.16426 | E21: =D21/C21 -> 0.1160002689 | K21: RPPTOUOFF | L21: =C24/SUM($C$20:$C$25) -> 0.5602035105 | M21: 5921824.149
B22: RPPTOU | K22: RPPTOUON | L22: 0.1573042995 | M22: 1662839.275
B23: RPPTOUMID | C23: 1639302.381 | D23: 209831.0503 | E23: 0.1280002108 | K23: RPPULOMID | L23: 0 | M23: 0
B24: RPPTOUOFF | C24: 6240702.254 | D24: 517980.6305 | E24: 0.08300037551 | K24: RPPULOOFF | L24: 0 | M24: 0
B25: RPPTOUON | C25: 1752379.765 | D25: 306679.9036 | E25: 0.1750076722 | K25: RPPULOON | L25: 0 | M25: 0
B26: RETAIL | K26: RPPULOOVN | L26: 0 | M26: 0
B27: NSLS | C27: 4568776.083 | D27: 61344.8374 | E27: 0.01342697394 | L27: =SUM(L18:L26) -> 1 | M27: =SUM(M18:M26) -> 10570844.41
B28: INTERVAL
B29: HOEP | C29: 7979920.082 | D29: 94321.84609 | E29: 0.01181989859
B30: Grand Total | C30: 23688758.9 | D30: 1350078.398
K31: Global Adjustment | L31: per kWh
C32: =C30/C11-1 -> 0.05384795233 | K32: Class B - GA actual8 | L32: =B49/100 -> 0.09180000305 | N32: GA Posted Price
K33: Class B - GA actual IESO billed | L33: =+M33/M8 -> 0.09137429907 | M33: =B65 -> 2053943.11 | N33: GA Billed by IESO CT 148
A34: RPP COP Volume and Price Data
A35: ER COP Summary.xlsm | B35: bill_year | C35: 2016
B36: bill_month | C36: 1
B38: Row Labels | C38: usagebilled | D38: amountbilled | E38: Rate
B39: RPPTIERED | C39: 1504511.271 | D39: 20353.85291 | E39: =D39/C39 -> 0.01352854798
B40: RPPTOU | C40: 9652906.879 | D40: 123832.4928 | E40: 0.01282851833
B41: Grand Total | C41: 11157418.15 | D41: 144186.3457
C43: =SUM(C20:C25)-C41 -> -17355.41002
C44: =C43/C41 -> -0.001555504131
A45: Global Adjustment - Actual
A46: IESO GA Reconciliation.xlsm
A47: ga_actual | B47: year
A48: month | B48: 2016
A49: 201601 | B49: 9.180000305
A51: Class A kWh
A52: Redshift Class A Report.xlsm
A53: Year | B53: 2016
A55: Class A | B55: Value
A56: kWh
A57: =A49 -> 201601 | B57: 0
A59: IESO Class B
A60: IESO Invoice Reconciliation.xlsm
A61: chargetype | B61: 148
A63: Sum of chargeamount | B63: year
A64: month | B64: 2016
A65: 201601 | B65: 2053943.11

Sheet I3 Input Rev 01 Init (hidden)
A1: Reverse IESO Posted
A2: Reverse Previously submitted CT142 By Date Ref.xlsx
A5: =Admin!B8 -> 201601
A6: RPP Revenue Prices | B6: kWh Volumes | C6: $ RPP Settlement
A7: RPPTiered_1 | B7: 872058.1 | C7: 5284.703683
A8: RPPTiered_2 | B8: 474243.62 | C8: -5184.522682
A9: RPPTOU_MID | B9: 1471051.07 | C9: -26996.57504
A10: RPPTOU_OFF | B10: 5291773.94 | C10: 140549.8684
A11: RPPTOU_ON | B11: 1571445.95 | C11: -102733.1622
A12: Grand Total | B12: 9680572.68 | C12: 10920.31215

Sheet I4 Input 02 Trueup Sett (hidden)
A1: Date: | B1: =Admin!B8+1 -> 201602 | C1: Trueup | K1: ="Data for 1st True up of RPP Settlement based on Actual IESO Invoice" -> Data for 1st True up of RPP Settlement based on Actual IESO Invoice | P1: For Reconciliation
A3: Wholesale Electricty | B3: Year | C3: 2016 | E3: Rate | P3: Actual RPP Revenue and GA
B4: dateref | C4: 201602 | K4: Wholesale Volume data per IESO Power Bill: | L4: GA RPP/non-RPP Ratios | M4: GA Volumes | N4: Energy Volumes | P4: =B1 -> 201602
K5: AQEW | M5: =C10 -> 21018846.63 | N5: =+M5 -> 21018846.63 | P5: RPP Revenue Prices | Q5: RPP Rate | R5: Estimated RPP Energy Price | S5: GA actual IESO billed | T5: Total Commodity | U5: Difference | V5: kWh Volumes | W5: $ Estimated RPP Revenue | X5: $ Estimated RPP Energy | Y5: $ Estimated GA | Z5: $ Estimated RPP Settlement
B6: Wholesale | K6: Embedded Generation | M6: =SUM(C8:C9) -> 176282.19 | N6: =+M6 -> 176282.19 | P6: RPPT1 | Q6: =E20 -> 0.09899163614 | R6: =E42 -> 0.01336156373 | S6: =L32 -> 0.09850000381 | T6: =R6+S6 -> 0.1118615675 | U6: =+Q6-T6 -> -0.0128699314 | V6: =M18 -> 665148.6643 | W6: =Q6*V6 -> 65844.15455 | X6: =R6*V6 -> 8887.426266 | Y6: =+V6*S6 -> 65517.14597 | Z6: =W6-X6-Y6 -> -8560.41768
A7: FIT/mFIT | B7: Source | C7: kWh | D7: Total Cost | K7: Class A customer Volumes for GA (TLF included) | M7: =-B64 -> 0 | P7: RPPT2 | Q7: =E21 -> 0.1160001625 | R7: =R6 -> 0.01336156373 | S7: =S6 -> 0.09850000381 | T7: =R7+S7 -> 0.1118615675 | U7: =+Q7-T7 -> 0.004138594974 | V7: =M19 -> 538093.4696 | W7: =Q7*V7 -> 62418.92992 | X7: =R7*V7 -> 7189.770185 | Y7: =+V7*S7 -> 53002.2088 | Z7: =W7-X7-Y7 -> 2226.950929
B8: FIT | C8: 161773.05 | D8: 1151.78 | E8: =D8/C8 -> 0.007119727297 | M8: =+M5+M6+M7 -> 21195128.82 | N8: =+N5+N6+N7 -> 21195128.82 | P8: RPPTOUMID | Q8: =E23 -> 0.1279999398 | R8: =E43 -> 0.01265452151 | S8: =S7 -> 0.09850000381 | T8: 0.1111545253 | U8: 0.01684541444 | V8: 1464492.952 | W8: 187455.0096 | X8: 18532.45756 | Y8: 144252.5613 | Z8: 24669.99071
B9: microFIT | C9: 14509.14 | D9: 110.8 | E9: =D9/C9 -> 0.007636565641 | P9: RPPTOUOFF | Q9: =E24 -> 0.08300013048 | R9: =R8 -> 0.01265452151 | S9: 0.09850000381 | T9: 0.1111545253 | U9: -0.02815439485 | V9: 5123815.348 | W9: 425277.3424 | X9: 64839.43155 | Y9: 504695.8313 | Z9: -144257.9204
B10: WHOLESALE | C10: 21018846.63 | D10: 267674.91 | E10: =D10/C10 -> 0.01273499516 | K10: Estimated Retail Volume Revenue Data (TLF Included) | L10: RPP/non-RPP Ratios | M10: GA Volumes | N10: Energy Volumes | P10: RPPTOUON | Q10: 0.1750013639 | R10: =R9 -> 0.01265452151 | S10: 0.09850000381 | T10: 0.1111545253 | U10: 0.06384683859 | V10: 1550334.966 | W10: 271310.7336 | X10: 19618.74719 | Y10: 152708.0001 | Z10: 98983.98636
A11: Total Wholesale Electricity | B11: Grand Total | C11: 21195128.82 | D11: 268937.49 | K11: Estimated Retail Revenue Data (Net of Retail Billed/Unbilled) | M11: =+M15 -> 21195128.82 | N11: =+N15 -> 21195128.82 | P11: RPPULOMID | Q11: 0 | R11: 0 | S11: 0 | T11: 0 | U11: 0 | V11: 0 | W11: 0 | X11: 0 | Y11: 0 | Z11: 0
P12: RPPULOOFF | Q12: 0 | R12: 0 | S12: 0 | T12: 0 | U12: 0 | V12: 0 | W12: 0 | X12: 0 | Y12: 0 | Z12: 0
K13: Estimated RPP Sales Quantities | L13: =SUM(C20:C25)/(C30-B64) -> 0.4407562454 | M13: =M8*L13 -> 9341885.399 | N13: =M13 -> 9341885.399 | P13: RPPULOON | Q13: 0 | R13: 0 | S13: 0 | T13: 0 | U13: 0 | V13: 0 | W13: 0 | X13: 0 | Y13: 0 | Z13: 0
A14: RPP Revenue Volume and Price Data | K14: Estimated non-RPP Sales Quantities | L14: =1-L13 -> 0.5592437546 | M14: =M8*L14 -> 11853243.42 | N14: =N8-N13 -> 11853243.42 | P14: RPPULOOVN | Q14: 0 | R14: 0 | S14: 0 | T14: 0 | U14: 0 | V14: 0 | W14: 0 | X14: 0 | Y14: 0 | Z14: 0
B15: bill_year | C15: 2016 | K15: Estimated Retail Revenue kWh Volumes | L15: =+L13+L14 -> 1 | M15: =+M13+M14 -> 21195128.82 | N15: =+N13+N14 -> 21195128.82 | V15: =SUM(V6:V14) -> 9341885.399 | W15: =SUM(W6:W14) -> 1012306.17 | X15: =SUM(X6:X14) -> 119067.8328 | Y15: =SUM(Y6:Y14) -> 920175.7475 | Z15: =SUM(Z6:Z14) -> -26937.41011
B16: bill_month | C16: 2 | Z16: =W15-X15-Y15-Z15 -> -4.365574569e-11
K17: Estimated RPP Revenue Volume and Price Data | L17: Actual % | M17: kWh Volumes
B18: Row Labels | C18: usagebilled | D18: amountbilled | E18: Rate | K18: RPPT1 | L18: =C20/SUM($C$20:$C$25) -> 0.07120068764 | M18: =$M$13*L18 -> 665148.6643
B19: RPPTIER | K19: RPPT2 | L19: =C21/SUM($C$20:$C$25) -> 0.05760009319 | M19: =$M$13*L19 -> 538093.4696
B20: RPPT1 | C20: 739365.5594 | D20: 73191.00643 | E20: =D20/C20 -> 0.09899163614 | K20: RPPTOUMID | L20: =C23/SUM($C$20:$C$25) -> 0.1567663153 | M20: 1464492.952
B21: RPPT2 | C21: 598133.6211 | D21: 69383.59725 | E21: =D21/C21 -> 0.1160001625 | K21: RPPTOUOFF | L21: =C24/SUM($C$20:$C$25) -> 0.5484776497 | M21: 5123815.348
B22: RPPTOU | K22: RPPTOUON | L22: 0.1659552542 | M22: 1550334.966
B23: RPPTOUMID | C23: 1627900.21 | D23: 208371.1288 | E23: 0.1279999398 | K23: RPPULOMID | L23: 0 | M23: 0
B24: RPPTOUOFF | C24: 5695527.638 | D24: 472729.5371 | E24: 0.08300013048 | K24: RPPULOOFF | L24: 0 | M24: 0
B25: RPPTOUON | C25: 1723320.426 | D25: 301583.4251 | E25: 0.1750013639 | K25: RPPULOON | L25: 0 | M25: 0
B26: RETAIL | K26: RPPULOOVN | L26: 0 | M26: 0
B27: NSLS | C27: 6031545.373 | D27: 73563.17176 | E27: 0.01219640527 | L27: =SUM(L18:L26) -> 1 | M27: =SUM(M18:M26) -> 9341885.399
B28: INTERVAL
B29: HOEP | C29: 7144275.948 | D29: 89999.763 | E29: 0.01259746455
B30: Grand Total | C30: 23560068.77 | D30: 1288821.629
K31: Global Adjustment | L31: per kWh
C32: =C30/C11-1 -> 0.1115794094 | K32: Class B - GA actual8 | L32: =B69/100 -> 0.09850000381 | N32: GA Posted Price
K33: Class B - GA actual IESO billed | L33: =+M33/M8 -> 0.09769269286 | M33: =B77 -> 2070609.21 | N33: GA Billed by IESO CT 148
A37: RPP COP Volume and Price Data
B38: bill_year | C38: 2016
B39: bill_month | C39: 2
B41: Row Labels | C41: usagebilled | D41: amountbilled | E41: Rate
B42: RPPTIERED | C42: 1322894.066 | D42: 17675.93337 | E42: =D42/C42 -> 0.01336156373
B43: RPPTOU | C43: 9048110.905 | D43: 114499.5141 | E43: 0.01265452151
B44: Grand Total | C44: 10371004.97 | D44: 132175.4475
C46: =SUM(C20:C25)-C44 -> 13242.48266
C47: =C46/C44 -> 0.001276875548
A60: Year | B60: 2016
A62: Class A | B62: Value
A63: kWh
A64: =A69 -> 201602 | B64: 0
A67: ga_actual | B67: year
A68: month | B68: 2016
A69: 201602 | B69: 9.850000381
A73: chargetype | B73: 148
A75: Sum of chargeamount | B75: year
A76: month | B76: 2016
A77: 201602 | B77: 2070609.21

Sheet I5 Input Rev 02 Init (hidden)
A1: Reverse IESO Posted
A5: =Admin!B11 -> 201602
A6: RPP Revenue Prices | B6: kWh Volumes | C6: $ RPP Settlement
A7: RPPTiered_1 | B7: 836711.71 | C7: 5910.610906
A8: RPPTiered_2 | B8: 618657.95 | C8: -6144.398849
A9: RPPTOU_MID | B9: 1685001.66 | C9: -38027.28255
A10: RPPTOU_OFF | B10: 6485336.08 | C10: 145498.5376
A11: RPPTOU_ON | B11: 1793121.96 | C11: -124766.9993
A12: Grand Total | B12: 11418829.36 | C12: -17529.53218

Sheet I6 Input 03 Trueup Sett (hidden)
A1: Date: | B1: =Admin!B8+2 -> 201603 | C1: Trueup | K1: ="Data for 1st True up of RPP Settlement based on Actual IESO Invoice" -> Data for 1st True up of RPP Settlement based on Actual IESO Invoice | P1: For Reconciliation
A3: Wholesale Electricty | B3: Year | C3: 2016 | E3: Rate | P3: Actual RPP Revenue and GA
B4: dateref | C4: 201603 | K4: Wholesale Volume data per IESO Power Bill: | L4: GA RPP/non-RPP Ratios | M4: GA Volumes | N4: Energy Volumes | P4: =B1 -> 201603
K5: AQEW | M5: =C10 -> 20957335.35 | N5: =+M5 -> 20957335.35 | P5: RPP Revenue Prices | Q5: RPP Rate | R5: Estimated RPP Energy Price | S5: GA actual IESO billed | T5: Total Commodity | U5: Difference | V5: kWh Volumes | W5: $ Estimated RPP Revenue | X5: $ Estimated RPP Energy | Y5: $ Estimated GA | Z5: $ Estimated RPP Settlement
B6: Wholesale | K6: Embedded Generation | M6: =SUM(C8:C9) -> 281137.93 | N6: =+M6 -> 281137.93 | P6: RPPT1 | Q6: =E20 -> 0.09899614469 | R6: =E42 -> 0.006141607087 | S6: =L32 -> 0.1060999966 | T6: =R6+S6 -> 0.1122416037 | U6: =+Q6-T6 -> -0.01324545897 | V6: =M18 -> 783340.002 | W6: =Q6*V6 -> 77547.64017 | X6: =R6*V6 -> 4810.966508 | Y6: =+V6*S6 -> 83112.37152 | Z6: =W6-X6-Y6 -> -10375.69785
A7: FIT/mFIT | B7: Source | C7: kWh | D7: Total Cost | K7: Class A customer Volumes for GA (TLF included) | M7: =-B64 -> 0 | P7: RPPT2 | Q7: =E21 -> 0.1160017002 | R7: =R6 -> 0.006141607087 | S7: =S6 -> 0.1060999966 | T7: =R7+S7 -> 0.1122416037 | U7: =+Q7-T7 -> 0.003760096593 | V7: =M19 -> 553039.7924 | W7: =Q7*V7 -> 64153.55623 | X7: =R7*V7 -> 3396.553109 | Y7: =+V7*S7 -> 58677.52008 | Z7: =W7-X7-Y7 -> 2079.483039
B8: FIT | C8: 260433.32 | D8: 1010.32 | E8: =D8/C8 -> 0.003879380718 | M8: =+M5+M6+M7 -> 21238473.28 | N8: =+N5+N6+N7 -> 21238473.28 | P8: RPPTOUMID | Q8: =E23 -> 0.1280010175 | R8: =E43 -> 0.006584915796 | S8: =S7 -> 0.1060999966 | T8: 0.1126849124 | U8: 0.01531610509 | V8: 1699149.075 | W8: 217492.8104 | X8: 11188.75358 | Y8: 180279.711 | Z8: 26024.3458
B9: microFIT | C9: 20704.61 | D9: 79.91 | E9: =D9/C9 -> 0.003859526936 | P9: RPPTOUOFF | Q9: =E24 -> 0.083000486 | R9: =R8 -> 0.006584915796 | S9: 0.1060999966 | T9: 0.1126849124 | U9: -0.02968442636 | V9: 5966196.991 | W9: 495197.2498 | X9: 39286.9048 | Y9: 633013.4802 | Z9: -177103.1352
B10: WHOLESALE | C10: 20957335.35 | D10: 123433.39 | E10: =D10/C10 -> 0.005889746379 | K10: Estimated Retail Volume Revenue Data (TLF Included) | L10: RPP/non-RPP Ratios | M10: GA Volumes | N10: Energy Volumes | P10: RPPTOUON | Q10: 0.1750029071 | R10: =R9 -> 0.006584915796 | S10: 0.1060999966 | T10: 0.1126849124 | U10: 0.06231799476 | V10: 1768847.43 | W10: 309553.4426 | X10: 11647.71138 | Y10: 187674.7063 | Z10: 110231.0249
A11: Total Wholesale Electricity | B11: Grand Total | C11: 21238473.28 | D11: 124523.62 | K11: Estimated Retail Revenue Data (Net of Retail Billed/Unbilled) | M11: =+M15 -> 21238473.28 | N11: =+N15 -> 21238473.28 | P11: RPPULOMID | Q11: 0 | R11: 0 | S11: 0 | T11: 0 | U11: 0 | V11: 0 | W11: 0 | X11: 0 | Y11: 0 | Z11: 0
P12: RPPULOOFF | Q12: 0 | R12: 0 | S12: 0 | T12: 0 | U12: 0 | V12: 0 | W12: 0 | X12: 0 | Y12: 0 | Z12: 0
K13: Estimated RPP Sales Quantities | L13: =SUM(C20:C25)/(C30-B64) -> 0.5071255899 | M13: =M8*L13 -> 10770573.29 | N13: =M13 -> 10770573.29 | P13: RPPULOON | Q13: 0 | R13: 0 | S13: 0 | T13: 0 | U13: 0 | V13: 0 | W13: 0 | X13: 0 | Y13: 0 | Z13: 0
A14: RPP Revenue Volume and Price Data | K14: Estimated non-RPP Sales Quantities | L14: =1-L13 -> 0.4928744101 | M14: =M8*L14 -> 10467899.99 | N14: =N8-N13 -> 10467899.99 | P14: RPPULOOVN | Q14: 0 | R14: 0 | S14: 0 | T14: 0 | U14: 0 | V14: 0 | W14: 0 | X14: 0 | Y14: 0 | Z14: 0
B15: bill_year | C15: 2016 | K15: Estimated Retail Revenue kWh Volumes | L15: =+L13+L14 -> 1 | M15: =+M13+M14 -> 21238473.28 | N15: =+N13+N14 -> 21238473.28 | V15: =SUM(V6:V14) -> 10770573.29 | W15: =SUM(W6:W14) -> 1163944.699 | X15: =SUM(X6:X14) -> 70330.88939 | Y15: =SUM(Y6:Y14) -> 1142757.789 | Z15: =SUM(Z6:Z14) -> -49143.97936
B16: bill_month | C16: 3 | Z16: =W15-X15-Y15-Z15 -> 0
K17: Estimated RPP Revenue Volume and Price Data | L17: Actual % | M17: kWh Volumes
B18: Row Labels | C18: usagebilled | D18: amountbilled | E18: Rate | K18: RPPT1 | L18: =C20/SUM($C$20:$C$25) -> 0.0727296478 | M18: =$M$13*L18 -> 783340.002
B19: RPPTIER | K19: RPPT2 | L19: =C21/SUM($C$20:$C$25) -> 0.05134729392 | M19: =$M$13*L19 -> 553039.7924
B20: RPPT1 | C20: 723209.1157 | D20: 71594.91425 | E20: =D20/C20 -> 0.09899614469 | K20: RPPTOUMID | L20: =C23/SUM($C$20:$C$25) -> 0.1577584618 | M20: 1699149.075
B21: RPPT2 | C21: 510587.2523 | D21: 59228.98939 | E21: =D21/C21 -> 0.1160017002 | K21: RPPTOUOFF | L21: =C24/SUM($C$20:$C$25) -> 0.5539349513 | M21: 5966196.991
B22: RPPTOU | K22: RPPTOUON | L22: 0.1642296452 | M22: 1768847.43
B23: RPPTOUMID | C23: 1568718.688 | D23: 200797.5881 | E23: 0.1280010175 | K23: RPPULOMID | L23: 0 | M23: 0
B24: RPPTOUOFF | C24: 5508218.703 | D24: 457184.8293 | E24: 0.083000486 | K24: RPPULOOFF | L24: 0 | M24: 0
B25: RPPTOUON | C25: 1633066.845 | D25: 285791.4455 | E25: 0.1750029071 | K25: RPPULOON | L25: 0 | M25: 0
B26: RETAIL | K26: RPPULOOVN | L26: 0 | M26: 0
B27: NSLS | C27: 1850753.415 | D27: 5007.133878 | E27: 0.002705457052 | L27: =SUM(L18:L26) -> 1 | M27: =SUM(M18:M26) -> 10770573.29
B28: INTERVAL
B29: HOEP | C29: 7813607.751 | D29: 43339.39226 | E29: 0.005546655737
B30: Grand Total | C30: 19608161.77 | D30: 1122944.293
K31: Global Adjustment | L31: per kWh
C32: =C30/C11-1 -> -0.07676218007 | K32: Class B - GA actual8 | L32: =B69/100 -> 0.1060999966 | N32: GA Posted Price
K33: Class B - GA actual IESO billed | L33: =+M33/M8 -> 0.1046883418 | M33: =B76 -> 2223420.55 | N33: GA Billed by IESO CT 148
A37: RPP COP Volume and Price Data
B38: bill_year | C38: 2016
B39: bill_month | C39: 3
B41: Row Labels | C41: usagebilled | D41: amountbilled | E41: Rate
B42: RPPTIERED | C42: 1229100.53 | D42: 7548.652526 | E42: =D42/C42 -> 0.006141607087
B43: RPPTOU | C43: 8764591.09 | D43: 57714.09431 | E43: 0.006584915796
B44: Grand Total | C44: 9993691.621 | D44: 65262.74684
C46: =SUM(C20:C25)-C44 -> -49891.0165
C47: =C46/C44 -> -0.004992250951
A60: Year | B60: 2016
A62: Class A | B62: Value
A63: kWh
A64: =A69 -> 201603 | B64: 0
A67: ga_actual | B67: year
A68: month | B68: 2016
A69: 201603 | B69: 10.60999966
A72: chargetype | B72: 148
A74: Sum of chargeamount | B74: year
A75: month | B75: 2016
A76: 201603 | B76: 2223420.55

Sheet I7 Input Rev 03 Init (hidden)
A1: Reverse IESO Posted
A5: =Admin!B14 -> 201603
A6: RPP Revenue Prices | B6: kWh Volumes | C6: $ RPP Settlement
A7: RPPTiered_1 | B7: 735652.99 | C7: 9912.73719
A8: RPPTiered_2 | B8: 634978.39 | C8: -2251.253972
A9: RPPTOU_MID | B9: 1706466.08 | C9: -27947.70745
A10: RPPTOU_OFF | B10: 5994148.81 | C10: 171632.0809
A11: RPPTOU_ON | B11: 1806448.94 | C11: -114484.6809
A12: Grand Total | B12: 10877695.21 | C12: 36861.17582

Sheet I8 Input 04 Trueup Sett (hidden)
A1: Date: | B1: =Admin!B8+3 -> 201604 | C1: Trueup | K1: ="Data for 1st True up of RPP Settlement based on Actual IESO Invoice" -> Data for 1st True up of RPP Settlement based on Actual IESO Invoice | P1: For Reconciliation
A3: Wholesale Electricty | B3: Year | C3: 2016 | E3: Rate | P3: Actual RPP Revenue and GA
B4: dateref | C4: 201604 | K4: Wholesale Volume data per IESO Power Bill: | L4: GA RPP/non-RPP Ratios | M4: GA Volumes | N4: Energy Volumes | P4: =B1 -> 201604
K5: AQEW | M5: =C10 -> 19123126.94 | N5: =+M5 -> 19123126.94 | P5: RPP Revenue Prices | Q5: RPP Rate | R5: Estimated RPP Energy Price | S5: GA actual IESO billed | T5: Total Commodity | U5: Difference | V5: kWh Volumes | W5: $ Estimated RPP Revenue | X5: $ Estimated RPP Energy | Y5: $ Estimated GA | Z5: $ Estimated RPP Settlement
B6: Wholesale | K6: Embedded Generation | M6: =SUM(C8:C9) -> 423236.05 | N6: =+M6 -> 423236.05 | P6: RPPT1 | Q6: =E20 -> 0.09937891353 | R6: =E42 -> 0.006056996916 | S6: =L32 -> 0.1113000011 | T6: =R6+S6 -> 0.1173569981 | U6: =+Q6-T6 -> -0.01797808453 | V6: =M18 -> 660899.1844 | W6: =Q6*V6 -> 65679.4429 | X6: =R6*V6 -> 4003.064322 | Y6: =+V6*S6 -> 73558.07998 | Z6: =W6-X6-Y6 -> -11881.7014
A7: FIT/mFIT | B7: Source | C7: kWh | D7: Total Cost | K7: Class A customer Volumes for GA (TLF included) | M7: =-B64 -> 0 | P7: RPPT2 | Q7: =E21 -> 0.1167782836 | R7: =R6 -> 0.006056996916 | S7: =S6 -> 0.1113000011 | T7: =R7+S7 -> 0.1173569981 | U7: =+Q7-T7 -> -0.0005787144216 | V7: =M19 -> 402897.1797 | W7: =Q7*V7 -> 47049.64113 | X7: =R7*V7 -> 2440.346975 | Y7: =+V7*S7 -> 44842.45656 | Z7: =W7-X7-Y7 -> -233.1624083
B8: FIT | C8: 392299.08 | D8: 2142.8 | E8: =D8/C8 -> 0.005462159126 | M8: =+M5+M6+M7 -> 19546362.99 | N8: =+N5+N6+N7 -> 19546362.99 | P8: RPPTOUMID | Q8: =E23 -> 0.1284983588 | R8: =E43 -> 0.005906828969 | S8: =S7 -> 0.1113000011 | T8: 0.1172068301 | U8: 0.01129152873 | V8: 1369933.072 | W8: 176034.1514 | X8: 8091.960355 | Y8: 152473.5525 | Z8: 15468.63864
B9: microFIT | C9: 30936.97 | D9: 171.47 | E9: =D9/C9 -> 0.005542559598 | P9: RPPTOUOFF | Q9: =E24 -> 0.0834981962 | R9: =R8 -> 0.005906828969 | S9: 0.1113000011 | T9: 0.1172068301 | U9: -0.03370863392 | V9: 4601370.789 | W9: 384206.1609 | X9: 27179.51028 | Y9: 512132.5741 | Z9: -155105.9234
B10: WHOLESALE | C10: 19123126.94 | D10: 116923.93 | E10: =D10/C10 -> 0.00611426836 | K10: Estimated Retail Volume Revenue Data (TLF Included) | L10: RPP/non-RPP Ratios | M10: GA Volumes | N10: Energy Volumes | P10: RPPTOUON | Q10: 0.1755856766 | R10: =R9 -> 0.005906828969 | S10: 0.1113000011 | T10: 0.1172068301 | U10: 0.05837884649 | V10: 1402014.429 | W10: 246173.6521 | X10: 8281.459444 | Y10: 156044.2075 | Z10: 81847.98511
A11: Total Wholesale Electricity | B11: Grand Total | C11: 19546362.99 | D11: 119238.2 | K11: Estimated Retail Revenue Data (Net of Retail Billed/Unbilled) | M11: =+M15 -> 19546362.99 | N11: =+N15 -> 19546362.99 | P11: RPPULOMID | Q11: 0 | R11: 0 | S11: 0 | T11: 0 | U11: 0 | V11: 0 | W11: 0 | X11: 0 | Y11: 0 | Z11: 0
P12: RPPULOOFF | Q12: 0 | R12: 0 | S12: 0 | T12: 0 | U12: 0 | V12: 0 | W12: 0 | X12: 0 | Y12: 0 | Z12: 0
K13: Estimated RPP Sales Quantities | L13: =SUM(C20:C25)/(C30-B64) -> 0.4316462688 | M13: =M8*L13 -> 8437114.654 | N13: =M13 -> 8437114.654 | P13: RPPULOON | Q13: 0 | R13: 0 | S13: 0 | T13: 0 | U13: 0 | V13: 0 | W13: 0 | X13: 0 | Y13: 0 | Z13: 0
A14: RPP Revenue Volume and Price Data | K14: Estimated non-RPP Sales Quantities | L14: =1-L13 -> 0.5683537312 | M14: =M8*L14 -> 11109248.34 | N14: =N8-N13 -> 11109248.34 | P14: RPPULOOVN | Q14: 0 | R14: 0 | S14: 0 | T14: 0 | U14: 0 | V14: 0 | W14: 0 | X14: 0 | Y14: 0 | Z14: 0
B15: bill_year | C15: 2016 | K15: Estimated Retail Revenue kWh Volumes | L15: =+L13+L14 -> 1 | M15: =+M13+M14 -> 19546362.99 | N15: =+N13+N14 -> 19546362.99 | V15: =SUM(V6:V14) -> 8437114.654 | W15: =SUM(W6:W14) -> 919143.0485 | X15: =SUM(X6:X14) -> 49996.34137 | Y15: =SUM(Y6:Y14) -> 939050.8706 | Z15: =SUM(Z6:Z14) -> -69904.1635
B16: bill_month | C16: 4 | Z16: =W15-X15-Y15-Z15 -> 0
K17: Estimated RPP Revenue Volume and Price Data | L17: Actual % | M17: kWh Volumes
B18: Row Labels | C18: usagebilled | D18: amountbilled | E18: Rate | K18: RPPT1 | L18: =C20/SUM($C$20:$C$25) -> 0.07833236972 | M18: =$M$13*L18 -> 660899.1844
B19: RPPTIER | K19: RPPT2 | L19: =C21/SUM($C$20:$C$25) -> 0.04775295777 | M19: =$M$13*L19 -> 402897.1797
B20: RPPT1 | C20: 713761.6442 | D20: 70932.85672 | E20: =D20/C20 -> 0.09937891353 | K20: RPPTOUMID | L20: =C23/SUM($C$20:$C$25) -> 0.1623698537 | M20: 1369933.072
B21: RPPT2 | C21: 435123.178 | D21: 50812.9379 | E21: =D21/C21 -> 0.1167782836 | K21: RPPTOUOFF | L21: =C24/SUM($C$20:$C$25) -> 0.5453725566 | M21: 4601370.789
B22: RPPTOU | K22: RPPTOUON | L22: 0.1661722622 | M22: 1402014.429
B23: RPPTOUMID | C23: 1479508.078 | D23: 190114.3599 | E23: 0.1284983588 | K23: RPPULOMID | L23: 0 | M23: 0
B24: RPPTOUOFF | C24: 4969414.485 | D24: 414937.1456 | E24: 0.0834981962 | K24: RPPULOOFF | L24: 0 | M24: 0
B25: RPPTOUON | C25: 1514155.483 | D25: 265864.015 | E25: 0.1755856766 | K25: RPPULOON | L25: 0 | M25: 0
B26: RETAIL | K26: RPPULOOVN | L26: 0 | M26: 0
B27: NSLS | C27: 4263300.787 | D27: 25154.7001 | E27: 0.005900287442 | L27: =SUM(L18:L26) -> 1 | M27: =SUM(M18:M26) -> 8437114.654
B28: INTERVAL
B29: HOEP | C29: 7734528.15 | D29: 45772.08916 | E29: 0.005917890307
B30: Grand Total | C30: 21109791.81 | D30: 1063588.104
K31: Global Adjustment | L31: per kWh
C32: =C30/C11-1 -> 0.07998566362 | K32: Class B - GA actual8 | L32: =B69/100 -> 0.1113000011 | N32: GA Posted Price
K33: Class B - GA actual IESO billed | L33: =+M33/M8 -> 0.10891651 | M33: =B76 -> 2128921.64 | N33: GA Billed by IESO CT 148
A37: RPP COP Volume and Price Data
B38: bill_year | C38: 2016
B39: bill_month | C39: 4
B41: Row Labels | C41: usagebilled | D41: amountbilled | E41: Rate
B42: RPPTIERED | C42: 1114871.193 | D42: 6752.771375 | E42: =D42/C42 -> 0.006056996916
B43: RPPTOU | C43: 6418877.095 | D43: 37915.20918 | E43: 0.005906828969
B44: Grand Total | C44: 7533748.288 | D44: 44667.98055
C46: =SUM(C20:C25)-C44 -> 1578214.581
C47: =C46/C44 -> 0.2094859717
A60: Year | B60: 2016
A62: Class A | B62: Value
A63: kWh
A64: =A69 -> 201604 | B64: 0
A67: ga_actual | B67: year
A68: month | B68: 2016
A69: 201604 | B69: 11.13000011
A72: chargetype | B72: 148
A74: Sum of chargeamount | B74: year
A75: month | B75: 2016
A76: 201604 | B76: 2128921.64

Sheet I9 Input Rev 04 Init (hidden)
A1: Reverse IESO Posted
A5: =Admin!B17 -> 201604
A6: RPP Revenue Prices | B6: kWh Volumes | C6: $ RPP Settlement
A7: RPPTiered_1 | B7: 776603.25 | C7: 9961.078852
A8: RPPTiered_2 | B8: 521206.56 | C8: -2128.685815
A9: RPPTOU_MID | B9: 1576223.52 | C9: -25649.97104
A10: RPPTOU_OFF | B10: 5520223.68 | C10: 158579.084
A11: RPPTOU_ON | B11: 1635743.42 | C11: -103487.2679
A12: Grand Total | B12: 10030000.43 | C12: 37274.23808

Sheet I10 Input 05 Trueup Sett (hidden)
A1: Date: | B1: =Admin!B8+4 -> 201605 | C1: Trueup | K1: ="Data for 1st True up of RPP Settlement based on Actual IESO Invoice" -> Data for 1st True up of RPP Settlement based on Actual IESO Invoice | P1: For Reconciliation
A3: Wholesale Electricty | B3: Year | C3: 2016 | E3: Rate | P3: Actual RPP Revenue and GA
B4: dateref | C4: 201605 | K4: Wholesale Volume data per IESO Power Bill: | L4: GA RPP/non-RPP Ratios | M4: GA Volumes | N4: Energy Volumes | P4: =B1 -> 201605
K5: AQEW | M5: =C10 -> 18834392.51 | N5: =+M5 -> 18834392.51 | P5: RPP Revenue Prices | Q5: RPP Rate | R5: Estimated RPP Energy Price | S5: GA actual IESO billed | T5: Total Commodity | U5: Difference | V5: kWh Volumes | W5: $ Estimated RPP Revenue | X5: $ Estimated RPP Energy | Y5: $ Estimated GA | Z5: $ Estimated RPP Settlement
B6: Wholesale | K6: Embedded Generation | M6: =SUM(C8:C9) -> 506940.3 | N6: =+M6 -> 506940.3 | P6: RPPT1 | Q6: =E20 -> 0.1024168651 | R6: =E42 -> 0.01343848544 | S6: =L32 -> 0.1075 | T6: =R6+S6 -> 0.1209384854 | U6: =+Q6-T6 -> -0.01852162029 | V6: =M18 -> 575653.3429 | W6: =Q6*V6 -> 58956.61079 | X6: =R6*V6 -> 7735.909067 | Y6: =+V6*S6 -> 61882.73436 | Z6: =W6-X6-Y6 -> -10662.03264
A7: FIT/mFIT | B7: Source | C7: kWh | D7: Total Cost | K7: Class A customer Volumes for GA (TLF included) | M7: =-B64 -> 0 | P7: RPPT2 | Q7: =E21 -> 0.1204004985 | R7: =R6 -> 0.01343848544 | S7: =S6 -> 0.1075 | T7: =R7+S7 -> 0.1209384854 | U7: =+Q7-T7 -> -0.0005379869073 | V7: =M19 -> 437081.3222 | W7: =Q7*V7 -> 52624.80909 | X7: =R7*V7 -> 5873.710984 | Y7: =+V7*S7 -> 46986.24213 | Z7: =W7-X7-Y7 -> -235.1440287
B8: FIT | C8: 470901.97 | D8: 6458.98 | E8: =D8/C8 -> 0.01371618811 | M8: =+M5+M6+M7 -> 19341332.81 | N8: =+N5+N6+N7 -> 19341332.81 | P8: RPPTOUMID | Q8: =E23 -> 0.1313504075 | R8: =E43 -> 0.01272868337 | S8: =S7 -> 0.1075 | T8: 0.1202286834 | U8: 0.0111217241 | V8: 1261989.793 | W8: 165762.8736 | X8: 16063.46849 | Y8: 135663.9028 | Z8: 14035.50229
B9: microFIT | C9: 36038.33 | D9: 486.69 | E9: =D9/C9 -> 0.01350478782 | P9: RPPTOUOFF | Q9: =E24 -> 0.08639570287 | R9: =R8 -> 0.01272868337 | S9: 0.1075 | T9: 0.1202286834 | U9: -0.0338329805 | V9: 4081864.688 | W9: 352655.5687 | X9: 51956.76315 | Y9: 438800.4539 | Z9: -138101.6484
B10: WHOLESALE | C10: 18834392.51 | D10: 249307.51 | E10: =D10/C10 -> 0.01323682247 | K10: Estimated Retail Volume Revenue Data (TLF Included) | L10: RPP/non-RPP Ratios | M10: GA Volumes | N10: Energy Volumes | P10: RPPTOUON | Q10: 0.1791613845 | R10: =R9 -> 0.01272868337 | S10: 0.1075 | T10: 0.1202286834 | U10: 0.05893270114 | V10: 1254712.091 | W10: 224795.9553 | X10: 15970.83292 | Y10: 134881.5497 | Z10: 73943.57265
A11: Total Wholesale Electricity | B11: Grand Total | C11: 19341332.81 | D11: 256253.18 | K11: Estimated Retail Revenue Data (Net of Retail Billed/Unbilled) | M11: =+M15 -> 19341332.81 | N11: =+N15 -> 19341332.81 | P11: RPPULOMID | Q11: 0 | R11: 0 | S11: 0 | T11: 0 | U11: 0 | V11: 0 | W11: 0 | X11: 0 | Y11: 0 | Z11: 0
P12: RPPULOOFF | Q12: 0 | R12: 0 | S12: 0 | T12: 0 | U12: 0 | V12: 0 | W12: 0 | X12: 0 | Y12: 0 | Z12: 0
K13: Estimated RPP Sales Quantities | L13: =SUM(C20:C25)/(C30-B64) -> 0.3935251677 | M13: =M8*L13 -> 7611301.237 | N13: =M13 -> 7611301.237 | P13: RPPULOON | Q13: 0 | R13: 0 | S13: 0 | T13: 0 | U13: 0 | V13: 0 | W13: 0 | X13: 0 | Y13: 0 | Z13: 0
A14: RPP Revenue Volume and Price Data | K14: Estimated non-RPP Sales Quantities | L14: =1-L13 -> 0.6064748323 | M14: =M8*L14 -> 11730031.57 | N14: =N8-N13 -> 11730031.57 | P14: RPPULOOVN | Q14: 0 | R14: 0 | S14: 0 | T14: 0 | U14: 0 | V14: 0 | W14: 0 | X14: 0 | Y14: 0 | Z14: 0
B15: bill_year | C15: 2016 | K15: Estimated Retail Revenue kWh Volumes | L15: =+L13+L14 -> 1 | M15: =+M13+M14 -> 19341332.81 | N15: =+N13+N14 -> 19341332.81 | V15: =SUM(V6:V14) -> 7611301.237 | W15: =SUM(W6:W14) -> 854795.8175 | X15: =SUM(X6:X14) -> 97600.68461 | Y15: =SUM(Y6:Y14) -> 818214.8829 | Z15: =SUM(Z6:Z14) -> -61019.7501
B16: bill_month | C16: 5 | Z16: =W15-X15-Y15-Z15 -> 0
K17: Estimated RPP Revenue Volume and Price Data | L17: Actual % | M17: kWh Volumes
B18: Row Labels | C18: usagebilled | D18: amountbilled | E18: Rate | K18: RPPT1 | L18: =C20/SUM($C$20:$C$25) -> 0.07563139665 | M18: =$M$13*L18 -> 575653.3429
B19: RPPTIER | K19: RPPT2 | L19: =C21/SUM($C$20:$C$25) -> 0.05742530857 | M19: =$M$13*L19 -> 437081.3222
B20: RPPT1 | C20: 590446.3678 | D20: 60471.66602 | E20: =D20/C20 -> 0.1024168651 | K20: RPPTOUMID | L20: =C23/SUM($C$20:$C$25) -> 0.1658047362 | M20: 1261989.793
B21: RPPT2 | C21: 448313.3509 | D21: 53977.15095 | E21: =D21/C21 -> 0.1204004985 | K21: RPPTOUOFF | L21: =C24/SUM($C$20:$C$25) -> 0.5362899931 | M21: 4081864.688
B22: RPPTOU | K22: RPPTOUON | L22: 0.1648485655 | M22: 1254712.091
B23: RPPTOUMID | C23: 1294420.156 | D23: 170022.6149 | E23: 0.1313504075 | K23: RPPULOMID | L23: 0 | M23: 0
B24: RPPTOUOFF | C24: 4186759.633 | D24: 361718.0412 | E24: 0.08639570287 | K24: RPPULOOFF | L24: 0 | M24: 0
B25: RPPTOUON | C25: 1286955.432 | D25: 230572.717 | E25: 0.1791613845 | K25: RPPULOON | L25: 0 | M25: 0
B26: RETAIL | K26: RPPULOOVN | L26: 0 | M26: 0
B27: NSLS | C27: 4243476.579 | D27: 56534.33958 | E27: 0.01332264678 | L27: =SUM(L18:L26) -> 1 | M27: =SUM(M18:M26) -> 7611301.237
B28: INTERVAL
B29: HOEP | C29: 7787991.008 | D29: 100677.0828 | E29: 0.01292722124
B30: Grand Total | C30: 19838362.53 | D30: 1033973.612
K31: Global Adjustment | L31: per kWh
C32: =C30/C11-1 -> 0.02569780072 | K32: Class B - GA actual8 | L32: =B69/100 -> 0.1075 | N32: GA Posted Price
K33: Class B - GA actual IESO billed | L33: =+M33/M8 -> 0.1046696662 | M33: =B76 -> 2024450.85 | N33: GA Billed by IESO CT 148
A37: RPP COP Volume and Price Data
B38: bill_year | C38: 2016
B39: bill_month | C39: 5
B41: Row Labels | C41: usagebilled | D41: amountbilled | E41: Rate
B42: RPPTIERED | C42: 1023197.663 | D42: 13750.2269 | E42: =D42/C42 -> 0.01343848544
B43: RPPTOU | C43: 6768303.098 | D43: 86151.58707 | E43: 0.01272868337
B44: Grand Total | C44: 7791500.761 | D44: 99901.81396
C46: =SUM(C20:C25)-C44 -> 15394.17779
C47: =C46/C44 -> 0.001975765422
A60: Year | B60: 2016
A62: Class A | B62: Value
A63: kWh
A64: =A69 -> 201605 | B64: 0
A67: ga_actual | B67: year
A68: month | B68: 2016
A69: 201605 | B69: 10.75
A72: chargetype | B72: 148
A74: Sum of chargeamount | B74: year
A75: month | B75: 2016
A76: 201605 | B76: 2024450.85

Sheet I11 Input Rev 05 Init (hidden)
A1: Reverse IESO Posted
A5: =Admin!B20 -> 201605
A6: RPP Revenue Prices | B6: kWh Volumes | C6: $ RPP Settlement
A7: RPPTiered_1 | B7: 613098.47 | C7: 11464.02104
A8: RPPTiered_2 | B8: 418130.11 | C8: 520.8304342
A9: RPPTOU_MID | B9: 1120742.11 | C9: -13795.09151
A10: RPPTOU_OFF | B10: 3808715.09 | C10: 124418.6798
A11: RPPTOU_ON | B11: 1149919.73 | C11: -68224.48965
A12: Grand Total | B12: 7110605.51 | C12: 54383.95016

Sheet I12 Input 06 Trueup Sett (hidden)
A1: Date: | B1: =Admin!B8+5 -> 201606 | C1: Trueup | K1: ="Data for 1st True up of RPP Settlement based on Actual IESO Invoice" -> Data for 1st True up of RPP Settlement based on Actual IESO Invoice | P1: For Reconciliation
A3: Wholesale Electricty | B3: Year | C3: 2016 | E3: Rate | P3: Actual RPP Revenue and GA
B4: dateref | C4: 201606 | K4: Wholesale Volume data per IESO Power Bill: | L4: GA RPP/non-RPP Ratios | M4: GA Volumes | N4: Energy Volumes | P4: =B1 -> 201606
K5: AQEW | M5: =C10 -> 19090270.86 | N5: =+M5 -> 19090270.86 | P5: RPP Revenue Prices | Q5: RPP Rate | R5: Estimated RPP Energy Price | S5: GA actual IESO billed | T5: Total Commodity | U5: Difference | V5: kWh Volumes | W5: $ Estimated RPP Revenue | X5: $ Estimated RPP Energy | Y5: $ Estimated GA | Z5: $ Estimated RPP Settlement
B6: Wholesale | K6: Embedded Generation | M6: =SUM(C8:C9) -> 528390.49 | N6: =+M6 -> 528390.49 | P6: RPPT1 | Q6: =E20 -> 0.1029905401 | R6: =E42 -> 0.02023230862 | S6: =L32 -> 0.09550000191 | T6: =R6+S6 -> 0.1157323105 | U6: =+Q6-T6 -> -0.01274177038 | V6: =M18 -> 356893.8631 | W6: =Q6*V6 -> 36756.69174 | X6: =R6*V6 -> 7220.786783 | Y6: =+V6*S6 -> 34083.36461 | Z6: =W6-X6-Y6 -> -4547.459653
A7: FIT/mFIT | B7: Source | C7: kWh | D7: Total Cost | K7: Class A customer Volumes for GA (TLF included) | M7: =-B64 -> 0 | P7: RPPT2 | Q7: =E21 -> 0.1209999431 | R7: =R6 -> 0.02023230862 | S7: =S6 -> 0.09550000191 | T7: =R7+S7 -> 0.1157323105 | U7: =+Q7-T7 -> 0.00526763257 | V7: =M19 -> 283798.6508 | W7: =Q7*V7 -> 34339.6206 | X7: =R7*V7 -> 5741.901889 | Y7: =+V7*S7 -> 27102.77169 | Z7: =W7-X7-Y7 -> 1494.947016
B8: FIT | C8: 491029.03 | D8: 8897.58 | E8: =D8/C8 -> 0.01812027285 | M8: =+M5+M6+M7 -> 19618661.35 | N8: =+N5+N6+N7 -> 19618661.35 | P8: RPPTOUMID | Q8: =E23 -> 0.1320002923 | R8: =E43 -> 0.02133861525 | S8: =S7 -> 0.09550000191 | T8: 0.1168386172 | U8: 0.0151616751 | V8: 873321.6165 | W8: 115278.7086 | X8: 18635.47396 | Y8: 83402.21604 | Z8: 13241.0186
B9: microFIT | C9: 37361.46 | D9: 678.08 | E9: =D9/C9 -> 0.01814918368 | P9: RPPTOUOFF | Q9: =E24 -> 0.08699964707 | R9: =R8 -> 0.02133861525 | S9: 0.09550000191 | T9: 0.1168386172 | U9: -0.02983897008 | V9: 2894908.975 | W9: 251856.0592 | X9: 61773.34879 | Y9: 276463.8127 | Z9: -86381.10229
B10: WHOLESALE | C10: 19090270.86 | D10: 389148.02 | E10: =D10/C10 -> 0.02038462539 | K10: Estimated Retail Volume Revenue Data (TLF Included) | L10: RPP/non-RPP Ratios | M10: GA Volumes | N10: Energy Volumes | P10: RPPTOUON | Q10: 0.1800008356 | R10: =R9 -> 0.02133861525 | S10: 0.09550000191 | T10: 0.1168386172 | U10: 0.06316221847 | V10: 911274.8318 | W10: 164030.2312 | X10: 19445.34302 | Y10: 87026.74817 | Z10: 57558.14001
A11: Total Wholesale Electricity | B11: Grand Total | C11: 19618661.35 | D11: 398723.68 | K11: Estimated Retail Revenue Data (Net of Retail Billed/Unbilled) | M11: =+M15 -> 19618661.35 | N11: =+N15 -> 19618661.35 | P11: RPPULOMID | Q11: 0 | R11: 0 | S11: 0 | T11: 0 | U11: 0 | V11: 0 | W11: 0 | X11: 0 | Y11: 0 | Z11: 0
P12: RPPULOOFF | Q12: 0 | R12: 0 | S12: 0 | T12: 0 | U12: 0 | V12: 0 | W12: 0 | X12: 0 | Y12: 0 | Z12: 0
K13: Estimated RPP Sales Quantities | L13: =SUM(C20:C25)/(C30-B64) -> 0.2711804767 | M13: =M8*L13 -> 5320197.937 | N13: =M13 -> 5320197.937 | P13: RPPULOON | Q13: 0 | R13: 0 | S13: 0 | T13: 0 | U13: 0 | V13: 0 | W13: 0 | X13: 0 | Y13: 0 | Z13: 0
A14: RPP Revenue Volume and Price Data | K14: Estimated non-RPP Sales Quantities | L14: =1-L13 -> 0.7288195233 | M14: =M8*L14 -> 14298463.41 | N14: =N8-N13 -> 14298463.41 | P14: RPPULOOVN | Q14: 0 | R14: 0 | S14: 0 | T14: 0 | U14: 0 | V14: 0 | W14: 0 | X14: 0 | Y14: 0 | Z14: 0
B15: bill_year | C15: 2016 | K15: Estimated Retail Revenue kWh Volumes | L15: =+L13+L14 -> 1 | M15: =+M13+M14 -> 19618661.35 | N15: =+N13+N14 -> 19618661.35 | V15: =SUM(V6:V14) -> 5320197.937 | W15: =SUM(W6:W14) -> 602261.3113 | X15: =SUM(X6:X14) -> 112816.8544 | Y15: =SUM(Y6:Y14) -> 508078.9132 | Z15: =SUM(Z6:Z14) -> -18634.45631
B16: bill_month | C16: 6 | Z16: =W15-X15-Y15-Z15 -> -5.820766091e-11
K17: Estimated RPP Revenue Volume and Price Data | L17: Actual % | M17: kWh Volumes
B18: Row Labels | C18: usagebilled | D18: amountbilled | E18: Rate | K18: RPPT1 | L18: =C20/SUM($C$20:$C$25) -> 0.06708281672 | M18: =$M$13*L18 -> 356893.8631
B19: RPPTIER | K19: RPPT2 | L19: =C21/SUM($C$20:$C$25) -> 0.05334362634 | M19: =$M$13*L19 -> 283798.6508
B20: RPPT1 | C20: 572214.7966 | D20: 58932.71098 | E20: =D20/C20 -> 0.1029905401 | K20: RPPTOUMID | L20: =C23/SUM($C$20:$C$25) -> 0.1641520911 | M20: 873321.6165
B21: RPPT2 | C21: 455019.8365 | D21: 55057.37433 | E21: =D21/C21 -> 0.1209999431 | K21: RPPTOUOFF | L21: =C24/SUM($C$20:$C$25) -> 0.5441355771 | M21: 2894908.975
B22: RPPTOU | K22: RPPTOUON | L22: 0.1712858887 | M22: 911274.8318
B23: RPPTOUMID | C23: 1400213.349 | D23: 184828.5712 | E23: 0.1320002923 | K23: RPPULOMID | L23: 0 | M23: 0
B24: RPPTOUOFF | C24: 4641463.252 | D24: 403805.6648 | E24: 0.08699964707 | K24: RPPULOOFF | L24: 0 | M24: 0
B25: RPPTOUON | C25: 1461064.469 | D25: 262992.8253 | E25: 0.1800008356 | K25: RPPULOON | L25: 0 | M25: 0
B26: RETAIL | K26: RPPULOOVN | L26: 0 | M26: 0
B27: NSLS | C27: 4422770.276 | D27: 89806.04775 | E27: 0.02030538376 | L27: =SUM(L18:L26) -> 1 | M27: =SUM(M18:M26) -> 5320197.937
B28: INTERVAL
B29: HOEP | C29: 18502231.18 | D29: 367592.2843 | E29: 0.0198674571
B30: Grand Total | C30: 31454977.16 | D30: 1423015.479
K31: Global Adjustment | L31: per kWh
C32: =C30/C11-1 -> 0.6033192378 | K32: Class B - GA actual8 | L32: =B69/100 -> 0.09550000191 | N32: GA Posted Price
K33: Class B - GA actual IESO billed | L33: =+M33/M8 -> 0.09290791494 | M33: =B76 -> 1822728.92 | N33: GA Billed by IESO CT 148
A37: RPP COP Volume and Price Data
B38: bill_year | C38: 2016
B39: bill_month | C39: 6
B41: Row Labels | C41: usagebilled | D41: amountbilled | E41: Rate
B42: RPPTIERED | C42: 1024744.909 | D42: 20732.95526 | E42: =D42/C42 -> 0.02023230862
B43: RPPTOU | C43: 7500952.521 | D43: 160059.9398 | E43: 0.02133861525
B44: Grand Total | C44: 8525697.43 | D44: 180792.8951
C46: =SUM(C20:C25)-C44 -> 4278.271639
C47: =C46/C44 -> 0.0005018089927
A60: Year | B60: 2016
A62: Class A | B62: Value
A63: kWh
A64: =A69 -> 201606 | B64: 0
A67: ga_actual | B67: year
A68: month | B68: 2016
A69: 201606 | B69: 9.550000191
A72: chargetype | B72: 148
A74: Sum of chargeamount | B74: year
A75: month | B75: 2016
A76: 201606 | B76: 1822728.92

Sheet I13 Input Rev 06 Init (hidden)
A1: Reverse IESO Posted
A5: =Admin!B23 -> 201606
A6: RPP Revenue Prices | B6: kWh Volumes | C6: $ RPP Settlement
A7: RPPTiered_1 | B7: 534117.77 | C7: 8729.147453
A8: RPPTiered_2 | B8: 411441.25 | C8: -620.5983176
A9: RPPTOU_MID | B9: 1618638.45 | C9: -21542.89071
A10: RPPTOU_OFF | B10: 5184203.71 | C10: 164022.2785
A11: RPPTOU_ON | B11: 1620646.94 | C11: -98778.75216
A12: Grand Total | B12: 9369048.12 | C12: 51809.18475

Sheet I14 Input 07 Trueup Sett (hidden)
A1: Date: | B1: =Admin!B8+6 -> 201607 | C1: Trueup | K1: ="Data for 1st True up of RPP Settlement based on Actual IESO Invoice" -> Data for 1st True up of RPP Settlement based on Actual IESO Invoice | P1: For Reconciliation
A3: Wholesale Electricty | B3: Year | C3: 2016 | E3: Rate | P3: Actual RPP Revenue and GA
B4: dateref | C4: 201607 | K4: Wholesale Volume data per IESO Power Bill: | L4: GA RPP/non-RPP Ratios | M4: GA Volumes | N4: Energy Volumes | P4: =B1 -> 201607
K5: AQEW | M5: =C10 -> 20652474.45 | N5: =+M5 -> 20652474.45 | P5: RPP Revenue Prices | Q5: RPP Rate | R5: Estimated RPP Energy Price | S5: GA actual IESO billed | T5: Total Commodity | U5: Difference | V5: kWh Volumes | W5: $ Estimated RPP Revenue | X5: $ Estimated RPP Energy | Y5: $ Estimated GA | Z5: $ Estimated RPP Settlement
B6: Wholesale | K6: Embedded Generation | M6: =SUM(C8:C9) -> 507872.68 | N6: =+M6 -> 507872.68 | P6: RPPT1 | Q6: =E20 -> 0.1029893379 | R6: =E42 -> 0.02542101058 | S6: =L32 -> 0.0831000042 | T6: =R6+S6 -> 0.1085210148 | U6: =+Q6-T6 -> -0.005531676861 | V6: =M18 -> 936556.9823 | W6: =Q6*V6 -> 96455.38353 | X6: =R6*V6 -> 23808.22496 | Y6: =+V6*S6 -> 77827.88916 | Z6: =W6-X6-Y6 -> -5180.730589
A7: FIT/mFIT | B7: Source | C7: kWh | D7: Total Cost | K7: Class A customer Volumes for GA (TLF included) | M7: =-B64 -> 0 | P7: RPPT2 | Q7: =E21 -> 0.1209995632 | R7: =R6 -> 0.02542101058 | S7: =S6 -> 0.0831000042 | T7: =R7+S7 -> 0.1085210148 | U7: =+Q7-T7 -> 0.01247854847 | V7: =M19 -> 1035515.438 | W7: =Q7*V7 -> 125296.9157 | X7: =R7*V7 -> 26323.8489 | Y7: =+V7*S7 -> 86051.33723 | Z7: =W7-X7-Y7 -> 12921.72958
B8: FIT | C8: 472651.48 | D8: 12111.74 | E8: =D8/C8 -> 0.02562509695 | M8: =+M5+M6+M7 -> 21160347.13 | N8: =+N5+N6+N7 -> 21160347.13 | P8: RPPTOUMID | Q8: =E23 -> 0.1320000806 | R8: =E43 -> 0.0264895719 | S8: =S7 -> 0.0831000042 | T8: 0.1095895761 | U8: 0.02241050449 | V8: 2991764.363 | W8: 394913.137 | X8: 79250.55722 | Y8: 248615.6311 | Z8: 67046.94869
B9: microFIT | C9: 35221.2 | D9: 899.92 | E9: =D9/C9 -> 0.02555052071 | P9: RPPTOUOFF | Q9: =E24 -> 0.08699997197 | R9: =R8 -> 0.0264895719 | S9: 0.0831000042 | T9: 0.1095895761 | U9: -0.02258960413 | V9: 9779043.563 | W9: 850776.5158 | X9: 259042.6776 | Y9: 812638.5611 | Z9: -220904.7229
B10: WHOLESALE | C10: 20652474.45 | D10: 494014.65 | E10: =D10/C10 -> 0.02392036127 | K10: Estimated Retail Volume Revenue Data (TLF Included) | L10: RPP/non-RPP Ratios | M10: GA Volumes | N10: Energy Volumes | P10: RPPTOUON | Q10: 0.1800011247 | R10: =R9 -> 0.0264895719 | S10: 0.0831000042 | T10: 0.1095895761 | U10: 0.07041154856 | V10: 3328216.144 | W10: 599082.649 | X10: 88163.02086 | Y10: 276574.7755 | Z10: 234344.8526
A11: Total Wholesale Electricity | B11: Grand Total | C11: 21160347.13 | D11: 507026.31 | K11: Estimated Retail Revenue Data (Net of Retail Billed/Unbilled) | M11: =+M15 -> 21160347.13 | N11: =+N15 -> 21160347.13 | P11: RPPULOMID | Q11: 0 | R11: 0 | S11: 0 | T11: 0 | U11: 0 | V11: 0 | W11: 0 | X11: 0 | Y11: 0 | Z11: 0
P12: RPPULOOFF | Q12: 0 | R12: 0 | S12: 0 | T12: 0 | U12: 0 | V12: 0 | W12: 0 | X12: 0 | Y12: 0 | Z12: 0
K13: Estimated RPP Sales Quantities | L13: =SUM(C20:C25)/(C30-B64) -> 0.8540075633 | M13: =M8*L13 -> 18071096.49 | N13: =M13 -> 18071096.49 | P13: RPPULOON | Q13: 0 | R13: 0 | S13: 0 | T13: 0 | U13: 0 | V13: 0 | W13: 0 | X13: 0 | Y13: 0 | Z13: 0
A14: RPP Revenue Volume and Price Data | K14: Estimated non-RPP Sales Quantities | L14: =1-L13 -> 0.1459924367 | M14: =M8*L14 -> 3089250.64 | N14: =N8-N13 -> 3089250.64 | P14: RPPULOOVN | Q14: 0 | R14: 0 | S14: 0 | T14: 0 | U14: 0 | V14: 0 | W14: 0 | X14: 0 | Y14: 0 | Z14: 0
B15: bill_year | C15: 2016 | K15: Estimated Retail Revenue kWh Volumes | L15: =+L13+L14 -> 1 | M15: =+M13+M14 -> 21160347.13 | N15: =+N13+N14 -> 21160347.13 | V15: =SUM(V6:V14) -> 18071096.49 | W15: =SUM(W6:W14) -> 2066524.601 | X15: =SUM(X6:X14) -> 476588.3295 | Y15: =SUM(Y6:Y14) -> 1501708.194 | Z15: =SUM(Z6:Z14) -> 88228.07744
B16: bill_month | C16: 7 | Z16: =W15-X15-Y15-Z15 -> 1.164153218e-10
K17: Estimated RPP Revenue Volume and Price Data | L17: Actual % | M17: kWh Volumes
B18: Row Labels | C18: usagebilled | D18: amountbilled | E18: Rate | K18: RPPT1 | L18: =C20/SUM($C$20:$C$25) -> 0.05182623992 | M18: =$M$13*L18 -> 936556.9823
B19: RPPTIER | K19: RPPT2 | L19: =C21/SUM($C$20:$C$25) -> 0.05730230252 | M19: =$M$13*L19 -> 1035515.438
B20: RPPT1 | C20: 532158.8142 | D20: 54806.68394 | E20: =D20/C20 -> 0.1029893379 | K20: RPPTOUMID | L20: =C23/SUM($C$20:$C$25) -> 0.1655552204 | M20: 2991764.363
B21: RPPT2 | C21: 588387.7628 | D21: 71194.66231 | E21: =D21/C21 -> 0.1209995632 | K21: RPPTOUOFF | L21: =C24/SUM($C$20:$C$25) -> 0.5411427894 | M21: 9779043.563
B22: RPPTOU | K22: RPPTOUON | L22: 0.1841734477 | M22: 3328216.144
B23: RPPTOUMID | C23: 1699943.309 | D23: 224392.6538 | E23: 0.1320000806 | K23: RPPULOMID | L23: 0 | M23: 0
B24: RPPTOUOFF | C24: 5556527.072 | D24: 483417.6995 | E24: 0.08699997197 | K24: RPPULOOFF | L24: 0 | M24: 0
B25: RPPTOUON | C25: 1891117.775 | D25: 340403.3264 | E25: 0.1800011247 | K25: RPPULOON | L25: 0 | M25: 0
B26: RETAIL | K26: RPPULOOVN | L26: 0 | M26: 0
B27: NSLS | C27: 4407291.62 | D27: 108902.7478 | E27: 0.02470967596 | L27: =SUM(L18:L26) -> 1 | M27: =SUM(M18:M26) -> 18071096.49
B28: INTERVAL
B29: HOEP | C29: -2651955.865 | D29: -56706.49123 | E29: 0.02138289403
B30: Grand Total | C30: 12023470.49 | D30: 1226411.283
K31: Global Adjustment | L31: per kWh
C32: =C30/C11-1 -> -0.4317923797 | K32: Class B - GA actual8 | L32: =B69/100 -> 0.0831000042 | N32: GA Posted Price
K33: Class B - GA actual IESO billed | L33: =+M33/M8 -> 0.08106529678 | M33: =B76 -> 1715369.82 | N33: GA Billed by IESO CT 148
A37: RPP COP Volume and Price Data
B38: bill_year | C38: 2016
B39: bill_month | C39: 7
B41: Row Labels | C41: usagebilled | D41: amountbilled | E41: Rate
B42: RPPTIERED | C42: 1118902.215 | D42: 28443.62503 | E42: =D42/C42 -> 0.02542101058
B43: RPPTOU | C43: 9147824.106 | D43: 242321.9444 | E43: 0.0264895719
B44: Grand Total | C44: 10266726.32 | D44: 270765.5695
C46: =SUM(C20:C25)-C44 -> 1408.412852
C47: =C46/C44 -> 0.0001371822729
A60: Year | B60: 2016
A62: Class A | B62: Value
A63: kWh
A64: =A69 -> 201607 | B64: 0
A67: ga_actual | B67: year
A68: month | B68: 2016
A69: 201607 | B69: 8.31000042
A72: chargetype | B72: 148
A74: Sum of chargeamount | B74: year
A75: month | B75: 2016
A76: 201607 | B76: 1715369.82

Sheet I15 Input Rev 07 Init (hidden)
A1: Reverse IESO Posted
A5: =Admin!B26 -> 201607
A6: RPP Revenue Prices | B6: kWh Volumes | C6: $ RPP Settlement
A7: RPPTiered_1 | B7: 566196.67 | C7: 6747.597948
A8: RPPTiered_2 | B8: 2096342.87 | C8: -13112.36344
A9: RPPTOU_MID | B9: 1104120.66 | C9: -14520.29104
A10: RPPTOU_OFF | B10: 3760446.96 | C10: 119727.9722
A11: RPPTOU_ON | B11: 1148671.65 | C11: -70250.44741
A12: Grand Total | B12: 8675778.81 | C12: 28592.46825

Sheet I16 Input 08 Trueup Sett (hidden)
A1: Date: | B1: =Admin!B8+7 -> 201608 | C1: Trueup | K1: ="Data for 1st True up of RPP Settlement based on Actual IESO Invoice" -> Data for 1st True up of RPP Settlement based on Actual IESO Invoice | P1: For Reconciliation
A3: Wholesale Electricty | B3: Year | C3: 2016 | E3: Rate | P3: Actual RPP Revenue and GA
B4: dateref | C4: 201608 | K4: Wholesale Volume data per IESO Power Bill: | L4: GA RPP/non-RPP Ratios | M4: GA Volumes | N4: Energy Volumes | P4: =B1 -> 201608
K5: AQEW | M5: =C10 -> 22763342.92 | N5: =+M5 -> 22763342.92 | P5: RPP Revenue Prices | Q5: RPP Rate | R5: Estimated RPP Energy Price | S5: GA actual IESO billed | T5: Total Commodity | U5: Difference | V5: kWh Volumes | W5: $ Estimated RPP Revenue | X5: $ Estimated RPP Energy | Y5: $ Estimated GA | Z5: $ Estimated RPP Settlement
B6: Wholesale | K6: Embedded Generation | M6: =SUM(C8:C9) -> 471360.94 | N6: =+M6 -> 471360.94 | P6: RPPT1 | Q6: =E20 -> 0.102989202 | R6: =E42 -> 0.03196556932 | S6: =L32 -> 0.07099999905 | T6: =R6+S6 -> 0.1029655684 | U6: =+Q6-T6 -> 2.363361098e-05 | V6: =M18 -> 513197.2227 | W6: =Q6*V6 -> 52853.77242 | X6: =R6*V6 -> 16404.6414 | Y6: =+V6*S6 -> 36437.00232 | Z6: =W6-X6-Y6 -> 12.12870352
A7: FIT/mFIT | B7: Source | C7: kWh | D7: Total Cost | K7: Class A customer Volumes for GA (TLF included) | M7: =-B64 -> 0 | P7: RPPT2 | Q7: =E21 -> 0.1209995683 | R7: =R6 -> 0.03196556932 | S7: =S6 -> 0.07099999905 | T7: =R7+S7 -> 0.1029655684 | U7: =+Q7-T7 -> 0.01803399989 | V7: =M19 -> 616737.7465 | W7: =Q7*V7 -> 74625.00105 | X7: =R7*V7 -> 19714.37319 | Y7: =+V7*S7 -> 43788.37941 | Z7: =W7-X7-Y7 -> 11122.24846
B8: FIT | C8: 438002.02 | D8: 17458.18 | E8: =D8/C8 -> 0.03985867462 | M8: =+M5+M6+M7 -> 23234703.86 | N8: =+N5+N6+N7 -> 23234703.86 | P8: RPPTOUMID | Q8: =E23 -> 0.1320001495 | R8: =E43 -> 0.03081079741 | S8: =S7 -> 0.07099999905 | T8: 0.1018107965 | U8: 0.03018935305 | V8: 1748121.892 | W8: 230752.3512 | X8: 53861.02948 | Y8: 124116.6527 | Z8: 52774.66899
B9: microFIT | C9: 33358.92 | D9: 1336.66 | E9: =D9/C9 -> 0.040069043 | P9: RPPTOUOFF | Q9: =E24 -> 0.08699994977 | R9: =R8 -> 0.03081079741 | S9: 0.07099999905 | T9: 0.1018107965 | U9: -0.01481084668 | V9: 5650015.57 | W9: 491551.0708 | X9: 174081.4851 | Y9: 401151.1001 | Z9: -83681.51437
B10: WHOLESALE | C10: 22763342.92 | D10: 758064.47 | E10: =D10/C10 -> 0.03330198349 | K10: Estimated Retail Volume Revenue Data (TLF Included) | L10: RPP/non-RPP Ratios | M10: GA Volumes | N10: Energy Volumes | P10: RPPTOUON | Q10: 0.180001077 | R10: =R9 -> 0.03081079741 | S10: 0.07099999905 | T10: 0.1018107965 | U10: 0.07819028051 | V10: 1983221.762 | W10: 356982.053 | X10: 61104.64393 | Y10: 140808.7432 | Z10: 155068.6659
A11: Total Wholesale Electricity | B11: Grand Total | C11: 23234703.86 | D11: 776859.31 | K11: Estimated Retail Revenue Data (Net of Retail Billed/Unbilled) | M11: =+M15 -> 23234703.86 | N11: =+N15 -> 23234703.86 | P11: RPPULOMID | Q11: 0 | R11: 0 | S11: 0 | T11: 0 | U11: 0 | V11: 0 | W11: 0 | X11: 0 | Y11: 0 | Z11: 0
P12: RPPULOOFF | Q12: 0 | R12: 0 | S12: 0 | T12: 0 | U12: 0 | V12: 0 | W12: 0 | X12: 0 | Y12: 0 | Z12: 0
K13: Estimated RPP Sales Quantities | L13: =SUM(C20:C25)/(C30-B64) -> 0.4523963058 | M13: =M8*L13 -> 10511294.19 | N13: =M13 -> 10511294.19 | P13: RPPULOON | Q13: 0 | R13: 0 | S13: 0 | T13: 0 | U13: 0 | V13: 0 | W13: 0 | X13: 0 | Y13: 0 | Z13: 0
A14: RPP Revenue Volume and Price Data | K14: Estimated non-RPP Sales Quantities | L14: =1-L13 -> 0.5476036942 | M14: =M8*L14 -> 12723409.67 | N14: =N8-N13 -> 12723409.67 | P14: RPPULOOVN | Q14: 0 | R14: 0 | S14: 0 | T14: 0 | U14: 0 | V14: 0 | W14: 0 | X14: 0 | Y14: 0 | Z14: 0
B15: bill_year | C15: 2016 | K15: Estimated Retail Revenue kWh Volumes | L15: =+L13+L14 -> 1 | M15: =+M13+M14 -> 23234703.86 | N15: =+N13+N14 -> 23234703.86 | V15: =SUM(V6:V14) -> 10511294.19 | W15: =SUM(W6:W14) -> 1206764.248 | X15: =SUM(X6:X14) -> 325166.1731 | Y15: =SUM(Y6:Y14) -> 746301.8777 | Z15: =SUM(Z6:Z14) -> 135296.1977
B16: bill_month | C16: 8 | Z16: =W15-X15-Y15-Z15 -> 0
K17: Estimated RPP Revenue Volume and Price Data | L17: Actual % | M17: kWh Volumes
B18: Row Labels | C18: usagebilled | D18: amountbilled | E18: Rate | K18: RPPT1 | L18: =C20/SUM($C$20:$C$25) -> 0.04882340968 | M18: =$M$13*L18 -> 513197.2227
B19: RPPTIER | K19: RPPT2 | L19: =C21/SUM($C$20:$C$25) -> 0.05867381648 | M19: =$M$13*L19 -> 616737.7465
B20: RPPT1 | C20: 520934.7454 | D20: 53650.65371 | E20: =D20/C20 -> 0.102989202 | K20: RPPTOUMID | L20: =C23/SUM($C$20:$C$25) -> 0.1663089112 | M20: 1748121.892
B21: RPPT2 | C21: 626036.3593 | D21: 75750.1292 | E21: =D21/C21 -> 0.1209995683 | K21: RPPTOUOFF | L21: =C24/SUM($C$20:$C$25) -> 0.5375185459 | M21: 5650015.57
B22: RPPTOU | K22: RPPTOUON | L22: 0.1886753168 | M22: 1983221.762
B23: RPPTOUMID | C23: 1774478.49 | D23: 234231.426 | E23: 0.1320001495 | K23: RPPULOMID | L23: 0 | M23: 0
B24: RPPTOUOFF | C24: 5735201.385 | D24: 498962.2324 | E24: 0.08699994977 | K24: RPPULOOFF | L24: 0 | M24: 0
B25: RPPTOUON | C25: 2013122.982 | D25: 362364.3049 | E25: 0.180001077 | K25: RPPULOON | L25: 0 | M25: 0
B26: RETAIL | K26: RPPULOOVN | L26: 0 | M26: 0
B27: NSLS | C27: 5083184.754 | D27: 162629.1291 | E27: 0.03199355069 | L27: =SUM(L18:L26) -> 1 | M27: =SUM(M18:M26) -> 10511294.19
B28: INTERVAL
B29: HOEP | C29: 7832056.954 | D29: 244952.0385 | E29: 0.0312755691
B30: Grand Total | C30: 23585015.67 | D30: 1632539.914
K31: Global Adjustment | L31: per kWh
C32: =C30/C11-1 -> 0.01507709381 | K32: Class B - GA actual8 | L32: =B69/100 -> 0.07099999905 | N32: GA Posted Price
K33: Class B - GA actual IESO billed | L33: =+M33/M8 -> 0.06958685679 | M33: =B76 -> 1616830.01 | N33: GA Billed by IESO CT 148
A37: RPP COP Volume and Price Data
B38: bill_year | C38: 2016
B39: bill_month | C39: 8
B41: Row Labels | C41: usagebilled | D41: amountbilled | E41: Rate
B42: RPPTIERED | C42: 1145390.176 | D42: 36613.04907 | E42: =D42/C42 -> 0.03196556932
B43: RPPTOU | C43: 9520683.447 | D43: 293339.8489 | E43: 0.03081079741
B44: Grand Total | C44: 10666073.62 | D44: 329952.898
C46: =SUM(C20:C25)-C44 -> 3700.339247
C47: =C46/C44 -> 0.0003469260927
A60: Year | B60: 2016
A62: Class A | B62: Value
A63: kWh
A64: =A69 -> 201608 | B64: 0
A67: ga_actual | B67: year
A68: month | B68: 2016
A69: 201608 | B69: 7.099999905
A72: chargetype | B72: 148
A74: Sum of chargeamount | B74: year
A75: month | B75: 2016
A76: 201608 | B76: 1616830.01

Sheet I17 Input Rev 08 Init (hidden)
A1: Reverse IESO Posted
A5: =Admin!B29 -> 201608
A6: RPP Revenue Prices | B6: kWh Volumes | C6: $ RPP Settlement
A7: RPPTiered_1 | B7: 490529.65 | C7: 11356.11198
A8: RPPTiered_2 | B8: 1057503.91 | C8: -5894.992551
A9: RPPTOU_MID | B9: 1578672.59 | C9: -34305.49605
A10: RPPTOU_OFF | B10: 5058417.33 | C10: 117694.6743
A11: RPPTOU_ON | B11: 1722317.74 | C11: -120097.1254
A12: Grand Total | B12: 9907441.22 | C12: -31246.82771

Sheet I18 Input 09 Trueup Sett (hidden)
A1: Date: | B1: =Admin!B8+8 -> 201609 | C1: Trueup | K1: ="Data for 1st True up of RPP Settlement based on Actual IESO Invoice" -> Data for 1st True up of RPP Settlement based on Actual IESO Invoice | P1: For Reconciliation
A3: Wholesale Electricty | B3: Year | C3: 2016 | E3: Rate | P3: Actual RPP Revenue and GA
B4: dateref | C4: 201609 | K4: Wholesale Volume data per IESO Power Bill: | L4: GA RPP/non-RPP Ratios | M4: GA Volumes | N4: Energy Volumes | P4: =B1 -> 201609
K5: AQEW | M5: =C10 -> 19334918.5 | N5: =+M5 -> 19334918.5 | P5: RPP Revenue Prices | Q5: RPP Rate | R5: Estimated RPP Energy Price | S5: GA actual IESO billed | T5: Total Commodity | U5: Difference | V5: kWh Volumes | W5: $ Estimated RPP Revenue | X5: $ Estimated RPP Energy | Y5: $ Estimated GA | Z5: $ Estimated RPP Settlement
B6: Wholesale | K6: Embedded Generation | M6: =SUM(C8:C9) -> 437932.45 | N6: =+M6 -> 437932.45 | P6: RPPT1 | Q6: =E20 -> 0.1029877342 | R6: =E42 -> 0.01935343005 | S6: =L32 -> 0.09529999733 | T6: =R6+S6 -> 0.1146534274 | U6: =+Q6-T6 -> -0.01166569319 | V6: =M18 -> 502885.4533 | W6: =Q6*V6 -> 51791.03339 | X6: =R6*V6 -> 9732.558442 | Y6: =+V6*S6 -> 47924.98235 | Z6: =W6-X6-Y6 -> -5866.507409
A7: FIT/mFIT | B7: Source | C7: kWh | D7: Total Cost | K7: Class A customer Volumes for GA (TLF included) | M7: =-B64 -> 0 | P7: RPPT2 | Q7: =E21 -> 0.1209998267 | R7: =R6 -> 0.01935343005 | S7: =S6 -> 0.09529999733 | T7: =R7+S7 -> 0.1146534274 | U7: =+Q7-T7 -> 0.006346399349 | V7: =M19 -> 519415.6473 | W7: =Q7*V7 -> 62849.20333 | X7: =R7*V7 -> 10052.4744 | Y7: =+V7*S7 -> 49500.30981 | Z7: =W7-X7-Y7 -> 3296.419126
B8: FIT | C8: 410039.68 | D8: 7076.12 | E8: =D8/C8 -> 0.01725715911 | M8: =+M5+M6+M7 -> 19772850.95 | N8: =+N5+N6+N7 -> 19772850.95 | P8: RPPTOUMID | Q8: =E23 -> 0.1319999906 | R8: =E43 -> 0.02032079082 | S8: =S7 -> 0.09529999733 | T8: 0.1156207882 | U8: 0.01637920248 | V8: 1499306.896 | W8: 197908.4963 | X8: 30467.10182 | Y8: 142883.9432 | Z8: 24557.45124
B9: microFIT | C9: 27892.77 | D9: 505.64 | E9: =D9/C9 -> 0.01812799518 | P9: RPPTOUOFF | Q9: =E24 -> 0.0869999912 | R9: =R8 -> 0.02032079082 | S9: 0.09529999733 | T9: 0.1156207882 | U9: -0.02862079695 | V9: 4929617.851 | W9: 428876.7096 | X9: 100173.7332 | Y9: 469792.568 | Z9: -141089.5916
B10: WHOLESALE | C10: 19334918.5 | D10: 342227.76 | E10: =D10/C10 -> 0.01769998462 | K10: Estimated Retail Volume Revenue Data (TLF Included) | L10: RPP/non-RPP Ratios | M10: GA Volumes | N10: Energy Volumes | P10: RPPTOUON | Q10: 0.1800011464 | R10: =R9 -> 0.02032079082 | S10: 0.09529999733 | T10: 0.1156207882 | U10: 0.06438035825 | V10: 1611542.634 | W10: 290079.5216 | X10: 32747.82077 | Y10: 153580.0087 | Z10: 103751.6921
A11: Total Wholesale Electricity | B11: Grand Total | C11: 19772850.95 | D11: 349809.52 | K11: Estimated Retail Revenue Data (Net of Retail Billed/Unbilled) | M11: =+M15 -> 19772850.95 | N11: =+N15 -> 19772850.95 | P11: RPPULOMID | Q11: 0 | R11: 0 | S11: 0 | T11: 0 | U11: 0 | V11: 0 | W11: 0 | X11: 0 | Y11: 0 | Z11: 0
P12: RPPULOOFF | Q12: 0 | R12: 0 | S12: 0 | T12: 0 | U12: 0 | V12: 0 | W12: 0 | X12: 0 | Y12: 0 | Z12: 0
K13: Estimated RPP Sales Quantities | L13: =SUM(C20:C25)/(C30-B64) -> 0.4583440448 | M13: =M8*L13 -> 9062768.482 | N13: =M13 -> 9062768.482 | P13: RPPULOON | Q13: 0 | R13: 0 | S13: 0 | T13: 0 | U13: 0 | V13: 0 | W13: 0 | X13: 0 | Y13: 0 | Z13: 0
A14: RPP Revenue Volume and Price Data | K14: Estimated non-RPP Sales Quantities | L14: =1-L13 -> 0.5416559552 | M14: =M8*L14 -> 10710082.47 | N14: =N8-N13 -> 10710082.47 | P14: RPPULOOVN | Q14: 0 | R14: 0 | S14: 0 | T14: 0 | U14: 0 | V14: 0 | W14: 0 | X14: 0 | Y14: 0 | Z14: 0
B15: bill_year | C15: 2016 | K15: Estimated Retail Revenue kWh Volumes | L15: =+L13+L14 -> 1 | M15: =+M13+M14 -> 19772850.95 | N15: =+N13+N14 -> 19772850.95 | V15: =SUM(V6:V14) -> 9062768.482 | W15: =SUM(W6:W14) -> 1031504.964 | X15: =SUM(X6:X14) -> 183173.6886 | Y15: =SUM(Y6:Y14) -> 863681.8121 | Z15: =SUM(Z6:Z14) -> -15350.5365
B16: bill_month | C16: 9 | Z16: =W15-X15-Y15-Z15 -> 4.365574569e-11
K17: Estimated RPP Revenue Volume and Price Data | L17: Actual % | M17: kWh Volumes
B18: Row Labels | C18: usagebilled | D18: amountbilled | E18: Rate | K18: RPPT1 | L18: =C20/SUM($C$20:$C$25) -> 0.05548916474 | M18: =$M$13*L18 -> 502885.4533
B19: RPPTIER | K19: RPPT2 | L19: =C21/SUM($C$20:$C$25) -> 0.05731313212 | M19: =$M$13*L19 -> 519415.6473
B20: RPPT1 | C20: 480896.1241 | D20: 49526.4022 | E20: =D20/C20 -> 0.1029877342 | K20: RPPTOUMID | L20: =C23/SUM($C$20:$C$25) -> 0.1654358599 | M20: 1499306.896
B21: RPPT2 | C21: 496703.5136 | D21: 60101.03908 | E21: =D21/C21 -> 0.1209998267 | K21: RPPTOUOFF | L21: =C24/SUM($C$20:$C$25) -> 0.5439417172 | M21: 4929617.851
B22: RPPTOU | K22: RPPTOUON | L22: 0.1778201261 | M22: 1611542.634
B23: RPPTOUMID | C23: 1433747.726 | D23: 189254.6865 | E23: 0.1319999906 | K23: RPPULOMID | L23: 0 | M23: 0
B24: RPPTOUOFF | C24: 4714063.813 | D24: 410123.5103 | E24: 0.0869999912 | K24: RPPULOOFF | L24: 0 | M24: 0
B25: RPPTOUON | C25: 1541075.808 | D25: 277395.4122 | E25: 0.1800011464 | K25: RPPULOON | L25: 0 | M25: 0
B26: RETAIL | K26: RPPULOOVN | L26: 0 | M26: 0
B27: NSLS | C27: 4399491.582 | D27: 81685.42311 | E27: 0.0185670143 | L27: =SUM(L18:L26) -> 1 | M27: =SUM(M18:M26) -> 9062768.482
B28: INTERVAL
B29: HOEP | C29: 5842278.416 | D29: 103664.472 | E29: 0.01774384317
B30: Grand Total | C30: 18908256.98 | D30: 1171750.945
K31: Global Adjustment | L31: per kWh
C32: =C30/C11-1 -> -0.04372631789 | K32: Class B - GA actual8 | L32: =B69/100 -> 0.09529999733 | N32: GA Posted Price
K33: Class B - GA actual IESO billed | L33: =+M33/M8 -> 0.09319334145 | M33: =B76 -> 1842698.05 | N33: GA Billed by IESO CT 148
A37: RPP COP Volume and Price Data
B38: bill_year | C38: 2016
B39: bill_month | C39: 9
B41: Row Labels | C41: usagebilled | D41: amountbilled | E41: Rate
B42: RPPTIERED | C42: 981578.1897 | D42: 18996.90483 | E42: =D42/C42 -> 0.01935343005
B43: RPPTOU | C43: 7718571.396 | D43: 156847.4748 | E43: 0.02032079082
B44: Grand Total | C44: 8700149.585 | D44: 175844.3796
C46: =SUM(C20:C25)-C44 -> -33662.59924
C47: =C46/C44 -> -0.003869197755
A60: Year | B60: 2016
A62: Class A | B62: Value
A63: kWh
A64: =A69 -> 201609 | B64: 0
A67: ga_actual | B67: year
A68: month | B68: 2016
A69: 201609 | B69: 9.529999733
A72: chargetype | B72: 148
A74: Sum of chargeamount | B74: year
A75: month | B75: 2016
A76: 201609 | B76: 1842698.05

Sheet I19 Input Rev 09 Init (hidden)
A1: Reverse IESO Posted
A5: =Admin!B32 -> 201609
A6: RPP Revenue Prices | B6: kWh Volumes | C6: $ RPP Settlement
A7: RPPTiered_1 | B7: 538065.73 | C7: 704.238693
A8: RPPTiered_2 | B8: 568954.53 | C8: -9319.27855
A9: RPPTOU_MID | B9: 1789625.62 | C9: -43579.18606
A10: RPPTOU_OFF | B10: 5853988.25 | C10: 120877.4693
A11: RPPTOU_ON | B11: 2038500.94 | C11: -147490.7979
A12: Grand Total | B12: 10789135.07 | C12: -78807.55447

Sheet I20 Input 10 Trueup Sett (hidden)
A1: Date: | B1: =Admin!B8+9 -> 201610 | C1: Trueup | K1: ="Data for 1st True up of RPP Settlement based on Actual IESO Invoice" -> Data for 1st True up of RPP Settlement based on Actual IESO Invoice | P1: For Reconciliation
A3: Wholesale Electricty | B3: Year | C3: 2016 | E3: Rate | P3: Actual RPP Revenue and GA
B4: dateref | C4: 201610 | K4: Wholesale Volume data per IESO Power Bill: | L4: GA RPP/non-RPP Ratios | M4: GA Volumes | N4: Energy Volumes | P4: =B1 -> 201610
K5: AQEW | M5: =C10 -> 18686084.74 | N5: =+M5 -> 18686084.74 | P5: RPP Revenue Prices | Q5: RPP Rate | R5: Estimated RPP Energy Price | S5: GA actual IESO billed | T5: Total Commodity | U5: Difference | V5: kWh Volumes | W5: $ Estimated RPP Revenue | X5: $ Estimated RPP Energy | Y5: $ Estimated GA | Z5: $ Estimated RPP Settlement
B6: Wholesale | K6: Embedded Generation | M6: =SUM(C8:C9) -> 425117.47 | N6: =+M6 -> 425117.47 | P6: RPPT1 | Q6: =E20 -> 0.1029877974 | R6: =E42 -> 0.01350858902 | S6: =L32 -> 0.1119999981 | T6: =R6+S6 -> 0.1255085871 | U6: =+Q6-T6 -> -0.02252078975 | V6: =M18 -> 499277.6079 | W6: =Q6*V6 -> 51419.5011 | X6: =R6*V6 -> 6744.536012 | Y6: =+V6*S6 -> 55919.09113 | Z6: =W6-X6-Y6 -> -11244.12604
A7: FIT/mFIT | B7: Source | C7: kWh | D7: Total Cost | K7: Class A customer Volumes for GA (TLF included) | M7: =-B64 -> 0 | P7: RPPT2 | Q7: =E21 -> 0.1209995225 | R7: =R6 -> 0.01350858902 | S7: =S6 -> 0.1119999981 | T7: =R7+S7 -> 0.1255085871 | U7: =+Q7-T7 -> -0.004509064617 | V7: =M19 -> 495487.9661 | W7: =Q7*V7 -> 59953.8073 | X7: =R7*V7 -> 6693.343299 | Y7: =+V7*S7 -> 55494.65125 | Z7: =W7-X7-Y7 -> -2234.187256
B8: FIT | C8: 404922.62 | D8: 4042.17 | E8: =D8/C8 -> 0.009982573955 | M8: =+M5+M6+M7 -> 19111202.21 | N8: =+N5+N6+N7 -> 19111202.21 | P8: RPPTOUMID | Q8: =E23 -> 0.1320005303 | R8: =E43 -> 0.01293080591 | S8: =S7 -> 0.1119999981 | T8: 0.124930804 | U8: 0.007069726334 | V8: 1327638.311 | W8: 175248.9612 | X8: 17167.43333 | Y8: 148695.4884 | Z8: 9386.039533
B9: microFIT | C9: 20194.85 | D9: 203.07 | E9: =D9/C9 -> 0.01005553396 | P9: RPPTOUOFF | Q9: =E24 -> 0.08700041698 | R9: =R8 -> 0.01293080591 | S9: 0.1119999981 | T9: 0.124930804 | U9: -0.03793038702 | V9: 4389485.4 | W9: 381887.0601 | X9: 56759.58377 | Y9: 491622.3564 | Z9: -166494.88
B10: WHOLESALE | C10: 18686084.74 | D10: 233368.18 | E10: =D10/C10 -> 0.01248887518 | K10: Estimated Retail Volume Revenue Data (TLF Included) | L10: RPP/non-RPP Ratios | M10: GA Volumes | N10: Energy Volumes | P10: RPPTOUON | Q10: 0.1800023385 | R10: =R9 -> 0.01293080591 | S10: 0.1119999981 | T10: 0.124930804 | U10: 0.05507153448 | V10: 1336675.418 | W10: 240604.701 | X10: 17284.2904 | Y10: 149707.6442 | Z10: 73612.76635
A11: Total Wholesale Electricity | B11: Grand Total | C11: 19111202.21 | D11: 237613.42 | K11: Estimated Retail Revenue Data (Net of Retail Billed/Unbilled) | M11: =+M15 -> 19111202.21 | N11: =+N15 -> 19111202.21 | P11: RPPULOMID | Q11: 0 | R11: 0 | S11: 0 | T11: 0 | U11: 0 | V11: 0 | W11: 0 | X11: 0 | Y11: 0 | Z11: 0
P12: RPPULOOFF | Q12: 0 | R12: 0 | S12: 0 | T12: 0 | U12: 0 | V12: 0 | W12: 0 | X12: 0 | Y12: 0 | Z12: 0
K13: Estimated RPP Sales Quantities | L13: =SUM(C20:C25)/(C30-B64) -> 0.42114382 | M13: =M8*L13 -> 8048564.703 | N13: =M13 -> 8048564.703 | P13: RPPULOON | Q13: 0 | R13: 0 | S13: 0 | T13: 0 | U13: 0 | V13: 0 | W13: 0 | X13: 0 | Y13: 0 | Z13: 0
A14: RPP Revenue Volume and Price Data | K14: Estimated non-RPP Sales Quantities | L14: =1-L13 -> 0.57885618 | M14: =M8*L14 -> 11062637.51 | N14: =N8-N13 -> 11062637.51 | P14: RPPULOOVN | Q14: 0 | R14: 0 | S14: 0 | T14: 0 | U14: 0 | V14: 0 | W14: 0 | X14: 0 | Y14: 0 | Z14: 0
B15: bill_year | C15: 2016 | K15: Estimated Retail Revenue kWh Volumes | L15: =+L13+L14 -> 1 | M15: =+M13+M14 -> 19111202.21 | N15: =+N13+N14 -> 19111202.21 | V15: =SUM(V6:V14) -> 8048564.703 | W15: =SUM(W6:W14) -> 909114.0307 | X15: =SUM(X6:X14) -> 104649.1868 | Y15: =SUM(Y6:Y14) -> 901439.2313 | Z15: =SUM(Z6:Z14) -> -96974.38745
B16: bill_month | C16: 10 | Z16: =W15-X15-Y15-Z15 -> 0
K17: Estimated RPP Revenue Volume and Price Data | L17: Actual % | M17: kWh Volumes
B18: Row Labels | C18: usagebilled | D18: amountbilled | E18: Rate | K18: RPPT1 | L18: =C20/SUM($C$20:$C$25) -> 0.06203312346 | M18: =$M$13*L18 -> 499277.6079
B19: RPPTIER | K19: RPPT2 | L19: =C21/SUM($C$20:$C$25) -> 0.06156227655 | M19: =$M$13*L19 -> 495487.9661
B20: RPPT1 | C20: 511697.6367 | D20: 52698.61252 | E20: =D20/C20 -> 0.1029877974 | K20: RPPTOUMID | L20: =C23/SUM($C$20:$C$25) -> 0.1649534247 | M20: 1327638.311
B21: RPPT2 | C21: 507813.7238 | D21: 61445.21809 | E21: =D21/C21 -> 0.1209995225 | K21: RPPTOUOFF | L21: =C24/SUM($C$20:$C$25) -> 0.5453749285 | M21: 4389485.4
B22: RPPTOU | K22: RPPTOUON | L22: 0.1660762468 | M22: 1336675.418
B23: RPPTOUMID | C23: 1360664.64 | D23: 179608.454 | E23: 0.1320005303 | K23: RPPULOMID | L23: 0 | M23: 0
B24: RPPTOUOFF | C24: 4498678.23 | D24: 391386.8819 | E24: 0.08700041698 | K24: RPPULOOFF | L24: 0 | M24: 0
B25: RPPTOUON | C25: 1369926.553 | D25: 246589.9831 | E25: 0.1800023385 | K25: RPPULOON | L25: 0 | M25: 0
B26: RETAIL | K26: RPPULOOVN | L26: 0 | M26: 0
B27: NSLS | C27: 4242556.407 | D27: 51980.98665 | E27: 0.01225227944 | L27: =SUM(L18:L26) -> 1 | M27: =SUM(M18:M26) -> 8048564.703
B28: INTERVAL
B29: HOEP | C29: 7095275.25 | D29: 87756.77337 | E29: 0.01236833953
B30: Grand Total | C30: 19586612.44 | D30: 1071466.91
K31: Global Adjustment | L31: per kWh
C32: =C30/C11-1 -> 0.02487599811 | K32: Class B - GA actual8 | L32: =B69/100 -> 0.1119999981 | N32: GA Posted Price
K33: Class B - GA actual IESO billed | L33: =+M33/M8 -> 0.1097365732 | M33: =B76 -> 2097197.84 | N33: GA Billed by IESO CT 148
A37: RPP COP Volume and Price Data
B38: bill_year | C38: 2016
B39: bill_month | C39: 10
B41: Row Labels | C41: usagebilled | D41: amountbilled | E41: Rate
B42: RPPTIERED | C42: 1017936.651 | D42: 13750.88787 | E42: =D42/C42 -> 0.01350858902
B43: RPPTOU | C43: 7245915.338 | D43: 93695.5249 | E43: 0.01293080591
B44: Grand Total | C44: 8263851.989 | D44: 107446.4128
C46: =SUM(C20:C25)-C44 -> -15071.2056
C47: =C46/C44 -> -0.00182375067
A60: Year | B60: 2016
A62: Class A | B62: Value
A63: kWh
A64: =A69 -> 201610 | B64: 0
A67: ga_actual | B67: year
A68: month | B68: 2016
A69: 201610 | B69: 11.19999981
A72: chargetype | B72: 148
A74: Sum of chargeamount | B74: year
A75: month | B75: 2016
A76: 201610 | B76: 2097197.84

Sheet I21 Input Rev 10 Init (hidden)
A1: Reverse IESO Posted
A5: =Admin!B35 -> 201610
A6: RPP Revenue Prices | B6: kWh Volumes | C6: $ RPP Settlement
A7: RPPTiered_1 | B7: 499628.56 | C7: 5594.178818
A8: RPPTiered_2 | B8: 551543.53 | C8: -3755.22278
A9: RPPTOU_MID | B9: 1448830.16 | C9: -30714.20653
A10: RPPTOU_OFF | B10: 4765582.93 | C10: 113422.134
A11: RPPTOU_ON | B11: 1623233.34 | C11: -112325.1459
A12: Grand Total | B12: 8888818.52 | C12: -27778.26236

Sheet I22 Input 11 Trueup Sett (hidden)
A1: Date: | B1: =Admin!B8+10 -> 201611 | C1: Trueup | K1: ="Data for 1st True up of RPP Settlement based on Actual IESO Invoice" -> Data for 1st True up of RPP Settlement based on Actual IESO Invoice | P1: For Reconciliation
A3: Wholesale Electricty | B3: Year | C3: 2016 | E3: Rate | P3: Actual RPP Revenue and GA
B4: dateref | C4: 201611 | K4: Wholesale Volume data per IESO Power Bill: | L4: GA RPP/non-RPP Ratios | M4: GA Volumes | N4: Energy Volumes | P4: =B1 -> 201611
K5: AQEW | M5: =C10 -> 19432254.45 | N5: =+M5 -> 19432254.45 | P5: RPP Revenue Prices | Q5: RPP Rate | R5: Estimated RPP Energy Price | S5: GA actual IESO billed | T5: Total Commodity | U5: Difference | V5: kWh Volumes | W5: $ Estimated RPP Revenue | X5: $ Estimated RPP Energy | Y5: $ Estimated GA | Z5: $ Estimated RPP Settlement
B6: Wholesale | K6: Embedded Generation | M6: =SUM(C8:C9) -> 290489.01 | N6: =+M6 -> 290489.01 | P6: RPPT1 | Q6: =E21 -> 0.1029915035 | R6: =E43 -> 0.01674704586 | S6: =L32 -> 0.1110000038 | T6: =R6+S6 -> 0.1277470497 | U6: =+Q6-T6 -> -0.02475554614 | V6: =M18 -> 641698.1082 | W6: =Q6*V6 -> 66089.45297 | X6: =R6*V6 -> 10746.54764 | Y6: =+V6*S6 -> 71228.49245 | Z6: =W6-X6-Y6 -> -15885.58712
A7: FIT/mFIT | B7: Source | C7: kWh | D7: Total Cost | K7: Class A customer Volumes for GA (TLF included) | M7: =-B64 -> 0 | P7: RPPT2 | Q7: =E22 -> 0.1209999065 | R7: =R6 -> 0.01674704586 | S7: =S6 -> 0.1110000038 | T7: =R7+S7 -> 0.1277470497 | U7: =+Q7-T7 -> -0.00674714317 | V7: =M19 -> 472592.5616 | W7: =Q7*V7 -> 57183.65577 | X7: =R7*V7 -> 7914.529301 | Y7: =+V7*S7 -> 52457.77614 | Z7: =W7-X7-Y7 -> -3188.649674
B8: FIT | C8: 275320.88 | D8: 3153.32 | E8: =D8/C8 -> 0.01145325411 | M8: =+M5+M6+M7 -> 19722743.46 | N8: =+N5+N6+N7 -> 19722743.46 | P8: RPPTOUMID | Q8: =E24 -> 0.1320001538 | R8: =E44 -> 0.01786329823 | S8: =S7 -> 0.1110000038 | T8: 0.128863302 | U8: 0.003136851798 | V8: 1441706.671 | W8: 190305.5023 | X8: 25753.63622 | Y8: 160029.4459 | Z8: 4522.420161
B9: microFIT | C9: 15168.13 | D9: 172.6 | E9: =D9/C9 -> 0.01137912188 | P9: RPPTOUOFF | Q9: =E25 -> 0.08700032955 | R9: =R8 -> 0.01786329823 | S9: 0.1110000038 | T9: 0.128863302 | U9: -0.04186297249 | V9: 4662723.276 | W9: 405658.4616 | X9: 83291.61645 | Y9: 517562.3014 | Z9: -195195.4563
B10: WHOLESALE | C10: 19432254.45 | D10: 318401.33 | E10: =D10/C10 -> 0.01638519765 | K10: Estimated Retail Volume Revenue Data (TLF Included) | L10: RPP/non-RPP Ratios | M10: GA Volumes | N10: Energy Volumes | P10: RPPTOUON | Q10: 0.1800008106 | R10: =R9 -> 0.01786329823 | S10: 0.1110000038 | T10: 0.128863302 | U10: 0.05113750852 | V10: 1519362.704 | W10: 273486.5183 | X10: 27140.82911 | Y10: 168649.266 | Z10: 77696.42324
A11: Total Wholesale Electricity | B11: Grand Total | C11: 19722743.46 | D11: 321727.25 | K11: Estimated Retail Revenue Data (Net of Retail Billed/Unbilled) | M11: =+M15 -> 19722743.46 | N11: =+N15 -> 19722743.46 | P11: RPPULOMID | Q11: 0 | R11: 0 | S11: 0 | T11: 0 | U11: 0 | V11: 0 | W11: 0 | X11: 0 | Y11: 0 | Z11: 0
P12: RPPULOOFF | Q12: 0 | R12: 0 | S12: 0 | T12: 0 | U12: 0 | V12: 0 | W12: 0 | X12: 0 | Y12: 0 | Z12: 0
K13: Estimated RPP Sales Quantities | L13: =SUM(C21:C26)/(C31-B64) -> 0.4430460366 | M13: =M8*L13 -> 8738083.321 | N13: =M13 -> 8738083.321 | P13: RPPULOON | Q13: 0 | R13: 0 | S13: 0 | T13: 0 | U13: 0 | V13: 0 | W13: 0 | X13: 0 | Y13: 0 | Z13: 0
A14: RPP Revenue Volume and Price Data | K14: Estimated non-RPP Sales Quantities | L14: =1-L13 -> 0.5569539634 | M14: =M8*L14 -> 10984660.14 | N14: =N8-N13 -> 10984660.14 | P14: RPPULOOVN | Q14: 0 | R14: 0 | S14: 0 | T14: 0 | U14: 0 | V14: 0 | W14: 0 | X14: 0 | Y14: 0 | Z14: 0
K15: Estimated Retail Revenue kWh Volumes | L15: =+L13+L14 -> 1 | M15: =+M13+M14 -> 19722743.46 | N15: =+N13+N14 -> 19722743.46 | V15: =SUM(V6:V14) -> 8738083.321 | W15: =SUM(W6:W14) -> 992723.591 | X15: =SUM(X6:X14) -> 154847.1587 | Y15: =SUM(Y6:Y14) -> 969927.282 | Z15: =SUM(Z6:Z14) -> -132050.8497
B16: bill_year | C16: 2016
B17: bill_month | C17: 11 | K17: Estimated RPP Revenue Volume and Price Data | L17: Actual % | M17: kWh Volumes
K18: RPPT1 | L18: =C21/SUM($C$21:$C$26) -> 0.07343694087 | M18: =$M$13*L18 -> 641698.1082
B19: Row Labels | C19: usagebilled | D19: amountbilled | E19: Rate | K19: RPPT2 | L19: =C22/SUM($C$21:$C$26) -> 0.05408423612 | M19: =$M$13*L19 -> 472592.5616
B20: RPPTIER | K20: RPPTOUMID | L20: =C24/SUM($C$21:$C$26) -> 0.1649911791 | M20: 1441706.671
B21: RPPT1 | C21: 662704.1442 | D21: 68252.89621 | E21: =D21/C21 -> 0.1029915035 | K21: RPPTOUOFF | L21: =C25/SUM($C$21:$C$26) -> 0.5336093861 | M21: 4662723.276
B22: RPPT2 | C22: 488062.9148 | D22: 59055.56706 | E22: =D22/C22 -> 0.1209999065 | K22: RPPTOUON | L22: 0.1738782578 | M22: 1519362.704
B23: RPPTOU | K23: RPPULOMID | L23: 0 | M23: 0
B24: RPPTOUMID | C24: 1488901.047 | D24: 196535.1673 | E24: =D24/C24 -> 0.1320001538 | K24: RPPULOOFF | L24: 0 | M24: 0
B25: RPPTOUOFF | C25: 4815357.875 | D25: 418937.722 | E25: 0.08700032955 | K25: RPPULOON | L25: 0 | M25: 0
B26: RPPTOUON | C26: 1569099.157 | D26: 282439.1202 | E26: 0.1800008106 | K26: RPPULOOVN | L26: 0 | M26: 0
B27: RETAIL | L27: =SUM(L18:L26) -> 1 | M27: =SUM(M18:M26) -> 8738083.321
B28: NSLS | C28: 4238147.026 | D28: 71202.60823 | E28: =D28/C28 -> 0.01680041013
B29: INTERVAL
B30: HOEP | C30: 7106096.792 | D30: 116025.9561 | E30: 0.01632766334
B31: Grand Total | C31: 20368368.96 | D31: 1212449.037 | E31: 0.05952607397 | K31: Global Adjustment | L31: per kWh
C32: =C31/C11-1 -> 0.03273507554 | K32: Class B - GA actual8 | L32: =B69/100 -> 0.1110000038 | N32: GA Posted Price
K33: Class B - GA actual IESO billed | L33: =+M33/M8 -> 0.1094589464 | M33: =B76 -> 2158830.72 | N33: GA Billed by IESO CT 148
A38: RPP COP Volume and Price Data
B39: bill_year | C39: 2016
B40: bill_month | C40: 11
B42: Row Labels | C42: usagebilled | D42: amountbilled | E42: Rate
B43: RPPTIERED | C43: 1097103.477 | D43: 18373.24223 | E43: =D43/C43 -> 0.01674704586
B44: RPPTOU | C44: 7872873.224 | D44: 140635.4823 | E44: 0.01786329823
B45: Grand Total | C45: 8969976.7 | D45: 159008.7246
C47: =SUM(C21:C26)-C45 -> 54148.43831
C48: =C47/C45 -> 0.006036630876
A60: Year | B60: 2016
A62: Class A | B62: Value
A63: kWh
A64: =A69 -> 201611 | B64: 0
A67: ga_actual | B67: year
A68: month | B68: 2016
A69: 201611 | B69: 11.10000038
A72: chargetype | B72: 148
A74: Sum of chargeamount | B74: year
A75: month | B75: 2016
A76: 201611 | B76: 2158830.72

Sheet I23 Input Rev 11 Init (hidden)
A1: Reverse IESO Posted
A5: =Admin!B38 -> 201611
A6: RPP Revenue Prices | B6: kWh Volumes | C6: $ RPP Settlement
A7: RPPTiered_1 | B7: 460106.31 | C7: 10024.11816
A8: RPPTiered_2 | B8: 452932.02 | C8: 1692.15604
A9: RPPTOU_MID | B9: 1301901.31 | C9: -18763.97906
A10: RPPTOU_OFF | B10: 4283137.39 | C10: 131009.2373
A11: RPPTOU_ON | B11: 1306469.65 | C11: -81543.2706
A12: Grand Total | B12: 7804546.68 | C12: 42418.2618

Sheet I24 Input 12 Trueup Sett (hidden)
A1: Date: | B1: =Admin!B8+11 -> 201612 | C1: Trueup | K1: ="Data for 1st True up of RPP Settlement based on Actual IESO Invoice" -> Data for 1st True up of RPP Settlement based on Actual IESO Invoice | P1: For Reconciliation
A3: Wholesale Electricty | B3: Year | C3: 2016 | E3: Rate | P3: Actual RPP Revenue and GA
B4: dateref | C4: 201612 | K4: Wholesale Volume data per IESO Power Bill: | L4: GA RPP/non-RPP Ratios | M4: GA Volumes | N4: Energy Volumes | P4: =B1 -> 201612
K5: AQEW | M5: =C10 -> 21463280.49 | N5: =+M5 -> 21463280.49 | P5: RPP Revenue Prices | Q5: RPP Rate | R5: Estimated RPP Energy Price | S5: GA actual IESO billed | T5: Total Commodity | U5: Difference | V5: kWh Volumes | W5: $ Estimated RPP Revenue | X5: $ Estimated RPP Energy | Y5: $ Estimated GA | Z5: $ Estimated RPP Settlement
B6: Wholesale | K6: Embedded Generation | M6: =SUM(C8:C9) -> 110870.28 | N6: =+M6 -> 110870.28 | P6: RPPT1 | Q6: =E21 -> 0.1029917628 | R6: =E43 -> 0.02173294807 | S6: =L32 -> 0.08710000038 | T6: =R6+S6 -> 0.1088329485 | U6: =+Q6-T6 -> -0.005841185685 | V6: =M18 -> 674882.7664 | W6: =Q6*V6 -> 69507.36578 | X6: =R6*V6 -> 14667.19212 | Y6: =+V6*S6 -> 58782.28922 | Z6: =W6-X6-Y6 -> -3942.115554
A7: FIT/mFIT | B7: Source | C7: kWh | D7: Total Cost | K7: Class A customer Volumes for GA (TLF included) | M7: =-B64 -> 0 | P7: RPPT2 | Q7: =E22 -> 0.1209996119 | R7: =R6 -> 0.02173294807 | S7: =S6 -> 0.08710000038 | T7: =R7+S7 -> 0.1088329485 | U7: =+Q7-T7 -> 0.01216666349 | V7: =M19 -> 636984.9552 | W7: =Q7*V7 -> 77074.93239 | X7: =R7*V7 -> 13843.56095 | Y7: =+V7*S7 -> 55481.38984 | Z7: =W7-X7-Y7 -> 7749.981597
B8: FIT | C8: 103441.3 | D8: 1759.17 | E8: =D8/C8 -> 0.0170064568 | M8: =+M5+M6+M7 -> 21574150.77 | N8: =+N5+N6+N7 -> 21574150.77 | P8: RPPTOUMID | Q8: =E24 -> 0.1320001402 | R8: =E44 -> 0.02159766944 | S8: =S7 -> 0.08710000038 | T8: 0.1086976698 | U8: 0.02330247038 | V8: 1657899.124 | W8: 218842.9167 | X8: 35806.75723 | Y8: 144403.0143 | Z8: 38633.14522
B9: microFIT | C9: 7428.98 | D9: 136.71 | E9: =D9/C9 -> 0.01840225711 | P9: RPPTOUOFF | Q9: =E25 -> 0.08700046395 | R9: =R8 -> 0.02159766944 | S9: 0.08710000038 | T9: 0.1086976698 | U9: -0.02169720586 | V9: 6083368.116 | W9: 529255.8485 | X9: 131386.5736 | Y9: 529861.3653 | Z9: -131992.0904
B10: WHOLESALE | C10: 21463280.49 | D10: 457719.13 | E10: =D10/C10 -> 0.02132568366 | K10: Estimated Retail Volume Revenue Data (TLF Included) | L10: RPP/non-RPP Ratios | M10: GA Volumes | N10: Energy Volumes | P10: RPPTOUON | Q10: 0.1800011375 | R10: =R9 -> 0.02159766944 | S10: 0.08710000038 | T10: 0.1086976698 | U10: 0.07130346772 | V10: 1733255.375 | W10: 311987.9391 | X10: 37434.27663 | Y10: 150966.5438 | Z10: 123587.1187
A11: Total Wholesale Electricity | B11: Grand Total | C11: 21574150.77 | D11: 459615.01 | K11: Estimated Retail Revenue Data (Net of Retail Billed/Unbilled) | M11: =+M15 -> 21574150.77 | N11: =+N15 -> 21574150.77 | P11: RPPULOMID | Q11: 0 | R11: =E45 -> 0 | S11: 0.08710000038 | T11: 0.08710000038 | U11: -0.08710000038 | V11: 0 | W11: 0 | X11: 0 | Y11: 0 | Z11: 0
P12: RPPULOOFF | Q12: 0 | R12: =R11 -> 0 | S12: 0.08710000038 | T12: 0.08710000038 | U12: -0.08710000038 | V12: 0 | W12: 0 | X12: 0 | Y12: 0 | Z12: 0
K13: Estimated RPP Sales Quantities | L13: =SUM(C21:C26)/(C31-B64) -> 0.4999682468 | M13: =M8*L13 -> 10786390.34 | N13: =M13 -> 10786390.34 | P13: RPPULOON | Q13: 0 | R13: =R12 -> 0 | S13: 0.08710000038 | T13: 0.08710000038 | U13: -0.08710000038 | V13: 0 | W13: 0 | X13: 0 | Y13: 0 | Z13: 0
A14: RPP Revenue Volume and Price Data | K14: Estimated non-RPP Sales Quantities | L14: =1-L13 -> 0.5000317532 | M14: =M8*L14 -> 10787760.43 | N14: =N8-N13 -> 10787760.43 | P14: RPPULOOVN | Q14: 0 | R14: 0 | S14: 0.08710000038 | T14: 0.08710000038 | U14: -0.08710000038 | V14: 0 | W14: 0 | X14: 0 | Y14: 0 | Z14: 0
K15: Estimated Retail Revenue kWh Volumes | L15: =+L13+L14 -> 1 | M15: =+M13+M14 -> 21574150.77 | N15: =+N13+N14 -> 21574150.77 | V15: =SUM(V6:V14) -> 10786390.34 | W15: =SUM(W6:W14) -> 1206669.003 | X15: =SUM(X6:X14) -> 233138.3606 | Y15: =SUM(Y6:Y14) -> 939494.6024 | Z15: =SUM(Z6:Z14) -> 34036.03959
B16: bill_year | C16: 2016
B17: bill_month | C17: 12 | K17: Estimated RPP Revenue Volume and Price Data | L17: Actual % | M17: kWh Volumes
K18: RPPT1 | L18: =C21/SUM($C$21:$C$26) -> 0.06256799035 | M18: =$M$13*L18 -> 674882.7664
B19: Row Labels | C19: usagebilled | D19: amountbilled | E19: Rate | K19: RPPT2 | L19: =C22/SUM($C$21:$C$26) -> 0.05905450622 | M19: =$M$13*L19 -> 636984.9552
B20: RPPTIER | K20: RPPTOUMID | L20: =C24/SUM($C$21:$C$26) -> 0.1537028674 | M20: 1657899.124
B21: RPPT1 | C21: 681146.4941 | D21: 70152.47813 | E21: =D21/C21 -> 0.1029917628 | K21: RPPTOUOFF | L21: =C25/SUM($C$21:$C$26) -> 0.5639855342 | M21: 6083368.116
B22: RPPT2 | C22: 642896.9453 | D22: 77790.2809 | E22: 0.1209996119 | K22: RPPTOUON | L22: 0.1606891018 | M22: 1733255.375
B23: RPPTOU | K23: RPPULOMID | L23: 0 | M23: 0
B24: RPPTOUMID | C24: 1673286.431 | D24: 220874.0435 | E24: 0.1320001402 | K24: RPPULOOFF | L24: 0 | M24: 0
B25: RPPTOUOFF | C25: 6139829.124 | D25: 534167.9824 | E25: 0.08700046395 | K25: RPPULOON | L25: 0 | M25: 0
B26: RPPTOUON | C26: 1749342.079 | D26: 314883.5642 | E26: 0.1800011375 | K26: RPPULOOVN | L26: 0 | M26: 0
B27: RETAIL | L27: =SUM(L18:L26) -> 1 | M27: =SUM(M18:M26) -> 10786390.34
B28: NSLS | C28: 4215612.49 | D28: 89975.74725 | E28: 0.02134345779
B29: INTERVAL
B30: HOEP | C30: 6672271.397 | D30: 144594.4968 | E30: 0.02167095554
B31: Grand Total | C31: 21774384.96 | D31: 1452438.593 | E31: 0.06670400086 | K31: Global Adjustment | L31: per kWh
C32: =C31/C11-1 -> 0.009281208428 | K32: Class B - GA actual8 | L32: =B69/100 -> 0.08710000038 | N32: GA Posted Price
K33: Class B - GA actual IESO billed | L33: =+M33/M8 -> 0.08663002266 | M33: =B76 -> 1868969.17 | N33: GA Billed by IESO CT 148
A38: RPP COP Volume and Price Data
B39: bill_year | C39: 2016
B40: bill_month | C40: 12
B42: Row Labels | C42: usagebilled | D42: amountbilled | E42: Rate
B43: RPPTIERED | C43: 1323905.202 | D43: 28772.36302 | E43: =D43/C43 -> 0.02173294807
B44: RPPTOU | C44: 9563504.795 | D44: 206549.4152 | E44: 0.02159766944
B45: Grand Total | C45: 10887410 | D45: 235321.7782
C47: =SUM(C21:C26)-C45 -> -908.9240173
C48: =C47/C45 -> -8.348395234e-05
A60: Year | B60: 2016
A62: Class A | B62: Value
A63: kWh
A64: =A69 -> 201612 | B64: 0
A67: ga_actual | B67: year
A68: month | B68: 2016
A69: 201612 | B69: 8.710000038
A72: chargetype | B72: 148
A74: Sum of chargeamount | B74: year
A75: month | B75: 2016
A76: 201612 | B76: 1868969.17

Sheet I25 Input Rev 12 Init (hidden)
A1: Reverse IESO Posted
A5: =Admin!B41 -> 201612
A6: RPP Revenue Prices | B6: kWh Volumes | C6: $ RPP Settlement
A7: RPPTiered_1 | B7: 626917.16 | C7: 14467.38628
A8: RPPTiered_2 | B8: 504296.82 | C8: 2525.279145
A9: RPPTOU_MID | B9: 1438940.95 | C9: -7348.118312
A10: RPPTOU_OFF | B10: 4601130.55 | C10: 183552.2579
A11: RPPTOU_ON | B11: 1447159.67 | C11: -76855.57349
A12: Grand Total | B12: 8618445.15 | C12: 116341.2315

Sheet Rec1 1588 Commodity
A1: Lakefront Utilities Inc.
A2: =ProcessYear[Process Year]& " 1588 Commodity RSVA" -> 2016 1588 Commodity RSVA
A3: Commodity
B5: 4006-4055 | E5: 4705 | L5: 1588
B6: GL Revenue | C6: Unbilled | D6: Total Revenue | E6: Energy Cost (code 101) | F6: RPP GA (code 148) | G6: IESO RPP Settlement | H6: FIT/mFIT | I6: Misc | J6: IESO Code 118 - Energy Rebate | K6: Total Cost | L6: Variance | M6: Y.T.D. | N6: G.L. Balance
A7: Opening Balance
A8: January | B8: -1155441.79 | C8: =D8-B8 -> -194636.6079 | D8: =-'I1a ER Summary'!AF5 -> -1350078.398 | E8: ='I1a ER Summary'!K5 -> 311310.9 | F8: ='I1a ER Summary'!E5 -> 970403.5494 | G8: ='I1a ER Summary'!F5 -> 26368.13237 | H8: ='I1a ER Summary'!M5 -> 1416.32 | K8: =SUM(E8:J8) -> 1309498.902 | L8: =D8+K8 -> -40579.49608 | M8: =L8 -> -40579.49608 | N8: =N7+L8 -> -40579.49608
A9: February | B9: -1371353.92 | C9: =D9-B9 -> 82532.29059 | D9: =-'I1a ER Summary'!AF6 -> -1288821.629 | E9: ='I1a ER Summary'!K6 -> 267674.91 | F9: ='I1a ER Summary'!E6 -> 920175.7475 | G9: ='I1a ER Summary'!F6 -> -26937.41011 | H9: ='I1a ER Summary'!M6 -> 1262.58 | K9: 1162175.827 | L9: -126645.8021 | M9: =M8+L9 -> -167225.2981 | N9: =N8+L9 -> -167225.2981
A10: March | B10: -1337828.22 | C10: 214883.9273 | D10: =-'I1a ER Summary'!AF7 -> -1122944.293 | E10: ='I1a ER Summary'!K7 -> 123433.39 | F10: ='I1a ER Summary'!E7 -> 1142757.789 | G10: ='I1a ER Summary'!F7 -> -49143.97936 | H10: ='I1a ER Summary'!M7 -> 1090.23 | K10: 1218137.43 | L10: 95193.13706 | M10: =M9+L10 -> -72032.16108 | N10: -72032.16108
A11: April | B11: -1151247.61 | C11: 87659.50557 | D11: =-'I1a ER Summary'!AF8 -> -1063588.104 | E11: ='I1a ER Summary'!K8 -> 116923.93 | F11: ='I1a ER Summary'!E8 -> 939050.8706 | G11: ='I1a ER Summary'!F8 -> -69904.1635 | H11: ='I1a ER Summary'!M8 -> 2314.27 | K11: 988384.9071 | L11: -75203.19733 | M11: -147235.3584 | N11: -147235.3584
A12: May | B12: -1008810.13 | C12: -25163.48242 | D12: =-'I1a ER Summary'!AF9 -> -1033973.612 | E12: ='I1a ER Summary'!K9 -> 249307.51 | F12: ='I1a ER Summary'!E9 -> 818214.8829 | G12: ='I1a ER Summary'!F9 -> -61019.7501 | H12: ='I1a ER Summary'!M9 -> 6945.67 | K12: 1013448.313 | L12: -20525.29957 | M12: -167760.658 | N12: -167760.658
A13: June | B13: -1038892.08 | C13: -384123.3987 | D13: =-'I1a ER Summary'!AF10 -> -1423015.479 | E13: ='I1a ER Summary'!K10 -> 389148.02 | F13: ='I1a ER Summary'!E10 -> 508078.9132 | G13: ='I1a ER Summary'!F10 -> -18634.45631 | H13: ='I1a ER Summary'!M10 -> 9575.66 | K13: 888168.1369 | L13: -534847.3418 | M13: -702607.9998 | N13: -702607.9998
A14: July | B14: -1256879.52 | C14: 30468.23749 | D14: =-'I1a ER Summary'!AF11 -> -1226411.283 | E14: ='I1a ER Summary'!K11 -> 494014.65 | F14: ='I1a ER Summary'!E11 -> 1501708.194 | G14: ='I1a ER Summary'!F11 -> 88228.07744 | H14: ='I1a ER Summary'!M11 -> 13011.66 | K14: 2096962.582 | L14: 870551.2991 | M14: 167943.2993 | N14: 167943.2993
A15: August | B15: -1117151.09 | C15: -515388.8238 | D15: =-'I1a ER Summary'!AF12 -> -1632539.914 | E15: ='I1a ER Summary'!K12 -> 758064.47 | F15: ='I1a ER Summary'!E12 -> 746301.8777 | G15: ='I1a ER Summary'!F12 -> 135296.1977 | H15: ='I1a ER Summary'!M12 -> 18794.84 | K15: 1658457.385 | L15: 25917.47159 | M15: 193860.7709 | N15: 193860.7709
A16: September | B16: -1633685.27 | C16: 461934.3247 | D16: =-'I1a ER Summary'!AF13 -> -1171750.945 | E16: ='I1a ER Summary'!K13 -> 342227.76 | F16: ='I1a ER Summary'!E13 -> 863681.8121 | G16: ='I1a ER Summary'!F13 -> -15350.5365 | H16: ='I1a ER Summary'!M13 -> 7581.76 | K16: 1198140.796 | L16: 26389.85031 | M16: 220250.6212 | N16: 220250.6212
A17: October | B17: -1236694.08 | C17: 165227.1704 | D17: =-'I1a ER Summary'!AF14 -> -1071466.91 | E17: ='I1a ER Summary'!K14 -> 233368.18 | F17: ='I1a ER Summary'!E14 -> 901439.2313 | G17: ='I1a ER Summary'!F14 -> -96974.38745 | H17: ='I1a ER Summary'!M14 -> 4245.24 | K17: 1042078.264 | L17: -29388.64573 | M17: 190861.9755 | N17: 190861.9755
A18: November | B18: -1017942.83 | C18: -194506.2071 | D18: =-'I1a ER Summary'!AF15 -> -1212449.037 | E18: ='I1a ER Summary'!K15 -> 318401.33 | F18: ='I1a ER Summary'!E15 -> 969927.282 | G18: ='I1a ER Summary'!F15 -> -132050.8497 | H18: ='I1a ER Summary'!M15 -> 3325.92 | K18: 1159603.682 | L18: -52845.3548 | M18: 138016.6207 | N18: 138016.6207
A19: December | B19: -1168333.08 | C19: -284105.5131 | D19: =-'I1a ER Summary'!AF16 -> -1452438.593 | E19: ='I1a ER Summary'!K16 -> 457719.13 | F19: ='I1a ER Summary'!E16 -> 939494.6024 | G19: ='I1a ER Summary'!F16 -> 34036.03959 | H19: ='I1a ER Summary'!M16 -> 1895.88 | K19: 1433145.652 | L19: -19292.94112 | M19: 118723.6796 | N19: 118723.6796
B20: =SUM(B8:B19) -> -14494259.62 | C20: =SUM(C8:C19) -> -555218.577 | D20: -15049478.2 | E20: 4061594.18 | F20: 11221234.75 | G20: -186087.0859 | H20: 71460.03 | I20: 0 | J20: 0 | K20: 15168201.88 | L20: 118723.6796
A22: Per GL | F22: 11682984.08 | G22: -158759.51
A23: Adjustments | F23: =F20-F22 -> -461749.3275 | G23: =G20-G22 -> -27327.57593
F25: 4705-0002 | G25: 4705-0001

Sheet Rec2 1589 Class B
A1: Lakefront Utilities Inc.
A2: =ProcessYear[Process Year]& " 1589 ClassB RSVA" -> 2016 1589 ClassB RSVA
A3: Global Adjustment Class B Only
B5: 4006-4055 | E5: 4707 | K5: 1589
B6: Revenue - Class B only | C6: Unbilled | D6: Total Revenue | E6: IESO Code 148 | F6: RPP GA (code 148) | G6: Class B GA (Code 148) | H6: Class B Deferral | I6: Misc | J6: Class B GA | K6: Variance | L6: Y.T.D. | M6: G.L. Balance
A7: Opening Balance
A8: January | B8: -1111194.72 | C8: =D8-B8 -> 129967.4481 | D8: -981227.2719 | E8: ='I1a ER Summary'!Q5 -> 2053943.11 | F8: =-'Rec1 1588 Commodity'!F8 -> -970403.5494 | G8: =E8+F8 -> 1083539.561 | J8: =SUM(G8:I8) -> 1083539.561 | K8: =D8+J8 -> 102312.2887 | L8: =K8 -> 102312.2887 | M8: =M7+K8 -> 102312.2887
A9: February | B9: -923827.18 | C9: =D9-B9 -> -329490.686 | D9: -1253317.866 | E9: ='I1a ER Summary'!Q6 -> 2070609.21 | F9: =-'Rec1 1588 Commodity'!F9 -> -920175.7475 | G9: =E9+F9 -> 1150433.463 | J9: =SUM(G9:I9) -> 1150433.463 | K9: =D9+J9 -> -102884.4035 | L9: =L8+K9 -> -572.1147616 | M9: =M8+K9 -> -572.1147616
A10: March | B10: -1231022.25 | C10: 257035.538 | D10: -973986.712 | E10: ='I1a ER Summary'!Q7 -> 2223420.55 | F10: =-'Rec1 1588 Commodity'!F10 -> -1142757.789 | G10: 1080662.761 | J10: 1080662.761 | K10: 106676.0488 | L10: =L9+K10 -> 106103.9341 | M10: 106103.9341
A11: April | B11: -1114864.44 | C11: -239297.955 | D11: -1354162.395 | E11: ='I1a ER Summary'!Q8 -> 2128921.64 | F11: =-'Rec1 1588 Commodity'!F11 -> -939050.8706 | G11: 1189870.769 | J11: 1189870.769 | K11: -164291.6256 | L11: -58187.69153 | M11: -58187.69153
A12: May | B12: -1271362.83 | C12: 23147.68029 | D12: -1248215.15 | E12: ='I1a ER Summary'!Q9 -> 2024450.85 | F12: =-'Rec1 1588 Commodity'!F12 -> -818214.8829 | G12: 1206235.967 | J12: 1206235.967 | K12: -41979.18265 | L12: -100166.8742 | M12: -100166.8742
A13: June | B13: -1180063.73 | C13: -265829.7174 | D13: -1445893.447 | E13: ='I1a ER Summary'!Q10 -> 1822728.92 | F13: =-'Rec1 1588 Commodity'!F13 -> -508078.9132 | G13: 1314650.007 | J13: 1314650.007 | K13: -131243.4405 | L13: -231410.3147 | M13: -231410.3147
A14: July | B14: -1453201.97 | C14: 636882.1154 | D14: -816319.8546 | E14: ='I1a ER Summary'!Q11 -> 1715369.82 | F14: =-'Rec1 1588 Commodity'!F14 -> -1501708.194 | G14: 213661.6258 | J14: 213661.6258 | K14: -602658.2287 | L14: -834068.5434 | M14: -834068.5434
A15: August | B15: -719977.04 | C15: -365393.8996 | D15: -1085370.94 | E15: ='I1a ER Summary'!Q12 -> 1616830.01 | F15: =-'Rec1 1588 Commodity'!F15 -> -746301.8777 | G15: 870528.1323 | J15: 870528.1323 | K15: -214842.8073 | L15: -1048911.351 | M15: -1048911.351
A16: September | B16: -1046769.68 | C16: 366556.4368 | D16: -680213.2432 | E16: ='I1a ER Summary'!Q13 -> 1842698.05 | F16: =-'Rec1 1588 Commodity'!F16 -> -863681.8121 | G16: 979016.2379 | J16: 979016.2379 | K16: 298802.9947 | L16: -750108.3561 | M16: -750108.3561
A17: October | B17: -895178.27 | C17: -179656.535 | D17: -1074834.805 | E17: ='I1a ER Summary'!Q14 -> 2097197.84 | F17: =-'Rec1 1588 Commodity'!F17 -> -901439.2313 | G17: 1195758.609 | J17: 1195758.609 | K17: 120923.8037 | L17: -629184.5524 | M17: -629184.5524
A18: November | B18: -1062915.28 | C18: -302767.4381 | D18: -1365682.718 | E18: ='I1a ER Summary'!Q15 -> 2158830.72 | F18: =-'Rec1 1588 Commodity'!F18 -> -969927.282 | G18: 1188903.438 | J18: 1188903.438 | K18: -176779.2801 | L18: -805963.8325 | M18: -805963.8325
A19: December | B19: -1356893.76 | C19: 221891.5751 | D19: -1135002.185 | E19: ='I1a ER Summary'!Q16 -> 1868969.17 | F19: =-'Rec1 1588 Commodity'!F19 -> -939494.6024 | G19: 929474.5676 | J19: 929474.5676 | K19: -205527.6173 | L19: -1011491.45 | M19: -1011491.45
B20: =SUM(B8:B19) -> -13367271.15 | C20: -46955.43739 | D20: -13414226.59 | E20: 23623969.89 | F20: -11221234.75 | G20: 12402735.14 | H20: 0 | I20: 0 | J20: 12402735.14 | K20: -1011491.45
A22: Per GL | J22: 11940985.81
A23: Adjustments | J23: =J20-J22 -> 461749.3275
J25: 4707-0000

Sheet Rev1UFE
A1: Lakefront Utilities Inc.
A2: 2023 RSVA
A3: Unaccounted for Energy Summary For USoA 1588
C5: Total Energy Purchases | D5: Total Retail Sales | E5: Uaccounted for Energy | F5: UFE | G5: Total Energy Purchases | H5: Total Retail Sales | I5: UFE | J5: UFE | N5: Energy Purchases RPP and non-RPP | P5: RPP Settlement Amounts | T5: Energy Sales Revenue | V5: Energy Sales Volumes | X5: Energy Sales/kWh
B6: Version | C6: kWH | D6: kWh | E6: kWh | F6: % | G6: $ Amount | H6: $ Amount | I6: $ Amount | J6: % | K6: Revenue Per kWh | L6: UFE $ Cost per kWh | N6: Energy for RPP and non-RPP | O6: Final GA for RPP | P6: Initial Settlement | Q6: First True-Up | R6: Final True-Up | S6: RPP Settlement Amount | T6: RPP Sales | U6: Non-RPP Sales | V6: RPP kWh | W6: Non-RPP kWH | X6: RPP | Y6: Non-RPP
A7: January | B7: Final | C7: ='I1a ER Summary'!S5 -> 22478346 | D7: ='I1a ER Summary'!T5 -> 23688758.9 | E7: =+C7-D7 -> -1210412.904 | F7: =+E7/C7 -> -0.05384795233 | G7: =+N7+O7+S7 -> 1309498.902 | H7: =+T7+U7 -> 1350078.398 | I7: =+G7-H7 -> -40579.49608 | J7: =+I7/G7 -> -0.03098856824 | K7: =+H7/D7 -> 0.05699236517 | L7: =+I7/E7 -> 0.03352533334 | N7: ='I1a ER Summary'!O5 -> 312727.22 | O7: ='I1a ER Summary'!E5 -> 970403.5494 | P7: 0 | Q7: 0 | R7: ='I1a ER Summary'!F5 -> 26368.13237 | S7: =SUM(P7:R7) -> 26368.13237 | T7: ='I1a ER Summary'!C5 -> 1133381.444 | U7: ='I1a ER Summary'!AH5 -> 216696.9535 | V7: ='I1a ER Summary'!AJ5 -> 11140062.74 | W7: ='I1a ER Summary'!AK5 -> 12548696.16 | X7: =+T7/V7 -> 0.1017392335 | Y7: 0.01726848357
A8: February | B8: Final | C8: ='I1a ER Summary'!S6 -> 21195128.82 | D8: ='I1a ER Summary'!T6 -> 23560068.77 | E8: =+C8-D8 -> -2364939.955 | F8: =+E8/C8 -> -0.1115794094 | G8: =+N8+O8+S8 -> 1162175.827 | H8: =+T8+U8 -> 1288821.629 | I8: =+G8-H8 -> -126645.8021 | J8: =+I8/G8 -> -0.1089730134 | K8: =+H8/D8 -> 0.05470364462 | L8: 0.05355138163 | N8: ='I1a ER Summary'!O6 -> 268937.49 | O8: ='I1a ER Summary'!E6 -> 920175.7475 | P8: 0 | Q8: 0 | R8: ='I1a ER Summary'!F6 -> -26937.41011 | S8: -26937.41011 | T8: ='I1a ER Summary'!C6 -> 1012306.17 | U8: ='I1a ER Summary'!AH6 -> 276515.4593 | V8: ='I1a ER Summary'!AJ6 -> 10384247.45 | W8: ='I1a ER Summary'!AK6 -> 13175821.32 | X8: 0.09748478882 | Y8: 0.02098658236
A9: March | B9: Final | C9: ='I1a ER Summary'!S7 -> 21238473.28 | D9: ='I1a ER Summary'!T7 -> 19608161.77 | E9: 1630311.51 | F9: 0.07676218007 | G9: 1218137.43 | H9: 1122944.293 | I9: 95193.13706 | J9: 0.0781464675 | K9: 0.05726922829 | L9: 0.05838953872 | N9: ='I1a ER Summary'!O7 -> 124523.62 | O9: ='I1a ER Summary'!E7 -> 1142757.789 | P9: 0 | Q9: 0 | R9: ='I1a ER Summary'!F7 -> -49143.97936 | S9: -49143.97936 | T9: ='I1a ER Summary'!C7 -> 1163944.699 | U9: ='I1a ER Summary'!AH7 -> -41000.40645 | V9: ='I1a ER Summary'!AJ7 -> 9943800.604 | W9: ='I1a ER Summary'!AK7 -> 9664361.166 | X9: 0.1170522968 | Y9: -0.004242433178
A10: April | B10: Final | C10: ='I1a ER Summary'!S8 -> 19546362.99 | D10: ='I1a ER Summary'!T8 -> 21109791.81 | E10: -1563428.815 | F10: -0.07998566362 | G10: 988384.9071 | H10: 1063588.104 | I10: -75203.19733 | J10: -0.07608695437 | K10: 0.0503836378 | L10: 0.04810145278 | N10: ='I1a ER Summary'!O8 -> 119238.2 | O10: ='I1a ER Summary'!E8 -> 939050.8706 | P10: 0 | Q10: 0 | R10: ='I1a ER Summary'!F8 -> -69904.1635 | S10: -69904.1635 | T10: ='I1a ER Summary'!C8 -> 919143.0485 | U10: ='I1a ER Summary'!AH8 -> 144445.056 | V10: ='I1a ER Summary'!AJ8 -> 9111962.868 | W10: ='I1a ER Summary'!AK8 -> 11997828.94 | X10: 0.100872124 | Y10: 0.01203926616
A11: May | B11: Final | C11: ='I1a ER Summary'!S9 -> 19341332.81 | D11: ='I1a ER Summary'!T9 -> 19838362.53 | E11: -497029.7163 | F11: -0.02569780072 | G11: 1013448.313 | H11: 1033973.612 | I11: -20525.29957 | J11: -0.0202529318 | K11: 0.05211990713 | L11: 0.04129592033 | N11: ='I1a ER Summary'!O9 -> 256253.18 | O11: ='I1a ER Summary'!E9 -> 818214.8829 | P11: 0 | Q11: 0 | R11: ='I1a ER Summary'!F9 -> -61019.7501 | S11: -61019.7501 | T11: ='I1a ER Summary'!C9 -> 854795.8175 | U11: ='I1a ER Summary'!AH9 -> 179177.795 | V11: ='I1a ER Summary'!AJ9 -> 7806894.939 | W11: ='I1a ER Summary'!AK9 -> 12031467.59 | X11: 0.1094924197 | Y11: 0.01489243051
A12: June | B12: Final | C12: ='I1a ER Summary'!S10 -> 19618661.35 | D12: ='I1a ER Summary'!T10 -> 31454977.16 | E12: -11836315.81 | F12: -0.6033192378 | G12: 888168.1369 | H12: 1423015.479 | I12: -534847.3418 | J12: -0.6021915442 | K12: 0.04523975558 | L12: 0.04518697796 | N12: ='I1a ER Summary'!O10 -> 398723.68 | O12: ='I1a ER Summary'!E10 -> 508078.9132 | P12: 0 | Q12: 0 | R12: ='I1a ER Summary'!F10 -> -18634.45631 | S12: -18634.45631 | T12: ='I1a ER Summary'!C10 -> 602261.3113 | U12: ='I1a ER Summary'!AH10 -> 820754.1674 | V12: ='I1a ER Summary'!AJ10 -> 8529975.702 | W12: ='I1a ER Summary'!AK10 -> 22925001.46 | X12: 0.07060527865 | Y12: 0.03580170622
A13: July | B13: Final | C13: ='I1a ER Summary'!S11 -> 21160347.13 | D13: ='I1a ER Summary'!T11 -> 12023470.49 | E13: 9136876.642 | F13: 0.4317923797 | G13: 2096962.582 | H13: 1226411.283 | I13: 870551.2991 | J13: 0.4151487045 | K13: 0.1020014382 | L13: 0.09527887189 | N13: ='I1a ER Summary'!O11 -> 507026.31 | O13: ='I1a ER Summary'!E11 -> 1501708.194 | P13: 0 | Q13: 0 | R13: ='I1a ER Summary'!F11 -> 88228.07744 | S13: 88228.07744 | T13: ='I1a ER Summary'!C11 -> 2066524.601 | U13: ='I1a ER Summary'!AH11 -> -840113.3186 | V13: ='I1a ER Summary'!AJ11 -> 10268134.73 | W13: ='I1a ER Summary'!AK11 -> 1755335.755 | X13: 0.2012560854 | Y13: -0.4786054841
A14: August | B14: Final | C14: ='I1a ER Summary'!S12 -> 23234703.86 | D14: ='I1a ER Summary'!T12 -> 23585015.67 | E14: -350311.8098 | F14: -0.01507709381 | G14: 1658457.385 | H14: 1632539.914 | I14: 25917.47159 | J14: 0.01562745707 | K14: 0.06921936948 | L14: -0.07398400758 | N14: ='I1a ER Summary'!O12 -> 776859.31 | O14: ='I1a ER Summary'!E12 -> 746301.8777 | P14: 0 | Q14: 0 | R14: ='I1a ER Summary'!F12 -> 135296.1977 | S14: 135296.1977 | T14: ='I1a ER Summary'!C12 -> 1206764.248 | U14: ='I1a ER Summary'!AH12 -> 425775.6653 | V14: ='I1a ER Summary'!AJ12 -> 10669773.96 | W14: ='I1a ER Summary'!AK12 -> 12915241.71 | X14: 0.1131012009 | Y14: 0.03296691421
A15: September | B15: Final | C15: ='I1a ER Summary'!S13 -> 19772850.95 | D15: ='I1a ER Summary'!T13 -> 18908256.98 | E15: 864593.9663 | F15: 0.04372631789 | G15: 1198140.796 | H15: 1171750.945 | I15: 26389.85031 | J15: 0.02202566711 | K15: 0.06197033107 | L15: 0.03052282498 | N15: ='I1a ER Summary'!O13 -> 349809.52 | O15: ='I1a ER Summary'!E13 -> 863681.8121 | P15: 0 | Q15: 0 | R15: ='I1a ER Summary'!F13 -> -15350.5365 | S15: -15350.5365 | T15: ='I1a ER Summary'!C13 -> 1031504.964 | U15: ='I1a ER Summary'!AH13 -> 140245.9811 | V15: ='I1a ER Summary'!AJ13 -> 8666486.986 | W15: ='I1a ER Summary'!AK13 -> 10241770 | X15: 0.1190222712 | Y15: 0.01369352965
A16: October | B16: Final | C16: ='I1a ER Summary'!S14 -> 19111202.21 | D16: ='I1a ER Summary'!T14 -> 19586612.44 | E16: -475410.2301 | F16: -0.02487599811 | G16: 1042078.264 | H16: 1071466.91 | I16: -29388.64573 | J16: -0.02820195636 | K16: 0.05470404405 | L16: 0.06181744494 | N16: ='I1a ER Summary'!O14 -> 237613.42 | O16: ='I1a ER Summary'!E14 -> 901439.2313 | P16: 0 | Q16: 0 | R16: ='I1a ER Summary'!F14 -> -96974.38745 | S16: -96974.38745 | T16: ='I1a ER Summary'!C14 -> 909114.0307 | U16: ='I1a ER Summary'!AH14 -> 162352.8789 | V16: ='I1a ER Summary'!AJ14 -> 8248780.783 | W16: ='I1a ER Summary'!AK14 -> 11337831.66 | X16: 0.1102119276 | Y16: 0.01431957043
A17: November | B17: Final | C17: ='I1a ER Summary'!S15 -> 19722743.46 | D17: ='I1a ER Summary'!T15 -> 20368368.96 | E17: -645625.4969 | F17: -0.03273507554 | G17: 1159603.682 | H17: 1212449.037 | I17: -52845.3548 | J17: -0.04557191013 | K17: 0.05952607397 | L17: 0.0818514062 | N17: ='I1a ER Summary'!O15 -> 321727.25 | O17: ='I1a ER Summary'!E15 -> 969927.282 | P17: 0 | Q17: 0 | R17: ='I1a ER Summary'!F15 -> -132050.8497 | S17: -132050.8497 | T17: ='I1a ER Summary'!C15 -> 992723.591 | U17: ='I1a ER Summary'!AH15 -> 219725.4461 | V17: ='I1a ER Summary'!AJ15 -> 7455025.981 | W17: ='I1a ER Summary'!AK15 -> 12913342.98 | X17: 0.1331616541 | Y17: 0.01701538064
A18: December | B18: Final | C18: ='I1a ER Summary'!S16 -> 21574150.77 | D18: ='I1a ER Summary'!T16 -> 21774384.96 | E18: -200234.1899 | F18: -0.009281208428 | G18: 1433145.652 | H18: 1452438.593 | I18: -19292.94112 | J18: -0.01346195419 | K18: 0.06670400086 | L18: 0.0963518824 | N18: ='I1a ER Summary'!O16 -> 459615.01 | O18: ='I1a ER Summary'!E16 -> 939494.6024 | P18: 0 | Q18: 0 | R18: ='I1a ER Summary'!F16 -> 34036.03959 | S18: 34036.03959 | T18: ='I1a ER Summary'!C16 -> 1206669.003 | U18: ='I1a ER Summary'!AH16 -> 245769.5906 | V18: ='I1a ER Summary'!AJ16 -> 9137158.994 | W18: ='I1a ER Summary'!AK16 -> 12637225.97 | X18: 0.1320617277 | Y18: 0.01944806489
A19: Total | C19: =SUM(C7:C18) -> 247994303.6 | D19: =SUM(D7:D18) -> 255506230.4 | E19: =SUM(E7:E18) -> -7511926.811 | F19: -0.03029072322 | G19: =SUM(G7:G18) -> 15168201.88 | H19: =SUM(H7:H18) -> 15049478.2 | I19: =SUM(I7:I18) -> 118723.6796 | J19: 0.007827142632 | K19: 0.058900631 | L19: -0.01580469067 | N19: =SUM(N7:N18) -> 4133054.21 | O19: 11221234.75 | P19: 0 | Q19: 0 | R19: -186087.0859 | S19: -186087.0859 | T19: 11382095.66 | U19: 3626059.63 | V19: 111362305.7 | W19: 144143924.7 | X19: 0.1022077945 | Y19: 0.02515582698

Sheet Rev2 GA Purchases
A1: Lakefront Utilities Inc.
A2: 2023 RSVA
A3: Non-RPP Global Adjustment
C5: Non-RPP Class A GA | F5: Non-RPP Class B GA | I5: RPP Class B GA | L5: Total Class B GA | Q5: GA non-RPP Cost Amounts Booked
C6: Cost Amount | D6: kWh | E6: Avg Cost | F6: Cost Amount | G6: kWh | H6: Avg Cost | I6: Cost Amount | J6: kWh | K6: Avg Cost | L6: Cost Amount | M6: kWh | N6: Avg Cost | Q6: G/L 4707 | R6: True-Ups | S6: Total | T6: Difference
A7: January | B7: Final | C7: =#REF! ->  | D7: ='I1a ER Summary'!AN5 -> 0 | E7: 0 | F7: ='Rec2 1589 Class B'!J8 -> 1083539.561 | G7: ='I1a ER Summary'!AK5 -> 12548696.16 | H7: =+F7/G7 -> 0.08634678427 | I7: ='Rec1 1588 Commodity'!F8 -> 970403.5494 | J7: ='I1a ER Summary'!AJ5 -> 11140062.74 | K7: =+I7/J7 -> 0.08710934329 | L7: =+F7+I7 -> 2053943.11 | M7: 23688758.9 | N7: =+L7/M7 -> 0.08670539129 | Q7: 368354.797 | S7: =+Q7+R7 -> 368354.797 | T7: =+S7-F7 -> -715184.7636
A8: February | B8: Final | C8: =#REF! ->  | D8: ='I1a ER Summary'!AN6 -> 0 | E8: 0 | F8: ='Rec2 1589 Class B'!J9 -> 1150433.463 | G8: ='I1a ER Summary'!AK6 -> 13175821.32 | H8: 0.0873139848 | I8: ='Rec1 1588 Commodity'!F9 -> 920175.7475 | J8: ='I1a ER Summary'!AJ6 -> 10384247.45 | K8: 0.088612656 | L8: 2070609.21 | M8: 23560068.77 | N8: 0.08788638224 | Q8: 517400.4514 | S8: =+Q8+R8 -> 517400.4514 | T8: -633033.0112
A9: March | B9: Final | C9: =#REF! ->  | D9: ='I1a ER Summary'!AN7 -> 0 | E9: 0 | F9: ='Rec2 1589 Class B'!J10 -> 1080662.761 | G9: ='I1a ER Summary'!AK7 -> 9664361.166 | H9: 0.1118193683 | I9: ='Rec1 1588 Commodity'!F10 -> 1142757.789 | J9: ='I1a ER Summary'!AJ7 -> 9943800.604 | K9: 0.1149216315 | L9: 2223420.55 | M9: 19608161.77 | N9: 0.1133926054 | Q9: 550805.5586 | S9: =+R9+Q9 -> 550805.5586 | T9: -529857.2023
A10: April | B10: Final | C10: =#REF! ->  | D10: ='I1a ER Summary'!AN8 -> 0 | E10: 0 | F10: ='Rec2 1589 Class B'!J11 -> 1189870.769 | G10: ='I1a ER Summary'!AK8 -> 11997828.94 | H10: 0.09917384017 | I10: ='Rec1 1588 Commodity'!F11 -> 939050.8706 | J10: ='I1a ER Summary'!AJ8 -> 9111962.868 | K10: 0.1030569246 | L10: 2128921.64 | M10: 21109791.81 | N10: 0.1008499591 | Q10: 582775.4046 | S10: 582775.4046 | T10: -607095.3648
A11: May | B11: Final | C11: =#REF! ->  | D11: ='I1a ER Summary'!AN9 -> 0 | E11: 0 | F11: ='Rec2 1589 Class B'!J12 -> 1206235.967 | G11: ='I1a ER Summary'!AK9 -> 12031467.59 | H11: 0.1002567607 | I11: ='Rec1 1588 Commodity'!F12 -> 818214.8829 | J11: ='I1a ER Summary'!AJ9 -> 7806894.939 | K11: 0.1048066984 | L11: 2024450.85 | M11: 19838362.53 | N11: 0.1020472757 | Q11: 606116.3272 | S11: 606116.3272 | T11: -600119.6399
A12: June | B12: Final | C12: =#REF! ->  | D12: ='I1a ER Summary'!AN10 -> 0 | E12: 0 | F12: ='Rec2 1589 Class B'!J13 -> 1314650.007 | G12: ='I1a ER Summary'!AK10 -> 22925001.46 | H12: 0.05734568912 | I12: ='Rec1 1588 Commodity'!F13 -> 508078.9132 | J12: ='I1a ER Summary'!AJ10 -> 8529975.702 | K12: 0.0595639344 | L12: 1822728.92 | M12: 31454977.16 | N12: 0.05794723393 | Q12: 513680.4991 | S12: 513680.4991 | T12: -800969.5077
A13: July | B13: Final | C13: =#REF! ->  | D13: ='I1a ER Summary'!AN11 -> 0 | E13: 0 | F13: ='Rec2 1589 Class B'!J14 -> 213661.6258 | G13: ='I1a ER Summary'!AK11 -> 1755335.755 | H13: 0.1217212293 | I13: ='Rec1 1588 Commodity'!F14 -> 1501708.194 | J13: ='I1a ER Summary'!AJ11 -> 10268134.73 | K13: 0.1462493659 | L13: 1715369.82 | M13: 12023470.49 | N13: 0.1426684435 | Q13: 337855.3545 | S13: 337855.3545 | T13: 124193.7287
A14: August | B14: Final | C14: =#REF! ->  | D14: ='I1a ER Summary'!AN12 -> 0 | E14: 0 | F14: ='Rec2 1589 Class B'!J15 -> 870528.1323 | G14: ='I1a ER Summary'!AK12 -> 12915241.71 | H14: 0.06740316225 | I14: ='Rec1 1588 Commodity'!F15 -> 746301.8777 | J14: ='I1a ER Summary'!AJ12 -> 10669773.96 | K14: 0.06994542531 | L14: 1616830.01 | M14: 23585015.67 | N14: 0.06855327266 | Q14: 484646.4102 | S14: 484646.4102 | T14: -385881.7221
A15: September | B15: Final | C15: =#REF! ->  | D15: ='I1a ER Summary'!AN13 -> 0 | E15: 0 | F15: ='Rec2 1589 Class B'!J16 -> 979016.2379 | G15: ='I1a ER Summary'!AK13 -> 10241770 | H15: 0.09559053153 | I15: ='Rec1 1588 Commodity'!F16 -> 863681.8121 | J15: ='I1a ER Summary'!AJ13 -> 8666486.986 | K15: 0.09965765984 | L15: 1842698.05 | M15: 18908256.98 | N15: 0.09745467557 | Q15: 351972.6143 | S15: 351972.6143 | T15: -627043.6236
A16: October | B16: Final | C16: =#REF! ->  | D16: ='I1a ER Summary'!AN14 -> 0 | E16: 0 | F16: ='Rec2 1589 Class B'!J17 -> 1195758.609 | G16: ='I1a ER Summary'!AK14 -> 11337831.66 | H16: 0.1054662518 | I16: ='Rec1 1588 Commodity'!F17 -> 901439.2313 | J16: ='I1a ER Summary'!AJ14 -> 8248780.783 | K16: 0.1092815114 | L16: 2097197.84 | M16: 19586612.44 | N16: 0.1070730248 | Q16: 508645.545 | S16: 508645.545 | T16: -687113.0637
A17: November | B17: Final | C17: =#REF! ->  | D17: ='I1a ER Summary'!AN15 -> 0 | E17: 0 | F17: ='Rec2 1589 Class B'!J18 -> 1188903.438 | G17: ='I1a ER Summary'!AK15 -> 12913342.98 | H17: 0.09206782785 | I17: ='Rec1 1588 Commodity'!F18 -> 969927.282 | J17: ='I1a ER Summary'!AJ15 -> 7455025.981 | K17: 0.1301038098 | L17: 2158830.72 | M17: 20368368.96 | N17: 0.1059893762 | Q17: 446213.3479 | S17: 446213.3479 | T17: -742690.0901
A18: December | B18: Final | C18: =#REF! ->  | D18: ='I1a ER Summary'!AN16 -> 0 | E18: 0 | F18: ='Rec2 1589 Class B'!J19 -> 929474.5676 | G18: ='I1a ER Summary'!AK16 -> 12637225.97 | H18: 0.07355052209 | I18: ='Rec1 1588 Commodity'!F19 -> 939494.6024 | J18: ='I1a ER Summary'!AJ16 -> 9137158.994 | K18: 0.102821304 | L18: 1868969.17 | M18: 21774384.96 | N18: 0.08583338512 | Q18: 408485.058 | S18: 408485.058 | T18: -520989.5096
C19: =SUM(C7:C18) ->  | D19: =SUM(D7:D18) -> 0 | E19: =+C19/D19 ->  | F19: =SUM(F7:F18) -> 12402735.14 | G19: =SUM(G7:G18) -> 144143924.7 | H19: 0.08604410601 | I19: =SUM(I7:I18) -> 11221234.75 | J19: =SUM(J7:J18) -> 111362305.7 | K19: 0.1007633119 | L19: =SUM(L7:L18) -> 23623969.89 | M19: =SUM(M7:M18) -> 255506230.4 | N19: 0.09245946703 | Q19: =SUM(Q7:Q18) -> 5676951.368 | R19: =SUM(R7:R18) -> 0 | S19: =SUM(S7:S18) -> 5676951.368 | T19: =SUM(T7:T18) -> -6725783.77

Sheet Rev3 GA Analysis
F2: Consumption Data Excluding for Loss Factor (Data to agree with RRR as applicable)
F3: Year | H3: =ProcessYear[Process Year] -> 2016
F4: Total Metered excluding WMP | G4: C = A+B | H4: =H5+H6 -> 255506230.4 | I4: kWh | J4: 1
F5: RPP | G5: A | H5: ='Rev2 GA Purchases'!J19 -> 111362305.7 | I5: kWh | J5: 0.5303752085
F6: Non RPP | G6: B = D+E | H6: =H7+H8 -> 144143924.7 | I6: kWh | J6: 0.4696247915
F7: Non-RPP Class A | G7: D | H7: 0 | I7: kWh | J7: 0.1815554551
F8: Non-RPP Class B* | G8: E | H8: ='Rev2 GA Purchases'!G19-H7 -> 144143924.7 | I8: kWh | J8: 0.2880693364
F9: *Non-RPP Class B consumption reported in this table is not expected to directly agree with the Non-RPP Class B Including Loss Adjusted Billed Consumption in the GA Analysis of Expected Balance table below. The difference should be equal to the loss factor.
A12: Note 4 | B12: Analysis of Expected GA Amount
B13: Year | C13: =ProcessYear[Process Year] -> 2016 | S13: GA Rates per IESO website
B14: Calendar Month | C14: Non-RPP Class B Including Loss Factor Billed Consumption (kWh) | D14: Deduct Previous Month Unbilled Loss Adjusted Consumption (kWh) | E14: Add Current Month Unbilled Loss Adjusted Consumption (kWh) | F14: Non-RPP Class B Including Loss Adjusted Consumption, Adjusted for Unbilled (kWh) | G14: GA Rate Billed ($/kWh) | H14: $ Consumption at GA Rate Billed | I14: GA Actual Rate Paid ($/kWh) | J14: $ Consumption at Actual Rate Paid | K14: Expected GA Variance ($) | M14: Revenue per Continuity Schedule | N14: Difference | P14: Expense per Continuity Schedule | Q14: Difference | T14: 2016
C15: F | D15: G | E15: H | F15: I = F-G+H | G15: J | H15: K = I*J | I15: L | J15: M = I*L | K15: =M-K | N15: =H-M | Q15: =J-P | S15: ($/kWh) | T15: First Estimate | U15: Second Estimate | V15: Actual | AG15: 0.08756690764
B16: January | C16: ='I1a ER Summary'!AP5 -> 12548696.16 | F16: =C16-D16+E16 -> 12548696.16 | G16: =T16 -> 0.08423 | H16: =F16*G16 -> 1056976.678 | I16: =V16 -> 0.09179 | J16: =F16*I16 -> 1151844.821 | K16: =J16-H16 -> 94868.143 | M16: ='Rec2 1589 Class B'!D8 -> -981227.2719 | N16: =H16+M16 -> 75749.40605 | P16: ='Rec2 1589 Class B'!J8 -> 1083539.561 | Q16: =J16-P16 -> 68305.26034 | S16: January | T16: 0.08423 | U16: 0.09214 | V16: 0.09179 | AG16: 0.1017389469
B17: February | C17: ='I1a ER Summary'!AP6 -> 13175821.32 | F17: =C17-D17+E17 -> 13175821.32 | G17: =T17 -> 0.10384 | H17: =F17*G17 -> 1368177.286 | I17: =V17 -> 0.09851 | J17: =F17*I17 -> 1297950.158 | K17: =J17-H17 -> -70227.12764 | M17: ='Rec2 1589 Class B'!D9 -> -1253317.866 | N17: =H17+M17 -> 114859.4199 | P17: ='Rec2 1589 Class B'!J9 -> 1150433.463 | Q17: =J17-P17 -> 147516.6957 | S17: February | T17: 0.10384 | U17: 0.09678 | V17: 0.09851 | AG17: 0.09216256432
B18: March | C18: ='I1a ER Summary'!AP7 -> 9664361.166 | F18: =C18-D18+E18 -> 9664361.166 | G18: 0.09022 | H18: =F18*G18 -> 871918.6644 | I18: 0.1061 | J18: =F18*I18 -> 1025388.72 | K18: 153470.0553 | M18: ='Rec2 1589 Class B'!D10 -> -973986.712 | N18: -102068.0477 | P18: ='Rec2 1589 Class B'!J10 -> 1080662.761 | Q18: -55274.04119 | S18: March | T18: 0.09022 | U18: 0.10299 | V18: 0.1061 | AG18: 0.1168006622
B19: April | C19: ='I1a ER Summary'!AP8 -> 11997828.94 | F19: =C19-D19+E19 -> 11997828.94 | G19: 0.12115 | H19: =F19*G19 -> 1453536.976 | I19: 0.11132 | J19: =F19*I19 -> 1335598.317 | K19: -117938.6584 | M19: ='Rec2 1589 Class B'!D11 -> -1354162.395 | N19: 99374.58071 | P19: ='Rec2 1589 Class B'!J11 -> 1189870.769 | Q19: =J19-P19 -> 145727.5479 | S19: April | T19: 0.12115 | U19: 0.11177 | V19: 0.11132 | AG19: 0.1058039479
B20: May | C20: ='I1a ER Summary'!AP9 -> 12031467.59 | F20: 12031467.59 | G20: 0.10405 | H20: 1251874.202 | I20: 0.10749 | J20: =F20*I20 -> 1293262.451 | K20: =J20-H20 -> 41388.2485 | M20: ='Rec2 1589 Class B'!D12 -> -1248215.15 | N20: 3659.052734 | P20: ='Rec2 1589 Class B'!J12 -> 1206235.967 | Q20: =J20-P20 -> 87026.48389 | S20: May | T20: 0.10405 | U20: 0.11493 | V20: 0.10749 | AG20: 0.1137972907
B21: June | C21: ='I1a ER Summary'!AP10 -> 22925001.46 | F21: 22925001.46 | G21: 0.1165 | H21: 2670762.67 | I21: 0.09545 | J21: 2188191.389 | K21: -482571.2807 | M21: ='Rec2 1589 Class B'!D13 -> -1445893.447 | N21: 1224869.223 | P21: ='Rec2 1589 Class B'!J13 -> 1314650.007 | Q21: 873541.3826 | S21: June | T21: 0.1165 | U21: 0.0936 | V21: 0.09545 | AG21: 0.08110757853
B22: July | C22: ='I1a ER Summary'!AP11 -> 1755335.755 | F22: 1755335.755 | G22: 0.07667 | H22: 134581.5923 | I22: 0.08306 | J22: 145798.1878 | K22: 11216.59547 | M22: ='Rec2 1589 Class B'!D14 -> -816319.8546 | N22: -681738.2622 | P22: ='Rec2 1589 Class B'!J14 -> 213661.6258 | Q22: -67863.43806 | S22: July | T22: 0.07667 | U22: 0.08412 | V22: 0.08306 | AG22: 0.08477151342
B23: August | C23: ='I1a ER Summary'!AP12 -> 12915241.71 | F23: 12915241.71 | G23: 0.08569 | H23: 1106707.062 | I23: 0.07103 | J23: 917369.6185 | K23: -189337.4434 | M23: ='Rec2 1589 Class B'!D15 -> -1085370.94 | N23: 21336.12233 | P23: ='Rec2 1589 Class B'!J15 -> 870528.1323 | Q23: 46841.48621 | S23: August | T23: 0.08569 | U23: 0.0705 | V23: 0.07103 | AG23: 0.0699830989
B24: September | C24: ='I1a ER Summary'!AP13 -> 10241770 | F24: 10241770 | G24: 0.0706 | H24: 723068.9618 | I24: 0.09531 | J24: 976143.0985 | K24: 253074.1366 | M24: ='Rec2 1589 Class B'!D16 -> -680213.2432 | N24: 42855.71861 | P24: ='Rec2 1589 Class B'!J16 -> 979016.2379 | Q24: -2873.13942 | S24: September | T24: 0.0706 | U24: 0.09148 | V24: 0.09531 | AG24: 0.09691251275
B25: October | C25: ='I1a ER Summary'!AP14 -> 11337831.66 | F25: 11337831.66 | G25: 0.0972 | H25: 1102037.237 | I25: 0.11226 | J25: 1272784.982 | K25: 170747.7448 | M25: ='Rec2 1589 Class B'!D17 -> -1074834.805 | N25: 27202.43208 | P25: ='Rec2 1589 Class B'!J17 -> 1195758.609 | Q25: 77026.37317 | S25: October | T25: 0.0972 | U25: 0.1178 | V25: 0.11226 | AG25: 0.1206660611
B26: November | C26: ='I1a ER Summary'!AP15 -> 12913342.98 | F26: 12913342.98 | G26: 0.12271 | H26: 1584596.317 | I26: 0.11109 | J26: 1434543.271 | K26: -150053.0454 | M26: ='Rec2 1589 Class B'!D18 -> -1365682.718 | N26: 218913.5984 | P26: ='Rec2 1589 Class B'!J18 -> 1188903.438 | Q26: 245639.8331 | S26: November | T26: 0.12271 | U26: 0.115 | V26: 0.11109 | AG26: 0.1049832917
B27: December | C27: ='I1a ER Summary'!AP16 -> 12637225.97 | F27: 12637225.97 | G27: 0.10594 | H27: 1338787.719 | I27: 0.08708 | J27: 1100449.637 | K27: -238338.0817 | M27: ='Rec2 1589 Class B'!D19 -> -1135002.185 | N27: 203785.5339 | P27: ='Rec2 1589 Class B'!J19 -> 929474.5676 | Q27: 170975.0695 | S27: December | T27: 0.10594 | U27: 0.07872 | V27: 0.08708
B29: Net Change in Expected GA Balance in the Year (i.e. Transactions in the Year) | C29: =SUM(C16:C27) -> 144143924.7 | D29: 0 | E29: 0 | F29: =SUM(F16:F27) -> 144143924.7 | G29: =H29/F29 -> 0.1017248933 | H29: =SUM(H16:H27) -> 14663025.37 | I29: =J29/H29 -> 0.964284266 | J29: =SUM(J16:J27) -> 14139324.65 | K29: =SUM(K16:K27) -> -523700.7137 | M29: =SUM(M16:M28) -> -13414226.59 | N29: =SUM(N16:N28) -> 1248798.778 | P29: =SUM(P16:P28) -> 12402735.14 | Q29: =SUM(Q16:Q28) -> 1736589.514
C36: Annual Non-RPP Class B Wholesale kWh * | D36: Annual Non-RPP Class B Retail billed kWh | E36: Annual Unaccounted for Energy Loss kWh | F36: Weighted Average GA Actual Rate Paid ($/kWh)** | G36: Expected GA Volume Variance ($)
C37: O | D37: P | E37: Q=O-P | F37: R | G37: P= Q*R
C38: =(Rev1UFE!C19-H7)*'Rev3 GA Analysis '!H8/(H5+H8) -> 139906068.7 | D38: =F29 -> 144143924.7 | E38: =C38-D38 -> -4237856.003 | F38: =H29/F29 -> 0.1017248933 | G38: =E38*F38 -> -431095.4499 | I38: =D38/C38 -> 1.030290723
C39: *Equal to (AQEW - Class A + embedded generation kWh)*(Non-RPP Class B retail kwh/Total retail Class B kWh)
C40: **Equal to annual Non-RPP Class B $ GA paid (i.e. non-RPP portion of CT 148 on IESO invoice) divided by Non-RPP Class B Wholesale kWh (as quantified in column O in the table above)
F41: Total Expected GA Variance | G41: =K29+G38 -> -954796.1636
A48: Note 5 | B48: Reconciling Items
B50: Item | C50: Applicability of Reconciling Item (Y/N) | D50: Amount (Quantify if it is a significant reconciling item) | E50: Explanation
A51: Net Change in Principal Balance in the GL (i.e. Transactions in the Year) | D51: =M29+P29 -> -1011491.45
A52: 1a | B52: Remove impacts to GA from prior year RPP Settlement true up process that are booked in current year | C52: N
A53: 1b | B53: Add impacts to GA from current year RPP Settlement true up process that are booked in subsequent year | C53: N
A54: 2a | B54: Remove prior year end unbilled to actual revenue differences | C54: N
A55: 2b | B55: Add current year end unbilled to actual revenue differences | C55: N
A56: 3a | B56: Remove difference between prior year accrual to forecast from long term load transfers | C56: N
A57: 3b | B57: Add difference between current year accrual to forecast from long term load transfers | C57: N
A58: 4 | B58: Remove GA balances pertaining to Class A customers | C58: N
A59: 5 | B59: Significant prior period billing adjustments included in current year GL balance but would not be included in the billing consumption used in the GA Analysis | C59: N
A60: 6 | B60: Differences in GA IESO posted rate and rate charged on IESO invoice | C60: N
A61: 7 | D61: 0
A62: 9
A63: 10
A64: Note 6 | B64: Adjusted Net Change in Principal Balance in the GL | D64: =SUM(D51:D63) -> -1011491.45
B65: Net Change in Expected GA Balance in the Year Per Analysis | D65: =G41 -> -954796.1636
B66: Unresolved Difference | D66: =D64-D65 -> -56695.28625
B67: Unresolved Difference as % of Expected GA Payments to IESO | D67: =IF(ISERROR(D66/J29),0,D66/J29) -> -0.00400975914 | E67: =IF(AND(D67<0.01,D67>-0.01),"","Unresolved differences of greater than + or - 1% should be explained") -> 
A70: Note 7 | B70: Summary of GA (if multiple years requested for disposition)
B72: Year | C72: Annual Net Change in Expected GA Balance from GA Analysis (cell K59) | D72: Net Change in Principal Balance in the GL (cell D65) | E72: Reconciling Items (sum of cells D66 to D78) | F72: Adjusted Net Change in Principal Balance in the GL | G72: Unresolved Difference | H72: Payments to IESO (cell J59) | I72: Unresolved Difference as % of Expected GA Payments to IESO
B73: 2016 | C73: =G41 -> -954796.1636 | D73: =D51 -> -1011491.45 | E73: =SUM(D52:D63) -> 0 | F73: =SUM(D73:E73) -> -1011491.45 | G73: =F73-C73 -> -56695.28625 | H73: =J29 -> 14139324.65 | I73: =IF(ISERROR(G73/H73),0,G73/H73) -> -0.00400975914
F74: =SUM(D74:E74) -> 0 | G74: =F74-C74 -> 0 | I74: =IF(ISERROR(G74/H74),0,G74/H74) -> 0
F75: =SUM(D75:E75) -> 0 | G75: =F75-C75 -> 0 | I75: =IF(ISERROR(G75/H75),0,G75/H75) -> 0
F76: =SUM(D76:E76) -> 0 | G76: =F76-C76 -> 0 | I76: =IF(ISERROR(G76/H76),0,G76/H76) -> 0
B77: Cumulative Balance | C77: =SUM(C73:C76) -> -954796.1636 | D77: -1011491.45 | E77: 0 | F77: -1011491.45 | G77: =SUM(G73:G76) -> -56695.28625 | H77: 14139324.65 | I77: N/A
B80: Additional Notes and Comments
B95: Account 1588 Reasonability Test
C97: Account 1588 - RSVA Power | F97: Account 4705 - Power Purchased | G97: Account 1588 as % of Account 4705
B98: Year | C98: Transactions1 | D98: Principal Adjustments1 | E98: Total Activity in Calendar Year
B99: 2016 | D99: ='Rec1 1588 Commodity'!L20 -> 118723.6796 | E99: =SUM(C99:D99) -> 118723.6796 | F99: ='Rec1 1588 Commodity'!K20 -> 15168201.88 | G99: =IFERROR(E99/F99,0) -> 0.007827142632
B102: Notes
B103: 1) The transactions should equal the "Transaction" column in the DVA Continuity Schedule. This is also expected to equal the transactions in the general ledger (excluding transactions relating to the removal of approved disposition amounts as that is shown in a separate column in the DVA Continuity Schedule)
B104: 2) Principal adjustments should equal the "Principal Adjustments" column in the DVA Continuity Schedule. Principal adjustments adjust the transactions in the general ledger to the amount that should be requested for disposition.
